Ref No,Fund Type,Dept,Cost Centre Description    ,Description    ,Creditor Name    ,GL Code Net Amount,Payment date        
2,Revenue,CCHD,Breakthrough and Inclusion Work,Other Supplies & Services,121Turnaround Ltd,724.28, 11-Feb-2014
3,Revenue,CCHD,Breakthrough and Inclusion Work,Other Supplies & Services,121Turnaround Ltd,4007.28, 12-Feb-2014
4,Revenue,CCHD,Supporting People Programme,Grants to Voluntary Bodies,1625 Independent People,17380, 28-Feb-2014
5,Revenue,CCHD,Home Care - Elderly - South,Other Small Contracts,3 Trees Community Support Ltd,99.5, 14-Feb-2014
6,Revenue,CCHD,Home Care - Elderly - North,Other Small Contracts,3 Trees Community Support Ltd,2758.14, 14-Feb-2014
7,Revenue,CCHD,Day Care - North,Private & Voluntary Day Care,3 Trees Community Support Ltd,47.76, 14-Feb-2014
8,Revenue,CCHD,Home Care - Elderly - South,Other Small Contracts,3 Trees Community Support Ltd,95.52, 03-Feb-2014
9,Revenue,CCHD,Home Care - Elderly - North,Other Small Contracts,3 Trees Community Support Ltd,2789.98, 03-Feb-2014
10,Revenue,CCHD,Day Care - North,Private & Voluntary Day Care,3 Trees Community Support Ltd,47.76, 03-Feb-2014
11,Revenue,CCHD,Home Care - Elderly - South,Other Small Contracts,3 Trees Community Support Ltd,175.12, 14-Feb-2014
12,Revenue,CCHD,Home Care - Elderly - North,Other Small Contracts,3 Trees Community Support Ltd,2342.27, 14-Feb-2014
13,Revenue,CCHD,Day Care - North,Private & Voluntary Day Care,3 Trees Community Support Ltd,47.76, 14-Feb-2014
14,Revenue,CCHD,Home Care - Elderly - South,Other Small Contracts,3 Trees Community Support Ltd,196.68, 19-Feb-2014
15,Revenue,CCHD,Home Care - Elderly - North,Other Small Contracts,3 Trees Community Support Ltd,2775.87, 19-Feb-2014
16,Revenue,CCHD,Day Care - North,Private & Voluntary Day Care,3 Trees Community Support Ltd,53.64, 19-Feb-2014
17,Revenue,CCHD,Home Care - Elderly - South,Other Small Contracts,3 Trees Community Support Ltd,196.68, 26-Feb-2014
18,Revenue,CCHD,Home Care - Elderly - North,Other Small Contracts,3 Trees Community Support Ltd,2695.41, 26-Feb-2014
19,Revenue,CCHD,Day Care - North,Private & Voluntary Day Care,3 Trees Community Support Ltd,53.64, 26-Feb-2014
20,Revenue,CCHD,Day Care - South,Private & Voluntary Day Care,3 Trees Community Support Ltd,7004.8, 27-Feb-2014
21,Revenue,CCHD,Supported Living - South,Private & Voluntary Home Care,3 Trees Community Support Ltd,571.2, 25-Feb-2014
22,Revenue,CCHD,Supported Living - South,Private & Voluntary Home Care,3 Trees Community Support Ltd,1944.14, 27-Feb-2014
23,Revenue,CCHD,Purchase of Non-Res Care - North,Private & Voluntary Day Care,3 Trees Community Support Ltd,5149.84, 24-Feb-2014
24,Revenue,CCHD,Purchase of Non-Res Care - North,Private & Voluntary Day Care,3 Trees Community Support Ltd,2040.6, 13-Feb-2014
25,Revenue,CCHD,Purchase of Non-Res Care - North,Private & Voluntary Day Care,3 Trees Community Support Ltd,1997.36, 24-Feb-2014
26,Revenue,CCHD,Purchase of Non-Res Care - North,Private & Voluntary Day Care,3 Trees Community Support Ltd,1537.27, 24-Feb-2014
27,Revenue,CCHD,Purchase of Non-Res Care - North,Private & Voluntary Day Care,3 Trees Community Support Ltd,6282.22, 24-Feb-2014
28,Revenue,CCHD,Purchase of Non-Res Care - South,Private & Voluntary Day Care,3 Trees Community Support Ltd,3753.54, 25-Feb-2014
29,Revenue,CCHD,Supported Living - North,Private & Voluntary Home Care,3 Trees Community Support Ltd,7632.8, 13-Feb-2014
30,Revenue,CCHD,Supported Living - North,Private & Voluntary Home Care,3 Trees Community Support Ltd,7925.72, 18-Feb-2014
31,Revenue,CCHD,Supported Living - South,Private & Voluntary Home Care,3 Trees Community Support Ltd,7598.48, 11-Feb-2014
32,Revenue,CCHD,Bed Purchasing - Under 65s PWLD - South,Permanent Residential,5Th Floor Harlech Court,15828.36, 18-Feb-2014
33,Revenue,CCHD,Bed Purchasing - Under 65s PWLD - South,Permanent Residential,5Th Floor Harlech Court,15828.36, 18-Feb-2014
34,Revenue,CCHD,Bed purchasing - Under 65s PWLD - North,Permanent Residential,5Th Floor Harlech Court,13625.24, 18-Feb-2014
35,Revenue,CCHD,Bed purchasing - Under 65s PWLD - North,Permanent Residential,5Th Floor Harlech Court,95376.68, 18-Feb-2014
36,Revenue,CCHD,Bed purchasing - Under 65s PWLD - North,Permanent Residential,5Th Floor Harlech Court,12964.03, 18-Feb-2014
37,Revenue,CCHD,Bed purchasing - Under 65s PWLD - North,Permanent Residential,5Th Floor Harlech Court,13758.48, 18-Feb-2014
38,Revenue,CCHD,Bed purchasing - Under 65s PWLD - North,Permanent Residential,5Th Floor Harlech Court,147903.66, 18-Feb-2014
39,Revenue,CCHD,Bed purchasing - Under 65s PWLD - North,Permanent Residential,5Th Floor Harlech Court,13758.48, 18-Feb-2014
40,Revenue,CCHD,Bed purchasing - Under 65s PWLD - North,Permanent Residential,5Th Floor Harlech Court,16352.68, 18-Feb-2014
41,Revenue,CCHD,Bed purchasing - Under 65s PWLD - North,Permanent Residential,5Th Floor Harlech Court,16352.68, 18-Feb-2014
42,Revenue,CCHD,Bed purchasing - Under 65s PWLD - North,Permanent Residential,5Th Floor Harlech Court,15524.72, 18-Feb-2014
43,Revenue,CCHD,Bed purchasing - Under 65s PWLD - North,Permanent Residential,5Th Floor Harlech Court,15524.72, 18-Feb-2014
44,Revenue,CCHD,Woodleaze,Prop.Serv. General Repairs,A E Horder (Contracting) Limited,584.33, 14-Feb-2014
45,Revenue,CCHD,Direct Payments - Phys Dis - North,Grants to Voluntary Bodies,A4E Management Limited,23434.92, 26-Feb-2014
46,Revenue,CCHD,Bed purchasing - Phys Dis - North,Permanent Nursing,ABI Development Limited,6874.36, 18-Feb-2014
47,Revenue,CCHD,Day Care - South,Private & Voluntary Day Care,About Me Care and Support Limited,730.82, 17-Feb-2014
48,Revenue,CCHD,Day Care - North,Private & Voluntary Day Care,About Me Care and Support Limited,1243.88, 18-Feb-2014
49,Revenue,CCHD,Day Care - South,Private & Voluntary Day Care,About Me Care and Support Limited,831.48, 17-Feb-2014
50,Revenue,CCHD,Day Care - South,Private & Voluntary Day Care,About Me Care and Support Limited,986.81, 21-Feb-2014
51,Revenue,CCHD,Day Care - North,Private & Voluntary Day Care,About Me Care and Support Limited,1434.06, 24-Feb-2014
52,Revenue,CCHD,Day Care - South,Private & Voluntary Day Care,About Me Care and Support Limited,739.1, 21-Feb-2014
53,Revenue,CCHD,Bed purchasing - Under 65s PWLD - North,Permanent Residential,Acorn Care Providers,5744.4, 18-Feb-2014
54,Revenue,CCHD,Home Care - Elderly - South,Other Small Contracts,Agincare Chippenham,1118.26, 17-Feb-2014
55,Revenue,CCHD,Home Care - Elderly - South,Other Small Contracts,Agincare Chippenham,1075.25, 17-Feb-2014
56,Revenue,CCHD,Home Care - Elderly - South,Other Small Contracts,Agincare Chippenham,990.01, 17-Feb-2014
57,Revenue,CCHD,Home Care - Elderly - South,Other Small Contracts,Agincare UK Limited,449.65, 17-Feb-2014
58,Revenue,CCHD,Home Care - Elderly - North,Other Small Contracts,Agincare UK Limited,86.02, 17-Feb-2014
59,Revenue,CCHD,Elderly MH Day Care North,Private & Voluntary Day Care,Agincare UK Limited,54.74, 17-Feb-2014
60,Revenue,CCHD,Home Care - Elderly - South,Other Small Contracts,Agincare UK Limited,445.74, 17-Feb-2014
61,Revenue,CCHD,Home Care - Elderly - North,Other Small Contracts,Agincare UK Limited,86.02, 17-Feb-2014
62,Revenue,CCHD,Elderly MH Day Care North,Private & Voluntary Day Care,Agincare UK Limited,54.74, 17-Feb-2014
63,Revenue,CCHD,Cambrian Green Day Service,Furniture & Fittings Loose,Aiveen Interiors Limited,16464, 28-Feb-2014
64,Revenue,CCHD,S117 Placements PCT,Permanent Residential,Alexandra House,6875.64, 18-Feb-2014
65,Revenue,CCHD,Bed Purchasing - Under 65s PWLD - South,Permanent Residential,Alexandra House,6069, 18-Feb-2014
66,Revenue,CCHD,Section 117 Placements MH Younger,Permanent Residential,Alexandra House,6400.88, 18-Feb-2014
67,Revenue,CCHD,Home Care - Elderly - South,Other Small Contracts,AliMo Care Ltd,619.5, 07-Feb-2014
68,Revenue,CCHD,Home Care - Elderly - North,Other Small Contracts,AliMo Care Ltd,995.26, 07-Feb-2014
69,Revenue,CCHD,Home Care - Elderly - South,Other Small Contracts,AliMo Care Ltd,751.67, 21-Feb-2014
70,Revenue,CCHD,Home Care - Elderly - North,Other Small Contracts,AliMo Care Ltd,1321.52, 21-Feb-2014
71,Revenue,CCHD,Home Care - Elderly - South,Other Small Contracts,AliMo Care Ltd,982.95, 19-Feb-2014
72,Revenue,CCHD,Home Care - Elderly - North,Other Small Contracts,AliMo Care Ltd,1610.62, 19-Feb-2014
73,Revenue,CCHD,Home Care - Elderly - South,Other Small Contracts,AliMo Care Ltd,962.29, 27-Feb-2014
74,Revenue,CCHD,Home Care - Elderly - North,Other Small Contracts,AliMo Care Ltd,1598.24, 27-Feb-2014
75,Revenue,CCHD,Bed Purchasing - Southmead Hospital,Permanent Nursing,Ambleside Nusing Ho!,1425.36, 18-Feb-2014
76,Revenue,CCHD,Bed purchasing - Under 65s PWLD - North,Permanent Residential,Ark Care Homes Ltd,10163.76, 18-Feb-2014
77,Revenue,CCHD,Drug Misuse - Adults,Other Supplies & Services,Asda Stores Limited,825, 24-Feb-2014
78,Revenue,CCHD,Bed Purchasing - Elderly - South,Permanent Residential,Ashbourne House Care Home Limited,1107.96, 18-Feb-2014
79,Revenue,CCHD,Home Care - Elderly - South,Other Small Contracts,Ashley Commercial Finance Ltd,875.7, 03-Feb-2014
80,Revenue,CCHD,Home Care - Elderly - North,Other Small Contracts,Ashley Commercial Finance Ltd,2251.8, 03-Feb-2014
81,Revenue,CCHD,Home Care - Elderly - South,Other Small Contracts,Ashley Commercial Finance Ltd,1025.82, 11-Feb-2014
82,Revenue,CCHD,Home Care - Elderly - North,Other Small Contracts,Ashley Commercial Finance Ltd,2689.65, 11-Feb-2014
83,Revenue,CCHD,Home Care - Elderly - South,Other Small Contracts,Ashley Commercial Finance Ltd,1138.41, 07-Feb-2014
84,Revenue,CCHD,Home Care - Elderly - North,Other Small Contracts,Ashley Commercial Finance Ltd,2768.88, 07-Feb-2014
85,Revenue,CCHD,Home Care - Elderly - South,Other Small Contracts,Ashley Commercial Finance Ltd,1009.14, 11-Feb-2014
86,Revenue,CCHD,Home Care - Elderly - North,Other Small Contracts,Ashley Commercial Finance Ltd,2902.32, 11-Feb-2014
87,Revenue,CCHD,Home Care - Elderly - South,Other Small Contracts,Ashley Commercial Finance Ltd,1059.18, 21-Feb-2014
88,Revenue,CCHD,Home Care - Elderly - North,Other Small Contracts,Ashley Commercial Finance Ltd,2910.66, 21-Feb-2014
89,Revenue,CCHD,Home Care - Elderly - South,Other Small Contracts,Ashley Commercial Finance Ltd,1215.77, 21-Feb-2014
90,Revenue,CCHD,Home Care - Elderly - North,Other Small Contracts,Ashley Commercial Finance Ltd,2910.66, 21-Feb-2014
91,Revenue,CCHD,Home Care - Elderly - South,Other Small Contracts,Ashley Commercial Finance Ltd,1150.92, 21-Feb-2014
92,Revenue,CCHD,Home Care - Elderly - North,Other Small Contracts,Ashley Commercial Finance Ltd,2731.35, 21-Feb-2014
93,Revenue,CCHD,Bed purchasing - Under 65s PWLD - North,Permanent Residential,Aspects 2 Limited,6265.24, 18-Feb-2014
94,Revenue,CCHD,Supporting People Programme,Grants to Voluntary Bodies,Aspects and Milestones Trust,3172.58, 28-Feb-2014
95,Revenue,CCHD,Supporting People Programme,Grants to Voluntary Bodies,Aspects and Milestones Trust,1590.58, 28-Feb-2014
96,Revenue,CCHD,Supporting People Programme,Grants to Voluntary Bodies,Aspects and Milestones Trust,2414.33, 28-Feb-2014
97,Revenue,CCHD,Supported Living - South,Private & Voluntary Home Care,Aspirations Support Bristol Limited,775.5, 28-Feb-2014
98,Revenue,CCHD,Supported Living - South,Private & Voluntary Home Care,Aspirations Support Bristol Limited,3984.29, 28-Feb-2014
99,Revenue,CCHD,Supported Living - South,Private & Voluntary Home Care,Aspirations Support Bristol Limited,3902.14, 28-Feb-2014
100,Revenue,CCHD,Purchase of Non-Res Care - South,Private & Voluntary Day Care,Aspirations Support Bristol Limited,2499.48, 25-Feb-2014
101,Revenue,CCHD,Day Care - South,Private & Voluntary Day Care,Aspirations Support Bristol Limited,1303.19, 28-Feb-2014
102,Revenue,CCHD,Bed Purchasing - Under 65s PWLD - South,Permanent Residential,Autism Specialised Care Homes,5584.12, 18-Feb-2014
103,Revenue,CCHD,Purchase of Non-Res Care - North,Private & Voluntary Day Care,Avon Autistic Foundation Limited,2301.6, 24-Feb-2014
104,Revenue,CCHD,Purchase of Non-Res Care - North,Private & Voluntary Day Care,Avon Autistic Foundation Limited,3387.04, 24-Feb-2014
105,Revenue,CCHD,Bed Purchasing - Elderly - South,Respite Emergency - Nursing,Barchester Healthcare SaltfoDONOTUSE,3600, 14-Feb-2014
106,Revenue,CCHD,Public Health - Admin,Other Supplies & Services,Barnardos,5000, 28-Feb-2014
107,Revenue,CCHD,Purchase of RAC places,Other L.A.'s - General,Bath & North East Somerset Dist Council,3695.99, 27-Feb-2014
108,Revenue,CCHD,Purchase of RAC places,Other L.A.'s - General,Bath & North East Somerset Dist Council,13347.66, 27-Feb-2014
109,Revenue,CCHD,Bed Purchasing - Frenchay Hospital,Permanent Nursing,Bayview Nursing & Residential Home,1463.36, 18-Feb-2014
110,Revenue,CCHD,Bed Purchasing - Elderly - North,Permanent Nursing,Beaufort Grange Care Home,6407.15, 18-Feb-2014
111,Revenue,CCHD,Bed Purchasing - Elderly - North,Permanent Nursing,Beaufort Grange Care Home,920, 18-Feb-2014
112,Revenue,CCHD,Bed Purchasing - Elderly - North,Permanent Nursing,Beaufort Grange Care Home,3047.66, 18-Feb-2014
113,Revenue,CCHD,Swift Dump Code,Permanent Residential,Beaufort Grange Care Home,5808.72, 18-Feb-2014
114,Revenue,CCHD,Bed Purchasing - Elderly - North,Permanent Nursing,Beaufort Grange Care Home,1883.92, 18-Feb-2014
115,Revenue,CCHD,Bed Purchasing - Elderly - North,Permanent Residential,Beaufort House,1801.76, 18-Feb-2014
116,Revenue,CCHD,Bed purchasing - Elderly MH - North,Permanent Residential,Beaufort House,1514.84, 18-Feb-2014
117,Revenue,CCHD,Bed purchasing - Elderly MH - North,Permanent Residential,Beaufort House,1383.68, 18-Feb-2014
118,Revenue,CCHD,Bed Purchasing - Elderly - North,Permanent Residential,Beaufort House,1836.08, 18-Feb-2014
119,Revenue,CCHD,Bed Purchasing - Frenchay Hospital,Permanent Residential,Beaufort House,1285.32, 18-Feb-2014
120,Revenue,CCHD,Bed Purchasing - Elderly - North,Permanent Residential,Beaufort House,1726.68, 18-Feb-2014
121,Revenue,CCHD,Bed purchasing - Elderly MH - North,Permanent Residential,Beaufort House,1684.12, 18-Feb-2014
122,Revenue,CCHD,Bed Purchasing - Elderly - North,Permanent Residential,Beaufort House,1519.32, 18-Feb-2014
123,Revenue,CCHD,Bed purchasing - Elderly PWLD - South,Permanent Residential,Bedrock Lodge,2909.4, 18-Feb-2014
124,Revenue,CCHD,Section 117 Placements MH Younger,Permanent Residential,Bedrock Lodge,1837.68, 18-Feb-2014
125,Revenue,CCHD,Bed Purchasing - Elderly - North,Permanent Nursing,Beech House,2314.84, 18-Feb-2014
126,Revenue,CCHD,Bed Purchasing - Elderly - North,Permanent Residential,Beech House,1885.64, 18-Feb-2014
127,Revenue,CCHD,Bed Purchasing - Elderly - North,Permanent Nursing,Beech House,2095.68, 18-Feb-2014
128,Revenue,CCHD,Bed Purchasing - Elderly - North,Permanent Nursing,Beech House,725.16, 18-Feb-2014
129,Revenue,CCHD,Bed Purchasing - Elderly - North,Permanent Nursing,Blossom Field,1843.72, 18-Feb-2014
130,Revenue,CCHD,Bed Purchasing - Elderly - North,Permanent Nursing,Blossom Field,1911, 18-Feb-2014
131,Revenue,CCHD,Bed Purchasing - Elderly - North,Permanent Nursing,Blossom Field,1096.6, 18-Feb-2014
132,Revenue,CCHD,Bed Purchasing - Elderly - North,Permanent Nursing,Blossom Field,2271, 18-Feb-2014
133,Revenue,CCHD,Bed purchasing - Elderly MH - North,Permanent Nursing,Blossom Field,1400.04, 18-Feb-2014
134,Revenue,CCHD,Bed Purchasing - Elderly - South,Permanent Nursing,Blossom Field,1884.56, 18-Feb-2014
135,Revenue,CCHD,Bed Purchasing - Elderly - North,Permanent Nursing,Blossom Fields,2551.21, 13-Feb-2014
136,Revenue,CCHD,Bed Purchasing - Southmead Hospital,Permanent Nursing,Blossom Fields,2065.21, 13-Feb-2014
137,Revenue,CCHD,South Glos Users in South Glos Homes,Permanent Nursing,Blossom Fields,878.32, 13-Feb-2014
138,Revenue,CCHD,Bed purchasing - Elderly MH - North,Permanent Nursing,Blossom Fields,1544.57, 13-Feb-2014
139,Revenue,CCHD,Training - Adult Services,Training Expenses,Bob Dawson,1125, 11-Feb-2014
140,Revenue,CCHD,Stop Smoking Services and Interventions,Other Supplies & Services,Boots UK Ltd,1550, 12-Feb-2014
141,Revenue,CCHD,Sexual Health Services - STI & Treatment,Other Supplies & Services,Boots UK Ltd,3926, 12-Feb-2014
142,Revenue,CCHD,Drug Misuse - Adults,Other Supplies & Services,Boots UK Ltd,10500, 24-Feb-2014
143,Revenue,CCHD,Bed purchasing - Under 65s PWLD - North,Permanent Residential,Bradbury House,17265.6, 18-Feb-2014
144,Revenue,CCHD,Home Care - Elderly - North,Other Small Contracts,Bradley House Home Care Services,1763.99, 17-Feb-2014
145,Revenue,CCHD,Day Care - North,Private & Voluntary Day Care,Bradley House Home Care Services,101.04, 17-Feb-2014
146,Revenue,CCHD,Home Care - Elderly - North,Other Small Contracts,Bradley House Home Care Services,1671.37, 17-Feb-2014
147,Revenue,CCHD,Day Care - North,Private & Voluntary Day Care,Bradley House Home Care Services,101.04, 17-Feb-2014
148,Revenue,CCHD,Home Care - Elderly - North,Other Small Contracts,Bradley House Home Care Services,1507.18, 17-Feb-2014
149,Revenue,CCHD,Day Care - North,Private & Voluntary Day Care,Bradley House Home Care Services,101.04, 17-Feb-2014
150,Revenue,CCHD,Alexandra Way,"Provisions (Food, etc)",Brake Bros,550.74, 14-Feb-2014
151,Revenue,CCHD,Woodleaze,"Provisions (Food, etc)",Brake Bros,604.44, 13-Feb-2014
152,Revenue,CCHD,Woodleaze,"Provisions (Food, etc)",Brake Bros,691.38, 24-Feb-2014
153,Revenue,CCHD,Bed Purchasing - S28A - Over 65- North,Permanent Residential,Brandon Trust,3054.48, 18-Feb-2014
154,Revenue,CCHD,Bed Purchasing - S28A - Over 65- North,Permanent Residential,Brandon Trust,3054.48, 18-Feb-2014
155,Revenue,CCHD,Bed Purchasing - Under 65s PWLD - South,Permanent Residential,Brandon Trust,10118.24, 18-Feb-2014
156,Revenue,CCHD,Bed Purchasing - Under 65s PWLD - South,Permanent Residential,Brandon Trust,10118.24, 18-Feb-2014
157,Revenue,CCHD,Bed Purchasing - Under 65s PWLD - South,Permanent Residential,Brandon Trust,3976.8, 18-Feb-2014
158,Revenue,CCHD,Bed Purchasing - Under 65s PWLD - South,Permanent Residential,Brandon Trust,3976.8, 18-Feb-2014
159,Revenue,CCHD,Bed purchasing - Elderly PWLD - South,Permanent Residential,Brandon Trust,3412.04, 18-Feb-2014
160,Revenue,CCHD,Bed purchasing - Elderly PWLD - South,Permanent Residential,Brandon Trust,3412.04, 18-Feb-2014
161,Revenue,CCHD,Bed Purchasing - LD S28A- Over 65- South,Permanent Nursing,Brandon Trust,4792.12, 18-Feb-2014
162,Revenue,CCHD,Bed Purchasing - LD S28A- Over 65- South,Permanent Nursing,Brandon Trust,4792.12, 18-Feb-2014
163,Revenue,CCHD,Bed Purchasing - Under 65s PWLD - South,Permanent Nursing,Brandon Trust,4962.92, 18-Feb-2014
164,Revenue,CCHD,Bed Purchasing - Under 65s PWLD - South,Permanent Nursing,Brandon Trust,4962.92, 18-Feb-2014
165,Revenue,CCHD,Bed purchasing - S28A Under 65 - South,Permanent Nursing,Brandon Trust,5280.52, 18-Feb-2014
166,Revenue,CCHD,Bed purchasing - S28A Under 65 - South,Permanent Nursing,Brandon Trust,5280.52, 18-Feb-2014
167,Revenue,CCHD,Bed purchasing - S28A Under 65 - South,Permanent Residential,Brandon Trust,4832.6, 18-Feb-2014
168,Revenue,CCHD,Bed purchasing - S28A Under 65 - South,Permanent Residential,Brandon Trust,4832.6, 18-Feb-2014
169,Revenue,CCHD,Bed purchasing - S28A Under 65 - South,Permanent Nursing,Brandon Trust,5280.52, 18-Feb-2014
170,Revenue,CCHD,Bed purchasing - S28A Under 65 - South,Permanent Nursing,Brandon Trust,5280.52, 18-Feb-2014
171,Revenue,CCHD,Bed Purchasing - LD S28A- Over 65- South,Permanent Nursing,Brandon Trust,5109.72, 18-Feb-2014
172,Revenue,CCHD,Bed Purchasing - LD S28A- Over 65- South,Permanent Nursing,Brandon Trust,5109.72, 18-Feb-2014
173,Revenue,CCHD,Bed Purchasing - LD S28A- Over 65- South,Permanent Nursing,Brandon Trust,4777.8, 18-Feb-2014
174,Revenue,CCHD,Bed Purchasing - LD S28A- Over 65- South,Permanent Nursing,Brandon Trust,4777.8, 18-Feb-2014
175,Revenue,CCHD,Bed Purchasing - Under 65s PWLD - South,Permanent Residential,Brandon Trust,3225.28, 18-Feb-2014
176,Revenue,CCHD,Bed Purchasing - Under 65s PWLD - South,Permanent Residential,Brandon Trust,3225.28, 18-Feb-2014
177,Revenue,CCHD,Bed Purchasing - S28A - Over 65- North,Permanent Nursing,Brandon Trust,4742.68, 18-Feb-2014
178,Revenue,CCHD,Bed Purchasing - S28A - Over 65- North,Permanent Nursing,Brandon Trust,4742.68, 18-Feb-2014
179,Revenue,CCHD,Bed purchasing - S28A Under 65 - South,Permanent Residential,Brandon Trust,5126.44, 18-Feb-2014
180,Revenue,CCHD,Bed purchasing - S28A Under 65 - South,Permanent Residential,Brandon Trust,5126.44, 18-Feb-2014
181,Revenue,CCHD,Bed purchasing - S28A Under 65 - South,Permanent Residential,Brandon Trust,5181.28, 18-Feb-2014
182,Revenue,CCHD,Bed purchasing - S28A Under 65 - South,Permanent Residential,Brandon Trust,5181.28, 18-Feb-2014
183,Revenue,CCHD,Bed Purchasing - S28A - Over 65- North,Permanent Residential,Brandon Trust,10838.48, 18-Feb-2014
184,Revenue,CCHD,Bed Purchasing - S28A - Over 65- North,Permanent Residential,Brandon Trust,10838.48, 18-Feb-2014
185,Revenue,CCHD,Bed purchasing - S28A Under 65 - South,Permanent Nursing,Brandon Trust,5280.52, 18-Feb-2014
186,Revenue,CCHD,Bed purchasing - S28A Under 65 - South,Permanent Nursing,Brandon Trust,5280.52, 18-Feb-2014
187,Revenue,CCHD,Bed purchasing - S28A Under 65 - South,Permanent Nursing,Brandon Trust,5280.52, 18-Feb-2014
188,Revenue,CCHD,Bed purchasing - S28A Under 65 - South,Permanent Nursing,Brandon Trust,5280.52, 18-Feb-2014
189,Revenue,CCHD,Bed purchasing -S28A  Under 65 - North,Permanent Nursing,Brandon Trust,4712.96, 18-Feb-2014
190,Revenue,CCHD,Bed purchasing -S28A  Under 65 - North,Permanent Nursing,Brandon Trust,4712.96, 18-Feb-2014
191,Revenue,CCHD,Bed purchasing - S28A Under 65 - South,Permanent Residential,Brandon Trust,5181.28, 18-Feb-2014
192,Revenue,CCHD,Bed purchasing - S28A Under 65 - South,Permanent Residential,Brandon Trust,5181.28, 18-Feb-2014
193,Revenue,CCHD,Bed Purchasing - LD S28A- Over 65- South,Permanent Residential,Brandon Trust,4681.52, 18-Feb-2014
194,Revenue,CCHD,Bed Purchasing - LD S28A- Over 65- South,Permanent Residential,Brandon Trust,4681.52, 18-Feb-2014
195,Revenue,CCHD,Day Care - North,Private & Voluntary Day Care,Bridge House Care Home,1062, 18-Feb-2014
196,Revenue,CCHD,Bed Purchasing - Elderly - North,Permanent Residential,Bridge House Care Home,1000.04, 18-Feb-2014
197,Revenue,CCHD,Bed Purchasing - Elderly - North,Permanent Residential,Bridge House Care Home,1150.56, 18-Feb-2014
198,Revenue,CCHD,Bed Purchasing - Elderly MH - South,Permanent Residential,Brightbow,2067.28, 18-Feb-2014
199,Revenue,CCHD,MH Purchasing - Younger,Permanent Residential,Brightbow,1467.4, 18-Feb-2014
200,Revenue,CCHD,Purchase of RAC places,Other L.A.'s - General,Bristol City Council,2058.87, 28-Feb-2014
201,Revenue,CCHD,Purchase of RAC places,Other L.A.'s - General,Bristol City Council,1556.13, 28-Feb-2014
202,Revenue,CCHD,Purchase of RAC places,Other L.A.'s - General,Bristol City Council,1995.49, 28-Feb-2014
203,Revenue,CCHD,TSG Practice Placements,Training Expenses,Bristol City Council,960, 14-Feb-2014
204,Revenue,CCHD,Supported Living - North,Private & Voluntary Home Care,Bristol Houses UK Limited,1303.14, 26-Feb-2014
205,Revenue,CCHD,Supported Living - North,Private & Voluntary Home Care,Bristol Houses UK Limited,1056.6, 26-Feb-2014
206,Revenue,CCHD,Day Care - North,Private & Voluntary Day Care,Bristol Houses UK Limited,1523.27, 26-Feb-2014
207,Revenue,CCHD,Supported Living - North,Private & Voluntary Home Care,Bristol Houses UK Limited,792.45, 26-Feb-2014
208,Revenue,CCHD,Day Care - North,Private & Voluntary Day Care,Bristol Houses UK Limited,2394.96, 26-Feb-2014
209,Revenue,CCHD,Supported Living - North,Private & Voluntary Home Care,Bristol Houses UK Limited,545.04, 26-Feb-2014
210,Revenue,CCHD,Supported Living - North,Private & Voluntary Home Care,Bristol Houses UK Limited,968.96, 26-Feb-2014
211,Revenue,CCHD,Day Care - North,Private & Voluntary Day Care,Bristol Houses UK Limited,605.6, 26-Feb-2014
212,Revenue,CCHD,Supported Living - North,Private & Voluntary Home Care,Bristol Houses UK Limited,693.3, 26-Feb-2014
213,Revenue,CCHD,Bed and Breakfast,Bed & Breakfast,Bristol Housing & Support Limited,720, 03-Feb-2014
214,Revenue,CCHD,Bed and Breakfast,Bed & Breakfast,Bristol Housing & Support Limited,560, 03-Feb-2014
215,Revenue,CCHD,Bed and Breakfast,Bed & Breakfast,Bristol Housing & Support Limited,560, 10-Feb-2014
216,Revenue,CCHD,Bed and Breakfast,Bed & Breakfast,Bristol Housing & Support Limited,710, 17-Feb-2014
217,Revenue,CCHD,Purchase of Non-Res Care - North,Private & Voluntary Day Care,Bristol Water Plc,53290, 13-Feb-2014
218,Revenue,CCHD,Newton House,Other Supplies & Services,Bristol Wessex Billing Services Limited,1059.88, 24-Feb-2014
219,Revenue,CCHD,Day Care - South,Private & Voluntary Day Care,Britannia House,901.6, 18-Feb-2014
220,Revenue,CCHD,Day Care - South,Private & Voluntary Day Care,Britannia House,676.2, 18-Feb-2014
221,Revenue,CCHD,Day Care - South,Private & Voluntary Day Care,Britannia House,676.2, 18-Feb-2014
222,Revenue,CCHD,Day Care - North,Private & Voluntary Day Care,Britannia House,901.6, 18-Feb-2014
223,Revenue,CCHD,Day Care - South,Private & Voluntary Day Care,Britannia House,676.2, 18-Feb-2014
224,Revenue,CCHD,Day Care - North,Private & Voluntary Day Care,Britannia House,901.6, 18-Feb-2014
225,Revenue,CCHD,Day Care - South,Private & Voluntary Day Care,Britannia House,563.5, 18-Feb-2014
226,Revenue,CCHD,Day Care - South,Private & Voluntary Day Care,Britannia House,1127, 18-Feb-2014
227,Revenue,CCHD,Home Care - Elderly - South,Other Small Contracts,Britannia House,676.2, 18-Feb-2014
228,Revenue,CCHD,Day Care - South,Private & Voluntary Day Care,Britannia House,676.2, 18-Feb-2014
229,Revenue,CCHD,Day Care - South,Private & Voluntary Day Care,Britannia House,676.2, 18-Feb-2014
230,Revenue,CCHD,Supporting People Programme,Grants to Voluntary Bodies,Bromford Housing Group,14050.25, 28-Feb-2014
231,Revenue,CCHD,Minor Adaptations Service,Operational Equipment,Brown and Partners Ltd,487.62, 24-Feb-2014
232,Revenue,CCHD,Home Care - Elderly - North,Private & Voluntary Home Care,Brunelcare,19454, 04-Feb-2014
233,Revenue,CCHD,Home Care - Elderly - North,Private & Voluntary Home Care,Brunelcare,19454, 10-Feb-2014
234,Revenue,CCHD,Home Care - Elderly - North,Private & Voluntary Home Care,Brunelcare,19454, 17-Feb-2014
235,Revenue,CCHD,Home Care - Elderly - North,Private & Voluntary Home Care,Brunelcare,19454, 24-Feb-2014
236,Revenue,CCHD,Home Care - Elderly - North,Private & Voluntary Home Care,Brunelcare,4130.2, 04-Feb-2014
237,Revenue,CCHD,Home Care - Elderly - South,Other Small Contracts,Brunelcare,3170.16, 18-Feb-2014
238,Revenue,CCHD,Home Care - Elderly - North,Other Small Contracts,Brunelcare,4563.32, 18-Feb-2014
239,Revenue,CCHD,Day Care - South,Private & Voluntary Day Care,Brunelcare,28.56, 18-Feb-2014
240,Revenue,CCHD,Day Care - North,Private & Voluntary Day Care,Brunelcare,89.76, 18-Feb-2014
241,Revenue,CCHD,Home Care - Elderly - South,Other Small Contracts,Brunelcare,2794.8, 18-Feb-2014
242,Revenue,CCHD,Home Care - Elderly - North,Other Small Contracts,Brunelcare,4506.2, 18-Feb-2014
243,Revenue,CCHD,Day Care - South,Private & Voluntary Day Care,Brunelcare,28.56, 18-Feb-2014
244,Revenue,CCHD,Day Care - North,Private & Voluntary Day Care,Brunelcare,73.44, 18-Feb-2014
245,Revenue,CCHD,Home Care - Elderly - South,Other Small Contracts,Brunelcare,2647.92, 18-Feb-2014
246,Revenue,CCHD,Home Care - Elderly - North,Other Small Contracts,Brunelcare,4812.2, 18-Feb-2014
247,Revenue,CCHD,Day Care - South,Private & Voluntary Day Care,Brunelcare,32.64, 18-Feb-2014
248,Revenue,CCHD,Day Care - North,Private & Voluntary Day Care,Brunelcare,85.68, 18-Feb-2014
249,Revenue,CCHD,Home Care - Elderly - South,Other Small Contracts,Brunelcare,2570.4, 18-Feb-2014
250,Revenue,CCHD,Home Care - Elderly - North,Other Small Contracts,Brunelcare,4742.6, 18-Feb-2014
251,Revenue,CCHD,Day Care - South,Private & Voluntary Day Care,Brunelcare,28.56, 18-Feb-2014
252,Revenue,CCHD,Day Care - North,Private & Voluntary Day Care,Brunelcare,81.6, 18-Feb-2014
253,Revenue,CCHD,Home Care - Elderly - South,Other Small Contracts,Brunelcare,2615.28, 25-Feb-2014
254,Revenue,CCHD,Home Care - Elderly - North,Other Small Contracts,Brunelcare,4722.84, 25-Feb-2014
255,Revenue,CCHD,Day Care - South,Private & Voluntary Day Care,Brunelcare,28.56, 25-Feb-2014
256,Revenue,CCHD,Day Care - North,Private & Voluntary Day Care,Brunelcare,81.6, 25-Feb-2014
257,Revenue,CCHD,Home Care - Elderly - South,Other Small Contracts,Brunelcare,2435.76, 25-Feb-2014
258,Revenue,CCHD,Home Care - Elderly - North,Other Small Contracts,Brunelcare,4490.95, 25-Feb-2014
259,Revenue,CCHD,Day Care - South,Private & Voluntary Day Care,Brunelcare,24.48, 25-Feb-2014
260,Revenue,CCHD,Day Care - North,Private & Voluntary Day Care,Brunelcare,81.6, 25-Feb-2014
261,Revenue,CCHD,Information Systems - Software,Computer Equipment - Purchase,BT Global Services Solutions,983.59, 28-Feb-2014
262,Revenue,CCHD,Woodleaze,Cleaning & Domestic Services,Bunzl Cleaning & Hygiene Supplies,449.76, 12-Feb-2014
263,Revenue,CCHD,Bed purchasing - Elderly MH - North,Permanent Residential,Bupa Care Services  Bridge House,1962.16, 18-Feb-2014
264,Revenue,CCHD,Supported Living - South,Private & Voluntary Home Care,Camphill Communities Thornbury Limited,1753.08, 05-Feb-2014
265,Revenue,CCHD,Supported Living - North,Private & Voluntary Home Care,Camphill Communities Thornbury Limited,2498.76, 05-Feb-2014
266,Revenue,CCHD,Supported Living - North,Private & Voluntary Home Care,Camphill Communities Thornbury Limited,2597.48, 05-Feb-2014
267,Revenue,CCHD,Supported Living - North,Private & Voluntary Home Care,Camphill Communities Thornbury Limited,1822.24, 07-Feb-2014
268,Revenue,CCHD,Supported Living - North,Private & Voluntary Home Care,Camphill Communities Thornbury Limited,2290.92, 12-Feb-2014
269,Revenue,CCHD,Supported Living - North,Private & Voluntary Home Care,Camphill Communities Thornbury Limited,2049.76, 12-Feb-2014
270,Revenue,CCHD,Supported Living - North,Private & Voluntary Home Care,Camphill Communities Thornbury Limited,2016.48, 12-Feb-2014
271,Revenue,CCHD,Supported Living - North,Private & Voluntary Home Care,Camphill Communities Thornbury Limited,2563.76, 17-Feb-2014
272,Revenue,CCHD,Supported Living - North,Private & Voluntary Home Care,Camphill Communities Thornbury Limited,2132.92, 19-Feb-2014
273,Revenue,CCHD,Supported Living - North,Private & Voluntary Home Care,Camphill Communities Thornbury Limited,2450.96, 19-Feb-2014
274,Revenue,CCHD,Supported Living - North,Private & Voluntary Home Care,Camphill Communities Thornbury Limited,2479.4, 20-Feb-2014
275,Revenue,CCHD,Supported Living - North,Private & Voluntary Home Care,Camphill Communities Thornbury Limited,2237.32, 20-Feb-2014
276,Revenue,CCHD,Supported Living - North,Private & Voluntary Home Care,Camphill Communities Thornbury Limited,1792.96, 20-Feb-2014
277,Revenue,CCHD,Supported Living - North,Private & Voluntary Home Care,Camphill Communities Thornbury Limited,2303.08, 20-Feb-2014
278,Revenue,CCHD,Supported Living - North,Private & Voluntary Home Care,Camphill Communities Thornbury Limited,2203.08, 20-Feb-2014
279,Revenue,CCHD,Supported Living - North,Private & Voluntary Home Care,Camphill Communities Thornbury Limited,2793.8, 27-Feb-2014
280,Revenue,CCHD,Bed Purchasing - Elderly S117- North,Permanent Residential,Canjayor,4600, 18-Feb-2014
281,Revenue,CCHD,Home Care - Elderly - South,Other Small Contracts,Care 1st Homecare,4106.36, 03-Feb-2014
282,Revenue,CCHD,Home Care - Elderly - North,Other Small Contracts,Care 1st Homecare,3259.73, 03-Feb-2014
283,Revenue,CCHD,Day Care - North,Private & Voluntary Day Care,Care 1st Homecare,98.16, 03-Feb-2014
284,Revenue,CCHD,Home care - Elderly MH - North,Other Small Contracts,Care 1st Homecare,57.26, 03-Feb-2014
285,Revenue,CCHD,Home Care - Elderly - South,Other Small Contracts,Care 1st Homecare,3881.41, 03-Feb-2014
286,Revenue,CCHD,Home Care - Elderly - North,Other Small Contracts,Care 1st Homecare,3636.01, 03-Feb-2014
287,Revenue,CCHD,Home care - Elderly MH - North,Other Small Contracts,Care 1st Homecare,57.26, 03-Feb-2014
288,Revenue,CCHD,Home Care - Elderly - South,Other Small Contracts,Care 1st Homecare,3697.36, 03-Feb-2014
289,Revenue,CCHD,Home Care - Elderly - North,Other Small Contracts,Care 1st Homecare,3607.38, 03-Feb-2014
290,Revenue,CCHD,Home care - Elderly MH - North,Other Small Contracts,Care 1st Homecare,65.44, 03-Feb-2014
291,Revenue,CCHD,Home Care - Elderly - South,Other Small Contracts,Care 1st Homecare,3546.03, 03-Feb-2014
292,Revenue,CCHD,Home Care - Elderly - North,Other Small Contracts,Care 1st Homecare,3361.98, 03-Feb-2014
293,Revenue,CCHD,Home Care - Elderly - South,Other Small Contracts,Care 1st Homecare,3889.59, 03-Feb-2014
294,Revenue,CCHD,Home Care - Elderly - North,Other Small Contracts,Care 1st Homecare,3656.46, 03-Feb-2014
295,Revenue,CCHD,Home care - Elderly MH - North,Other Small Contracts,Care 1st Homecare,32.72, 03-Feb-2014
296,Revenue,CCHD,Home Care - Elderly - South,Other Small Contracts,Care 1st Homecare,3938.67, 13-Feb-2014
297,Revenue,CCHD,Home Care - Elderly - North,Other Small Contracts,Care 1st Homecare,3844.6, 13-Feb-2014
298,Revenue,CCHD,Home Care - Elderly - South,Other Small Contracts,Care 1st Homecare,3460.14, 03-Feb-2014
299,Revenue,CCHD,Home Care - Elderly - North,Other Small Contracts,Care 1st Homecare,3828.24, 03-Feb-2014
300,Revenue,CCHD,Home care - Elderly MH - North,Other Small Contracts,Care 1st Homecare,65.44, 03-Feb-2014
301,Revenue,CCHD,Home Care - Elderly - South,Other Small Contracts,Care 1st Homecare,3267.91, 19-Feb-2014
302,Revenue,CCHD,Home Care - Elderly - North,Other Small Contracts,Care 1st Homecare,3758.71, 19-Feb-2014
303,Revenue,CCHD,Home care - Elderly MH - North,Other Small Contracts,Care 1st Homecare,57.26, 19-Feb-2014
304,Revenue,CCHD,Home Care - Elderly - South,Other Small Contracts,Care 1st Homecare,3513.52, 19-Feb-2014
305,Revenue,CCHD,Home Care - Elderly - North,Other Small Contracts,Care 1st Homecare,4662, 19-Feb-2014
306,Revenue,CCHD,Home care - Elderly MH - North,Other Small Contracts,Care 1st Homecare,65.44, 19-Feb-2014
307,Revenue,CCHD,Bed Purchasing - PWLD S 117 Placements,Permanent Residential,Care Community Ltd,7536.4, 18-Feb-2014
308,Revenue,CCHD,Home Care - Elderly - North,Other Small Contracts,Care Horizons Limited,2141.26, 17-Feb-2014
309,Revenue,CCHD,Day Care - South,Private & Voluntary Day Care,Care Horizons Limited,359.16, 17-Feb-2014
310,Revenue,CCHD,Home Care - Elderly - North,Other Small Contracts,Care Horizons Limited,2144.34, 17-Feb-2014
311,Revenue,CCHD,Day Care - South,Private & Voluntary Day Care,Care Horizons Limited,346.02, 17-Feb-2014
312,Revenue,CCHD,Home Care - Elderly - North,Other Small Contracts,Care Horizons Limited,2116.1, 17-Feb-2014
313,Revenue,CCHD,Day Care - South,Private & Voluntary Day Care,Care Horizons Limited,354.78, 17-Feb-2014
314,Revenue,CCHD,Purchase of Non-Res Care - North,Private & Voluntary Day Care,Care Horizons Limited,1856.95, 24-Feb-2014
315,Revenue,CCHD,Purchase of Non-Res Care - North,Private & Voluntary Day Care,Care Horizons Limited,1184.17, 24-Feb-2014
316,Revenue,CCHD,Purchase of Non-Res Care - North,Private & Voluntary Day Care,Care Horizons Limited,1334.51, 24-Feb-2014
317,Revenue,CCHD,Supported Living - South,Private & Voluntary Home Care,Care Horizons Limited,1827.45, 25-Feb-2014
318,Revenue,CCHD,Supported Living - North,Private & Voluntary Home Care,Care Horizons Limited,2940.14, 24-Feb-2014
319,Revenue,CCHD,Supported Living - North,Private & Voluntary Home Care,Care Horizons Limited,2940.14, 24-Feb-2014
320,Revenue,CCHD,Supported Living - North,Private & Voluntary Home Care,Care Horizons Limited,5373.79, 28-Feb-2014
321,Revenue,CCHD,Electronic Home Care Monitoring,Other Supplies & Services,Care Monitoring 2000 Limited,7865.81, 12-Feb-2014
322,Revenue,CCHD,Alexandra Way,Other Supplies & Services,Care Quality Commission,5600, 12-Feb-2014
323,Revenue,CCHD,Woodleaze,Other Supplies & Services,Care Quality Commission,4300, 12-Feb-2014
324,Revenue,CCHD,Employment Support Service,Other Supplies & Services,Care Quality Commission,2000, 12-Feb-2014
325,Revenue,CCHD,Home Care - Elderly - South,Other Small Contracts,Care UK,5454.18, 11-Feb-2014
326,Revenue,CCHD,Home Care - Elderly - North,Other Small Contracts,Care UK,1895.26, 11-Feb-2014
327,Revenue,CCHD,Day Care - South,Private & Voluntary Day Care,Care UK,266.34, 11-Feb-2014
328,Revenue,CCHD,Day Care - North,Private & Voluntary Day Care,Care UK,464.25, 11-Feb-2014
329,Revenue,CCHD,Home care - Elderly MH - North,Other Small Contracts,Care UK,594.44, 11-Feb-2014
330,Revenue,CCHD,Elderly MH Day Care North,Private & Voluntary Day Care,Care UK,138.96, 11-Feb-2014
331,Revenue,CCHD,Home Care - Elderly - South,Other Small Contracts,Care UK,5473.48, 11-Feb-2014
332,Revenue,CCHD,Home Care - Elderly - North,Other Small Contracts,Care UK,1849.91, 11-Feb-2014
333,Revenue,CCHD,Day Care - South,Private & Voluntary Day Care,Care UK,193, 11-Feb-2014
334,Revenue,CCHD,Day Care - North,Private & Voluntary Day Care,Care UK,461.81, 11-Feb-2014
335,Revenue,CCHD,Home care - Elderly MH - North,Other Small Contracts,Care UK,629.18, 11-Feb-2014
336,Revenue,CCHD,Elderly MH Day Care North,Private & Voluntary Day Care,Care UK,138.96, 11-Feb-2014
337,Revenue,CCHD,Home Care - Elderly - South,Other Small Contracts,Care UK,5323.56, 25-Feb-2014
338,Revenue,CCHD,Home Care - Elderly - North,Other Small Contracts,Care UK,1889.35, 25-Feb-2014
339,Revenue,CCHD,Day Care - South,Private & Voluntary Day Care,Care UK,193, 25-Feb-2014
340,Revenue,CCHD,Day Care - North,Private & Voluntary Day Care,Care UK,467.06, 25-Feb-2014
341,Revenue,CCHD,Home care - Elderly MH - North,Other Small Contracts,Care UK,593.22, 25-Feb-2014
342,Revenue,CCHD,Elderly MH Day Care North,Private & Voluntary Day Care,Care UK,138.96, 25-Feb-2014
343,Revenue,CCHD,Home Care - Elderly - South,Other Small Contracts,Care UK,5268.48, 25-Feb-2014
344,Revenue,CCHD,Home Care - Elderly - North,Other Small Contracts,Care UK,1997.82, 25-Feb-2014
345,Revenue,CCHD,Day Care - South,Private & Voluntary Day Care,Care UK,196, 25-Feb-2014
346,Revenue,CCHD,Day Care - North,Private & Voluntary Day Care,Care UK,478.24, 25-Feb-2014
347,Revenue,CCHD,Home care - Elderly MH - North,Other Small Contracts,Care UK,595.84, 25-Feb-2014
348,Revenue,CCHD,Elderly MH Day Care North,Private & Voluntary Day Care,Care UK,145.04, 25-Feb-2014
349,Revenue,CCHD,Home Care - Elderly - South,Other Small Contracts,Care UK,5302.35, 28-Feb-2014
350,Revenue,CCHD,Home Care - Elderly - North,Other Small Contracts,Care UK,1939.02, 28-Feb-2014
351,Revenue,CCHD,Day Care - South,Private & Voluntary Day Care,Care UK,196, 28-Feb-2014
352,Revenue,CCHD,Day Care - North,Private & Voluntary Day Care,Care UK,482.16, 28-Feb-2014
353,Revenue,CCHD,Home care - Elderly MH - North,Other Small Contracts,Care UK,599.76, 28-Feb-2014
354,Revenue,CCHD,Elderly MH Day Care North,Private & Voluntary Day Care,Care UK,141.12, 28-Feb-2014
355,Revenue,CCHD,Home Care - Elderly - North,Other Small Contracts,Carers R Us (Bristol) Limited,854.53, 14-Feb-2014
356,Revenue,CCHD,Home Care - Elderly - South,Other Small Contracts,Carers R Us (Bristol) Limited,103.74, 28-Feb-2014
357,Revenue,CCHD,Home Care - Elderly - North,Other Small Contracts,Carers R Us (Bristol) Limited,901.74, 28-Feb-2014
358,Revenue,CCHD,Home Care - Elderly - South,Other Small Contracts,Carers R Us (Bristol) Limited,111.72, 28-Feb-2014
359,Revenue,CCHD,Home Care - Elderly - North,Other Small Contracts,Carers R Us (Bristol) Limited,726.18, 28-Feb-2014
360,Revenue,CCHD,Home Care - Elderly - South,Other Small Contracts,Carewatch (Bristol),769.25, 14-Feb-2014
361,Revenue,CCHD,Home Care - Elderly - North,Other Small Contracts,Carewatch (Bristol),1636.25, 14-Feb-2014
362,Revenue,CCHD,Home Care - Elderly - South,Other Small Contracts,Carewatch (Bristol),773.5, 14-Feb-2014
363,Revenue,CCHD,Home Care - Elderly - North,Other Small Contracts,Carewatch (Bristol),1606.5, 14-Feb-2014
364,Revenue,CCHD,Home Care - Elderly - South,Other Small Contracts,Carewatch (Bristol),773.5, 14-Feb-2014
365,Revenue,CCHD,Home Care - Elderly - North,Other Small Contracts,Carewatch (Bristol),1147.5, 14-Feb-2014
366,Revenue,CCHD,Elderly MH Day Care South,Private & Voluntary Day Care,Caring Home Healthcare Group Limited,950, 06-Feb-2014
367,Revenue,CCHD,Elderly MH Day Care South,Private & Voluntary Day Care,Caring Home Healthcare Group Limited,1050, 06-Feb-2014
368,Revenue,CCHD,Home Care - Elderly - South,Other Small Contracts,Cash Friday at Lloyds TSB,97.5, 05-Feb-2014
369,Revenue,CCHD,Home Care - Elderly - North,Other Small Contracts,Cash Friday at Lloyds TSB,678.6, 05-Feb-2014
370,Revenue,CCHD,Home Care - Elderly - South,Other Small Contracts,Cash Friday at Lloyds TSB,93.6, 05-Feb-2014
371,Revenue,CCHD,Home Care - Elderly - North,Other Small Contracts,Cash Friday at Lloyds TSB,729.3, 05-Feb-2014
372,Revenue,CCHD,Home Care - Elderly - South,Other Small Contracts,Cash Friday at Lloyds TSB,54.6, 05-Feb-2014
373,Revenue,CCHD,Home Care - Elderly - North,Other Small Contracts,Cash Friday at Lloyds TSB,686.4, 05-Feb-2014
374,Revenue,CCHD,Home Care - Elderly - South,Other Small Contracts,Cash Friday at Lloyds TSB,85.8, 05-Feb-2014
375,Revenue,CCHD,Home Care - Elderly - North,Other Small Contracts,Cash Friday at Lloyds TSB,713.7, 05-Feb-2014
376,Revenue,CCHD,Home Care - Elderly - South,Other Small Contracts,Cash Friday at Lloyds TSB,93.6, 05-Feb-2014
377,Revenue,CCHD,Home Care - Elderly - North,Other Small Contracts,Cash Friday at Lloyds TSB,717.6, 05-Feb-2014
378,Revenue,CCHD,Home Care - Elderly - South,Other Small Contracts,Cash Friday at Lloyds TSB,101.8, 21-Feb-2014
379,Revenue,CCHD,Home Care - Elderly - North,Other Small Contracts,Cash Friday at Lloyds TSB,593.8, 21-Feb-2014
380,Revenue,CCHD,Bed Purchasing - Southmead Hospital,Permanent Residential,Caton House Care Home,3438.24, 18-Feb-2014
381,Revenue,CCHD,Bed Purchasing - Elderly - South,Permanent Residential,Cepen Lodge Care Home,2176.28, 18-Feb-2014
382,Revenue,CCHD,Bed Purchasing - Southmead Hospital,Permanent Residential,Charlton House Residential Home,1385.36, 18-Feb-2014
383,Revenue,CCHD,Training - Adult Services,Training Expenses,Chartered Management Institute,1141, 21-Feb-2014
384,Revenue,CCHD,Home Care - Elderly - South,Other Small Contracts,Cherish Able Care Limited,5979.14, 06-Feb-2014
385,Revenue,CCHD,Home Care - Elderly - South,Other Small Contracts,Cherish Able Care Limited,5690.88, 07-Feb-2014
386,Revenue,CCHD,Home Care - Elderly - South,Other Small Contracts,Cherish Able Care Limited,5873.92, 07-Feb-2014
387,Revenue,CCHD,Home Care - Elderly - South,Other Small Contracts,Cherish Able Care Limited,6531.2, 19-Feb-2014
388,Revenue,CCHD,Home Care - Elderly - South,Other Small Contracts,Cherish Able Care Limited,6260.8, 20-Feb-2014
389,Revenue,CCHD,Home Care - Elderly - South,Other Small Contracts,Cherish Able Care Limited,6140.16, 28-Feb-2014
390,Revenue,CCHD,Bed purchasing -S28A  Under 65 - North,Permanent Residential,Chescombe Lodge,8569.72, 18-Feb-2014
391,Revenue,CCHD,Tenancy Start Up Scheme,Other Supplies & Services,Chew Valley Estates,1725, 20-Feb-2014
392,Revenue,CCHD,Bed Purchasing - Under 65s PWLD - South,Permanent Residential,Chosen Court,6910.16, 18-Feb-2014
393,Revenue,CCHD,Bed Purchasing - PWLD S 117 Placements,Permanent Residential,Chosen Court,8801.84, 18-Feb-2014
394,Revenue,CCHD,Bed Purchasing - Under 65s PWLD - South,Permanent Residential,Chosen Court,5375.48, 18-Feb-2014
395,Revenue,CCHD,Training - Adult Services,Training Expenses,Chris Garnier,800, 21-Feb-2014
396,Revenue,CCHD,Bed purchasing - Under 65s PWLD - North,Permanent Residential,Church House,20708.88, 18-Feb-2014
397,Revenue,CCHD,Bed purchasing - Under 65s PWLD - North,Permanent Residential,Church House,11643.28, 18-Feb-2014
398,Revenue,CCHD,Supported Living - South,Private & Voluntary Home Care,Cintre Community Limited,511.5, 03-Feb-2014
399,Revenue,CCHD,Bed Purchasing - Elderly - South,Permanent Residential,Collingwood Residential Home,1298.48, 18-Feb-2014
400,Revenue,CCHD,Bed Purchasing - Elderly - South,Permanent Residential,Collingwood Residential Home,1298.48, 18-Feb-2014
401,Revenue,CCHD,Bed Purchasing - Elderly - South,Permanent Residential,Collingwood Residential Home,1403.68, 18-Feb-2014
402,Revenue,CCHD,Bed Purchasing - Elderly - South,Permanent Residential,Collingwood Residential Home,1403.68, 18-Feb-2014
403,Revenue,CCHD,Bed Purchasing - Elderly - South,Permanent Residential,Collingwood Residential Home,1421, 18-Feb-2014
404,Revenue,CCHD,Bed Purchasing - Elderly - South,Permanent Residential,Collingwood Residential Home,1421, 18-Feb-2014
405,Revenue,CCHD,Bed Purchasing - Elderly - South,Permanent Residential,Collingwood Residential Home,1089.96, 18-Feb-2014
406,Revenue,CCHD,Bed Purchasing - Elderly MH - South,Permanent Residential,Collingwood Residential Home,1306.28, 18-Feb-2014
407,Revenue,CCHD,Bed Purchasing - Elderly MH - South,Permanent Residential,Collingwood Residential Home,1306.28, 18-Feb-2014
408,Revenue,CCHD,Bed Purchasing - Elderly - South,Permanent Residential,Collingwood Residential Home,1156.52, 18-Feb-2014
409,Revenue,CCHD,Bed Purchasing - Elderly - South,Permanent Residential,Collingwood Residential Home,1156.52, 18-Feb-2014
410,Revenue,CCHD,Bed Purchasing - Elderly - South,Permanent Residential,Collingwood Residential Home,1268.04, 18-Feb-2014
411,Revenue,CCHD,Bed Purchasing - Elderly - South,Permanent Residential,Collingwood Residential Home,1268.04, 18-Feb-2014
412,Revenue,CCHD,Bed Purchasing - Elderly - South,Permanent Residential,Collingwood Residential Home,1405.32, 18-Feb-2014
413,Revenue,CCHD,Bed Purchasing - Elderly - South,Permanent Residential,Collingwood Residential Home,1405.32, 18-Feb-2014
414,Revenue,CCHD,Bed and Breakfast,Bed & Breakfast,Connolly & Callaghan Limited,462, 11-Feb-2014
415,Revenue,CCHD,Bed and Breakfast,Bed & Breakfast,Connolly & Callaghan Limited,473.4, 11-Feb-2014
416,Revenue,CCHD,Bed and Breakfast,Bed & Breakfast,Connolly & Callaghan Limited,459.9, 11-Feb-2014
417,Revenue,CCHD,Bed and Breakfast,Bed & Breakfast,Connolly & Callaghan Limited,491.4, 11-Feb-2014
418,Revenue,CCHD,Bed and Breakfast,Bed & Breakfast,Connolly & Callaghan Limited,462, 24-Feb-2014
419,Revenue,CCHD,Bed and Breakfast,Bed & Breakfast,Connolly & Callaghan Limited,491.4, 24-Feb-2014
420,Revenue,CCHD,Bed and Breakfast,Bed & Breakfast,Connolly & Callaghan Limited,459.9, 24-Feb-2014
421,Revenue,CCHD,Bed and Breakfast,Bed & Breakfast,Connolly & Callaghan Limited,491.4, 24-Feb-2014
422,Revenue,CCHD,Bed and Breakfast,Bed & Breakfast,Connolly & Callaghan Limited,462, 24-Feb-2014
423,Revenue,CCHD,Bed and Breakfast,Bed & Breakfast,Connolly & Callaghan Limited,648.9, 24-Feb-2014
424,Revenue,CCHD,Bed and Breakfast,Bed & Breakfast,Connolly & Callaghan Limited,491.4, 24-Feb-2014
425,Revenue,CCHD,Bed and Breakfast,Bed & Breakfast,Connolly & Callaghan Limited,554.4, 24-Feb-2014
426,Revenue,CCHD,Bed and Breakfast,Bed & Breakfast,Connolly & Callaghan Limited,491.4, 24-Feb-2014
427,Revenue,CCHD,Bed and Breakfast,Bed & Breakfast,Connolly & Callaghan Limited,459.9, 24-Feb-2014
428,Revenue,CCHD,Bed Purchasing - Frenchay Hospital,Permanent Residential,Coombs Wood House,962.96, 18-Feb-2014
429,Revenue,CCHD,Drug Misuse - Adults,Other Supplies & Services,Co-operative Pharmacy,2550, 24-Feb-2014
430,Revenue,CCHD,Bed purchasing -S28A  Under 65 - North,Permanent Residential,Cream Ii Ltd  Longrun House,7924.8, 18-Feb-2014
431,Revenue,CCHD,Bed Purchasing - Under 65s PWLD - South,Permanent Residential,Cream Ii Ltd  Longrun House,5546.44, 18-Feb-2014
432,Revenue,CCHD,Bed purchasing -S28A  Under 65 - North,Permanent Residential,Creedy Court,107598.51, 18-Feb-2014
433,Revenue,CCHD,Bed Purchasing - S28A - Over 65- North,Permanent Residential,Creedy Court,7616.76, 18-Feb-2014
434,Revenue,CCHD,Brokerage and Information Service,Grants to Voluntary Bodies,D H I,9210.08, 27-Feb-2014
435,Revenue,CCHD,Purchase of Non-Res Care - South,Private & Voluntary Day Care,Daneswood,1472.68, 07-Feb-2014
436,Revenue,CCHD,Bed Purchasing - Under 65s PWLD - South,Permanent Residential,Daneswood,10848.44, 18-Feb-2014
437,Revenue,CCHD,Bed purchasing - Under 65s PWLD - North,Permanent Residential,Daneswood,8986.84, 18-Feb-2014
438,Revenue,CCHD,Bed Purchasing - PWLD S 117 Placements,Permanent Nursing,Danshell Healthcare Group,51123.78, 07-Feb-2014
439,Revenue,CCHD,Bed Purchasing - PWLD S 117 Placements,Permanent Nursing,Danshell Healthcare Group,11360.84, 07-Feb-2014
440,Revenue,CCHD,Bed Purchasing - PWLD S 117 Placements,Permanent Nursing,Danshell Healthcare Group,11360.84, 18-Feb-2014
441,Revenue,CCHD,Learning Difficulties PSL,Other Supplies & Services,Individual,2016.44, 21-Feb-2014
442,Revenue,CCHD,Purchase of Non-Res Care - North,Private & Voluntary Day Care,Design 4 Life Ltd,1680.9, 20-Feb-2014
443,Revenue,CCHD,Purchase of Non-Res Care - North,Private & Voluntary Day Care,Design 4 Life Ltd,1293, 20-Feb-2014
444,Revenue,CCHD,Home Care - Elderly - South,Other Small Contracts,Dhek Bhal,445.28, 04-Feb-2014
445,Revenue,CCHD,Home Care - Elderly - North,Other Small Contracts,Dhek Bhal,150.04, 04-Feb-2014
446,Revenue,CCHD,Home Care - Elderly - South,Other Small Contracts,Dhek Bhal,392.04, 11-Feb-2014
447,Revenue,CCHD,Home Care - Elderly - North,Other Small Contracts,Dhek Bhal,154.88, 11-Feb-2014
448,Revenue,CCHD,Home Care - Elderly - South,Other Small Contracts,Dhek Bhal,387.2, 17-Feb-2014
449,Revenue,CCHD,Home Care - Elderly - North,Other Small Contracts,Dhek Bhal,159.72, 17-Feb-2014
450,Revenue,CCHD,Home Care - Elderly - South,Other Small Contracts,Dhek Bhal,387.2, 26-Feb-2014
451,Revenue,CCHD,Home Care - Elderly - North,Other Small Contracts,Dhek Bhal,159.72, 26-Feb-2014
452,Revenue,CCHD,Bed Purchasing - Under 65s PWLD - South,Permanent Residential,Dimensions (Uk),4808.36, 18-Feb-2014
453,Revenue,CCHD,Supported Living - South,Private & Voluntary Home Care,Dimensions (UK) Ltd,8006.68, 14-Feb-2014
454,Revenue,CCHD,Home Care - Elderly - South,Other Small Contracts,DoCare Ltd,4287.06, 28-Feb-2014
455,Revenue,CCHD,Home Care - Elderly - North,Other Small Contracts,DoCare Ltd,8088.44, 28-Feb-2014
456,Revenue,CCHD,Day Care - North,Private & Voluntary Day Care,DoCare Ltd,74.72, 28-Feb-2014
457,Revenue,CCHD,Home Care - Elderly - South,Other Small Contracts,DoCare Ltd,3960.16, 18-Feb-2014
458,Revenue,CCHD,Home Care - Elderly - North,Other Small Contracts,DoCare Ltd,7868.95, 18-Feb-2014
459,Revenue,CCHD,Day Care - North,Private & Voluntary Day Care,DoCare Ltd,79.39, 18-Feb-2014
460,Revenue,CCHD,Home Care - Elderly - South,Other Small Contracts,DoCare Ltd,4351.76, 28-Feb-2014
461,Revenue,CCHD,Home Care - Elderly - North,Other Small Contracts,DoCare Ltd,8527.82, 28-Feb-2014
462,Revenue,CCHD,Day Care - North,Private & Voluntary Day Care,DoCare Ltd,79.39, 28-Feb-2014
463,Revenue,CCHD,Bed Purchasing - Under 65s PWLD - South,Permanent Residential,Dudbridge House,6546.16, 18-Feb-2014
464,Revenue,CCHD,Drug Misuse - Adults,Other Supplies & Services,Dudley Taylor Pharmacies Ltd,1425, 24-Feb-2014
465,Revenue,CCHD,MH Purchasing - Younger,Permanent Residential,Dunraven House,1826.8, 18-Feb-2014
466,Revenue,CCHD,Bed and Breakfast,Bed & Breakfast,E J Bartlett,434, 04-Feb-2014
467,Revenue,CCHD,Bed and Breakfast,Bed & Breakfast,E J Bartlett,434, 10-Feb-2014
468,Revenue,CCHD,Bed and Breakfast,Bed & Breakfast,E J Bartlett,434, 24-Feb-2014
469,Revenue,CCHD,Bed purchasing - Under 65s PWLD - North,Permanent Residential,East Court,2180.72, 18-Feb-2014
470,Revenue,CCHD,Day Care - South,Private & Voluntary Day Care,Easton Community Centre,512.88, 18-Feb-2014
471,Revenue,CCHD,Day Care - South,Private & Voluntary Day Care,Easton Community Centre,512.88, 18-Feb-2014
472,Revenue,CCHD,Younger MH non-res purchasing,Private & Voluntary Day Care,Easton Community Centre,512.88, 18-Feb-2014
473,Revenue,CCHD,Day Care - South,Private & Voluntary Day Care,Easton Community Centre,512.88, 18-Feb-2014
474,Revenue,CCHD,Day Care - South,Private & Voluntary Day Care,Easton Community Centre,512.88, 18-Feb-2014
475,Revenue,CCHD,Bed Purchasing - S28A - Over 65- North,Permanent Residential,Eclipse Office Park,2617.12, 18-Feb-2014
476,Revenue,CCHD,Bed Purchasing - S28A - Over 65- North,Permanent Residential,Eclipse Office Park,2617.12, 18-Feb-2014
477,Revenue,CCHD,Bed Purchasing - Elderly - South,Permanent Residential,Eclipse Office Park,1408.28, 18-Feb-2014
478,Revenue,CCHD,Bed Purchasing - Elderly - South,Permanent Residential,Eclipse Office Park,1408.28, 18-Feb-2014
479,Revenue,CCHD,Bed Purchasing - Under 65s PWLD - South,Permanent Residential,Eclipse Office Park,5601.56, 18-Feb-2014
480,Revenue,CCHD,Bed Purchasing - Under 65s PWLD - South,Permanent Residential,Eclipse Office Park,5601.56, 18-Feb-2014
481,Revenue,CCHD,Bed purchasing - Elderly PWLD - North,Permanent Residential,Eclipse Office Park,3411.76, 18-Feb-2014
482,Revenue,CCHD,Bed purchasing - Elderly PWLD - North,Permanent Residential,Eclipse Office Park,3411.76, 18-Feb-2014
483,Revenue,CCHD,Bed Purchasing - Under 65s PWLD - South,Permanent Residential,Eclipse Office Park,4796.48, 18-Feb-2014
484,Revenue,CCHD,Bed Purchasing - Under 65s PWLD - South,Permanent Residential,Eclipse Office Park,51562.16, 18-Feb-2014
485,Revenue,CCHD,Bed Purchasing - Under 65s PWLD - South,Permanent Residential,Eclipse Office Park,4796.48, 18-Feb-2014
486,Revenue,CCHD,Bed Purchasing - Under 65s PWLD - South,Permanent Residential,Eclipse Office Park,5362.64, 18-Feb-2014
487,Revenue,CCHD,Bed Purchasing - Under 65s PWLD - South,Permanent Residential,Eclipse Office Park,5362.64, 18-Feb-2014
488,Revenue,CCHD,Bed Purchasing - Under 65s PWLD - South,Permanent Nursing,Eclipse Office Park,2784.88, 18-Feb-2014
489,Revenue,CCHD,Bed Purchasing - Under 65s PWLD - South,Permanent Nursing,Eclipse Office Park,2784.88, 18-Feb-2014
490,Revenue,CCHD,Bed purchasing - Elderly MH - North,Permanent Nursing,Eclipse Office Park,1434.2, 18-Feb-2014
491,Revenue,CCHD,Bed purchasing - Elderly MH - North,Permanent Nursing,Eclipse Office Park,1434.2, 18-Feb-2014
492,Revenue,CCHD,Section 117 Placements MH Younger,Permanent Nursing,Eclipse Office Park,1615.36, 18-Feb-2014
493,Revenue,CCHD,Section 117 Placements MH Younger,Permanent Nursing,Eclipse Office Park,1615.36, 18-Feb-2014
494,Revenue,CCHD,Bed Purchasing - Elderly MH - South,Permanent Residential,Eclipse Office Park,3555.92, 18-Feb-2014
495,Revenue,CCHD,Bed Purchasing - Elderly MH - South,Permanent Residential,Eclipse Office Park,3555.92, 18-Feb-2014
496,Revenue,CCHD,Bed purchasing - Elderly S117 - South,Permanent Nursing,Eclipse Office Park,1893.86, 18-Feb-2014
497,Revenue,CCHD,Bed purchasing - Elderly S117 - South,Permanent Nursing,Eclipse Office Park,1964, 18-Feb-2014
498,Revenue,CCHD,Section 117 Placements MH Younger,Permanent Residential,Eclipse Office Park,1336, 18-Feb-2014
499,Revenue,CCHD,Section 117 Placements MH Younger,Permanent Residential,Eclipse Office Park,1336, 18-Feb-2014
500,Revenue,CCHD,Bed purchasing - Elderly S117 - South,Permanent Nursing,Eclipse Office Park,1964, 18-Feb-2014
501,Revenue,CCHD,Bed purchasing - Elderly S117 - South,Permanent Nursing,Eclipse Office Park,1964, 18-Feb-2014
502,Revenue,CCHD,Bed Purchasing - Elderly - South,Permanent Nursing,Eclipse Office Park,1419.6, 18-Feb-2014
503,Revenue,CCHD,Bed Purchasing - Elderly - South,Permanent Nursing,Eclipse Office Park,1419.6, 18-Feb-2014
504,Revenue,CCHD,Bed Purchasing - Under 65s PWLD - South,Respite Emergency - Residential,Eclipse Office Park,1281.86, 18-Feb-2014
505,Revenue,CCHD,Bed purchasing - Elderly PWLD - South,Permanent Residential,Eclipse Office Park,4067.52, 18-Feb-2014
506,Revenue,CCHD,Bed purchasing - Elderly PWLD - South,Permanent Residential,Eclipse Office Park,43725.84, 18-Feb-2014
507,Revenue,CCHD,Bed purchasing - Elderly PWLD - South,Permanent Residential,Eclipse Office Park,4067.52, 18-Feb-2014
508,Revenue,CCHD,Bed purchasing -S28A  Under 65 - North,Permanent Nursing,Eclipse Office Park,5774.8, 18-Feb-2014
509,Revenue,CCHD,South Glos Users in South Glos Homes,Permanent Nursing,Eclipse Office Park,7248.86, 18-Feb-2014
510,Revenue,CCHD,Bed purchasing -S28A  Under 65 - North,Permanent Nursing,Eclipse Office Park,5774.8, 18-Feb-2014
511,Revenue,CCHD,Bed purchasing -S28A  Under 65 - North,Permanent Residential,Eclipse Office Park,5258.88, 18-Feb-2014
512,Revenue,CCHD,Bed purchasing -S28A  Under 65 - North,Permanent Residential,Eclipse Office Park,5258.88, 18-Feb-2014
513,Revenue,CCHD,Bed purchasing - S28A Under 65 - South,Permanent Residential,Eclipse Office Park,5446.8, 18-Feb-2014
514,Revenue,CCHD,Bed purchasing - S28A Under 65 - South,Permanent Residential,Eclipse Office Park,5446.8, 18-Feb-2014
515,Revenue,CCHD,Bed Purchasing - Elderly MH - South,Permanent Residential,Eclipse Office Park,1282.64, 18-Feb-2014
516,Revenue,CCHD,Bed Purchasing - Elderly MH - South,Permanent Residential,Eclipse Office Park,1282.64, 18-Feb-2014
517,Revenue,CCHD,Bed Purchasing - Under 65s PWLD - South,Permanent Residential,Eclipse Office Park,5000.92, 18-Feb-2014
518,Revenue,CCHD,Bed Purchasing - Under 65s PWLD - South,Permanent Residential,Eclipse Office Park,5000.92, 18-Feb-2014
519,Revenue,CCHD,Bed Purchasing - Under 65s PWLD - South,Permanent Residential,Eclipse Office Park,5431.76, 18-Feb-2014
520,Revenue,CCHD,Bed Purchasing - Under 65s PWLD - South,Permanent Residential,Eclipse Office Park,5431.76, 18-Feb-2014
521,Revenue,CCHD,Bed purchasing - S28A Under 65 - South,Permanent Nursing,Eclipse Office Park,7190.52, 18-Feb-2014
522,Revenue,CCHD,Bed purchasing - S28A Under 65 - South,Permanent Nursing,Eclipse Office Park,7190.52, 18-Feb-2014
523,Revenue,CCHD,MH Purchasing - Younger,Permanent Residential,Eclipse Office Park,1020.8, 18-Feb-2014
524,Revenue,CCHD,MH Purchasing - Younger,Permanent Residential,Eclipse Office Park,1020.8, 18-Feb-2014
525,Revenue,CCHD,Bed purchasing - Elderly PWLD - South,Permanent Residential,Eclipse Office Park,5052.56, 18-Feb-2014
526,Revenue,CCHD,Bed purchasing - Elderly PWLD - South,Permanent Residential,Eclipse Office Park,5052.56, 18-Feb-2014
527,Revenue,CCHD,Bed purchasing - Elderly PWLD - South,Permanent Residential,Eclipse Office Park,3823.68, 18-Feb-2014
528,Revenue,CCHD,Bed purchasing - Elderly PWLD - South,Permanent Residential,Eclipse Office Park,3823.68, 18-Feb-2014
529,Revenue,CCHD,Bed purchasing - Elderly PWLD - North,Permanent Residential,Eclipse Office Park,2969.12, 18-Feb-2014
530,Revenue,CCHD,Bed purchasing - Elderly PWLD - North,Permanent Residential,Eclipse Office Park,2969.12, 18-Feb-2014
531,Revenue,CCHD,Bed purchasing -S28A  Under 65 - North,Permanent Residential,Eclipse Office Park,5182.72, 18-Feb-2014
532,Revenue,CCHD,Bed purchasing -S28A  Under 65 - North,Permanent Residential,Eclipse Office Park,5182.72, 18-Feb-2014
533,Revenue,CCHD,Bed purchasing -S28A  Under 65 - North,Permanent Residential,Eclipse Office Park,6955.32, 18-Feb-2014
534,Revenue,CCHD,Bed purchasing -S28A  Under 65 - North,Permanent Residential,Eclipse Office Park,6955.32, 18-Feb-2014
535,Revenue,CCHD,Bed purchasing -S28A  Under 65 - North,Permanent Nursing,Eclipse Office Park,6153.36, 18-Feb-2014
536,Revenue,CCHD,Bed purchasing -S28A  Under 65 - North,Permanent Nursing,Eclipse Office Park,6153.36, 18-Feb-2014
537,Revenue,CCHD,Bed Purchasing - Under 65s PWLD - South,Permanent Residential,Eclipse Office Park,4452.24, 18-Feb-2014
538,Revenue,CCHD,Bed Purchasing - Under 65s PWLD - South,Permanent Residential,Eclipse Office Park,47861.58, 18-Feb-2014
539,Revenue,CCHD,Bed Purchasing - Under 65s PWLD - South,Permanent Residential,Eclipse Office Park,4452.24, 18-Feb-2014
540,Revenue,CCHD,Bed Purchasing - Elderly - South,Permanent Residential,Eclipse Office Park,3163.76, 18-Feb-2014
541,Revenue,CCHD,Bed Purchasing - Elderly - South,Permanent Residential,Eclipse Office Park,3163.76, 18-Feb-2014
542,Revenue,CCHD,Bed purchasing -S28A  Under 65 - North,Permanent Residential,Eclipse Office Park,6656.16, 18-Feb-2014
543,Revenue,CCHD,Bed purchasing -S28A  Under 65 - North,Permanent Residential,Eclipse Office Park,6656.16, 18-Feb-2014
544,Revenue,CCHD,Bed purchasing - S28A Under 65 - South,Permanent Residential,Eclipse Office Park,4459.4, 18-Feb-2014
545,Revenue,CCHD,Bed purchasing - S28A Under 65 - South,Permanent Residential,Eclipse Office Park,4459.4, 18-Feb-2014
546,Revenue,CCHD,Bed Purchasing - S28A - Over 65- North,Permanent Residential,Eclipse Office Park,6510.76, 18-Feb-2014
547,Revenue,CCHD,Bed Purchasing - S28A - Over 65- North,Permanent Residential,Eclipse Office Park,6510.76, 18-Feb-2014
548,Revenue,CCHD,Bed Purchasing - LD S28A- Over 65- South,Permanent Residential,Eclipse Office Park,4118.28, 18-Feb-2014
549,Revenue,CCHD,Bed Purchasing - LD S28A- Over 65- South,Permanent Residential,Eclipse Office Park,4118.28, 18-Feb-2014
550,Revenue,CCHD,Bed purchasing -S28A  Under 65 - North,Permanent Residential,Eclipse Office Park,6955.32, 18-Feb-2014
551,Revenue,CCHD,Bed purchasing -S28A  Under 65 - North,Permanent Residential,Eclipse Office Park,6955.32, 18-Feb-2014
552,Revenue,CCHD,Bed purchasing -S28A  Under 65 - North,Permanent Residential,Eclipse Office Park,6955.32, 18-Feb-2014
553,Revenue,CCHD,Bed purchasing -S28A  Under 65 - North,Permanent Residential,Eclipse Office Park,6955.32, 18-Feb-2014
554,Revenue,CCHD,Bed Purchasing - LD S28A- Over 65- South,Permanent Residential,Eclipse Office Park,4041.16, 18-Feb-2014
555,Revenue,CCHD,Bed Purchasing - LD S28A- Over 65- South,Permanent Residential,Eclipse Office Park,43442.47, 18-Feb-2014
556,Revenue,CCHD,Bed Purchasing - LD S28A- Over 65- South,Permanent Residential,Eclipse Office Park,4041.16, 18-Feb-2014
557,Revenue,CCHD,Bed purchasing - S28A Under 65 - South,Permanent Residential,Eclipse Office Park,4796.48, 18-Feb-2014
558,Revenue,CCHD,Bed purchasing - S28A Under 65 - South,Permanent Residential,Eclipse Office Park,4796.48, 18-Feb-2014
559,Revenue,CCHD,Bed purchasing - S28A Under 65 - South,Permanent Residential,Eclipse Office Park,4691.48, 18-Feb-2014
560,Revenue,CCHD,Bed purchasing - S28A Under 65 - South,Permanent Residential,Eclipse Office Park,4691.48, 18-Feb-2014
561,Revenue,CCHD,Bed purchasing - S28A Under 65 - South,Permanent Residential,Eclipse Office Park,3610.08, 18-Feb-2014
562,Revenue,CCHD,Bed purchasing - S28A Under 65 - South,Permanent Residential,Eclipse Office Park,9252.45, 18-Feb-2014
563,Revenue,CCHD,Bed purchasing - S28A Under 65 - South,Permanent Residential,Eclipse Office Park,3610.08, 18-Feb-2014
564,Revenue,CCHD,Bed Purchasing - LD S28A- Over 65- South,Permanent Residential,Eclipse Office Park,5019.44, 18-Feb-2014
565,Revenue,CCHD,Bed Purchasing - LD S28A- Over 65- South,Permanent Residential,Eclipse Office Park,5019.44, 18-Feb-2014
566,Revenue,CCHD,Bed Purchasing - LD S28A- Over 65- South,Permanent Residential,Eclipse Office Park,4960.32, 18-Feb-2014
567,Revenue,CCHD,Bed Purchasing - LD S28A- Over 65- South,Permanent Residential,Eclipse Office Park,4960.32, 18-Feb-2014
568,Revenue,CCHD,Bed Purchasing - LD S28A- Over 65- South,Permanent Residential,Eclipse Office Park,5114.08, 18-Feb-2014
569,Revenue,CCHD,Bed Purchasing - LD S28A- Over 65- South,Permanent Residential,Eclipse Office Park,5114.08, 18-Feb-2014
570,Revenue,CCHD,Bed Purchasing - LD S28A- Over 65- South,Permanent Residential,Eclipse Office Park,4292.36, 18-Feb-2014
571,Revenue,CCHD,Bed Purchasing - LD S28A- Over 65- South,Permanent Residential,Eclipse Office Park,4292.36, 18-Feb-2014
572,Revenue,CCHD,Bed Purchasing - LD S28A- Over 65- South,Permanent Residential,Eclipse Office Park,5097.36, 18-Feb-2014
573,Revenue,CCHD,Bed Purchasing - LD S28A- Over 65- South,Permanent Residential,Eclipse Office Park,5097.36, 18-Feb-2014
574,Revenue,CCHD,Bed purchasing -S28A  Under 65 - North,Permanent Residential,Eclipse Office Park,9023.08, 18-Feb-2014
575,Revenue,CCHD,Bed purchasing -S28A  Under 65 - North,Permanent Residential,Eclipse Office Park,9023.08, 18-Feb-2014
576,Revenue,CCHD,Bed purchasing -S28A  Under 65 - North,Permanent Nursing,Eclipse Office Park,6235.36, 18-Feb-2014
577,Revenue,CCHD,Bed purchasing -S28A  Under 65 - North,Permanent Nursing,Eclipse Office Park,6235.36, 18-Feb-2014
578,Revenue,CCHD,Bed Purchasing - LD S28A- Over 65- South,Permanent Residential,Eclipse Office Park,2953.24, 18-Feb-2014
579,Revenue,CCHD,Bed Purchasing - LD S28A- Over 65- South,Permanent Residential,Eclipse Office Park,2953.24, 18-Feb-2014
580,Revenue,CCHD,Bed Purchasing - S28A - Over 65- North,Permanent Residential,Eclipse Office Park,2835.72, 18-Feb-2014
581,Revenue,CCHD,Bed Purchasing - S28A - Over 65- North,Permanent Residential,Eclipse Office Park,2835.72, 18-Feb-2014
582,Revenue,CCHD,Section 117 Placements MH Younger,Permanent Residential,Eclipse Office Park,1336, 18-Feb-2014
583,Revenue,CCHD,Section 117 Placements MH Younger,Permanent Residential,Eclipse Office Park,1336, 18-Feb-2014
584,Revenue,CCHD,Bed purchasing - Elderly MH - North,Permanent Residential,Eclipse Office Park,850, 18-Feb-2014
585,Revenue,CCHD,Bed purchasing - Elderly MH - North,Permanent Residential,Eclipse Office Park,850, 18-Feb-2014
586,Revenue,CCHD,Bed purchasing - S28A Under 65 - South,Permanent Residential,Eclipse Office Park,5336.48, 18-Feb-2014
587,Revenue,CCHD,Bed purchasing - S28A Under 65 - South,Permanent Residential,Eclipse Office Park,5336.48, 18-Feb-2014
588,Revenue,CCHD,Bed purchasing - Elderly PWLD - North,Permanent Residential,Eclipse Office Park,4247.2, 18-Feb-2014
589,Revenue,CCHD,Bed purchasing - Elderly PWLD - North,Permanent Residential,Eclipse Office Park,4247.2, 18-Feb-2014
590,Revenue,CCHD,Bed purchasing - Elderly MH - North,Permanent Nursing,Eclipse Office Park,1098.04, 18-Feb-2014
591,Revenue,CCHD,Bed purchasing - Elderly MH - North,Permanent Nursing,Eclipse Office Park,1098.04, 18-Feb-2014
592,Revenue,CCHD,Bed Purchasing - Under 65s PWLD - South,Permanent Residential,Eclipse Office Park,4208.76, 18-Feb-2014
593,Revenue,CCHD,Bed Purchasing - Under 65s PWLD - South,Permanent Residential,Eclipse Office Park,4208.76, 18-Feb-2014
594,Revenue,CCHD,Bed purchasing -S28A  Under 65 - North,Permanent Residential,Eclipse Office Park,5592.32, 18-Feb-2014
595,Revenue,CCHD,Bed purchasing -S28A  Under 65 - North,Permanent Residential,Eclipse Office Park,60117.44, 18-Feb-2014
596,Revenue,CCHD,Bed purchasing -S28A  Under 65 - North,Permanent Residential,Eclipse Office Park,5592.32, 18-Feb-2014
597,Revenue,CCHD,Bed Purchasing - S28A - Over 65- North,Permanent Residential,Eclipse Office Park,3549.16, 18-Feb-2014
598,Revenue,CCHD,Bed Purchasing - S28A - Over 65- North,Permanent Residential,Eclipse Office Park,3549.16, 18-Feb-2014
599,Revenue,CCHD,Bed Purchasing - Elderly S117- North,Permanent Residential,Eclipse Office Park,1732, 18-Feb-2014
600,Revenue,CCHD,Bed Purchasing - Elderly S117- North,Permanent Residential,Eclipse Office Park,1732, 18-Feb-2014
601,Revenue,CCHD,MH Purchasing - Younger,Permanent Residential,Eclipse Office Park,1020.8, 18-Feb-2014
602,Revenue,CCHD,MH Purchasing - Younger,Permanent Residential,Eclipse Office Park,1020.8, 18-Feb-2014
603,Revenue,CCHD,Bed Purchasing - S28A - Over 65- North,Permanent Residential,Eclipse Office Park,3170.24, 18-Feb-2014
604,Revenue,CCHD,Bed Purchasing - S28A - Over 65- North,Permanent Residential,Eclipse Office Park,3170.24, 18-Feb-2014
605,Revenue,CCHD,Bed Purchasing - LD S28A- Over 65- South,Permanent Residential,Eclipse Office Park,3828.04, 18-Feb-2014
606,Revenue,CCHD,Bed Purchasing - LD S28A- Over 65- South,Permanent Residential,Eclipse Office Park,41151.43, 18-Feb-2014
607,Revenue,CCHD,Bed Purchasing - LD S28A- Over 65- South,Permanent Residential,Eclipse Office Park,3691.33, 18-Feb-2014
608,Revenue,CCHD,Bed purchasing - S28A Under 65 - South,Permanent Residential,Eclipse Office Park,5391.32, 18-Feb-2014
609,Revenue,CCHD,Bed purchasing - S28A Under 65 - South,Permanent Residential,Eclipse Office Park,5391.32, 18-Feb-2014
610,Revenue,CCHD,Bed purchasing - S28A Under 65 - South,Permanent Residential,Eclipse Office Park,5724.72, 18-Feb-2014
611,Revenue,CCHD,South Glos Users in South Glos Homes,Permanent Nursing,Eclipse Office Park,4391.6, 18-Feb-2014
612,Revenue,CCHD,Bed purchasing - S28A Under 65 - South,Permanent Residential,Eclipse Office Park,5724.72, 18-Feb-2014
613,Revenue,CCHD,Bed Purchasing - LD S28A- Over 65- South,Permanent Residential,Eclipse Office Park,5591.04, 18-Feb-2014
614,Revenue,CCHD,Bed Purchasing - LD S28A- Over 65- South,Permanent Residential,Eclipse Office Park,5591.04, 18-Feb-2014
615,Revenue,CCHD,Bed Purchasing - LD S28A- Over 65- South,Permanent Residential,Eclipse Office Park,4735.4, 18-Feb-2014
616,Revenue,CCHD,Bed Purchasing - LD S28A- Over 65- South,Permanent Residential,Eclipse Office Park,4735.4, 18-Feb-2014
617,Revenue,CCHD,Bed Purchasing - LD S28A- Over 65- South,Permanent Residential,Eclipse Office Park,4461.32, 18-Feb-2014
618,Revenue,CCHD,Bed Purchasing - LD S28A- Over 65- South,Permanent Residential,Eclipse Office Park,4461.32, 18-Feb-2014
619,Revenue,CCHD,Bed Purchasing - LD S28A- Over 65- South,Permanent Residential,Eclipse Office Park,4535.32, 18-Feb-2014
620,Revenue,CCHD,Bed Purchasing - LD S28A- Over 65- South,Permanent Residential,Eclipse Office Park,48754.69, 18-Feb-2014
621,Revenue,CCHD,Bed Purchasing - LD S28A- Over 65- South,Permanent Residential,Eclipse Office Park,4535.32, 18-Feb-2014
622,Revenue,CCHD,Bed purchasing - S28A Under 65 - South,Permanent Residential,Eclipse Office Park,7067.16, 18-Feb-2014
623,Revenue,CCHD,Bed purchasing - S28A Under 65 - South,Permanent Residential,Eclipse Office Park,7067.16, 18-Feb-2014
624,Revenue,CCHD,Bed Purchasing - LD S28A- Over 65- South,Permanent Residential,Eclipse Office Park,4743.11, 18-Feb-2014
625,Revenue,CCHD,Bed Purchasing - LD S28A- Over 65- South,Permanent Residential,Eclipse Office Park,4601.68, 18-Feb-2014
626,Revenue,CCHD,Bed Purchasing - S28A - Over 65- North,Permanent Residential,Eclipse Office Park,4683.8, 18-Feb-2014
627,Revenue,CCHD,Bed Purchasing - S28A - Over 65- North,Permanent Residential,Eclipse Office Park,4683.8, 18-Feb-2014
628,Revenue,CCHD,Bed Purchasing - Elderly S117- North,Permanent Nursing,Eclipse Office Park,1788, 18-Feb-2014
629,Revenue,CCHD,Bed Purchasing - Elderly S117- North,Permanent Nursing,Eclipse Office Park,1788, 18-Feb-2014
630,Revenue,CCHD,Bed Purchasing - S28A - Over 65- North,Permanent Residential,Eclipse Office Park,4524.16, 18-Feb-2014
631,Revenue,CCHD,Bed Purchasing - S28A - Over 65- North,Permanent Residential,Eclipse Office Park,48634.72, 18-Feb-2014
632,Revenue,CCHD,Bed Purchasing - S28A - Over 65- North,Permanent Residential,Eclipse Office Park,4524.16, 18-Feb-2014
633,Revenue,CCHD,Bed Purchasing - S28A - Over 65- North,Permanent Residential,Eclipse Office Park,4692.44, 18-Feb-2014
634,Revenue,CCHD,Bed Purchasing - S28A - Over 65- North,Permanent Residential,Eclipse Office Park,50443.73, 18-Feb-2014
635,Revenue,CCHD,Bed Purchasing - S28A - Over 65- North,Permanent Residential,Eclipse Office Park,4692.44, 18-Feb-2014
636,Revenue,CCHD,Bed purchasing - S28A Under 65 - South,Permanent Residential,Eclipse Office Park,4686.44, 18-Feb-2014
637,Revenue,CCHD,Bed purchasing - S28A Under 65 - South,Permanent Residential,Eclipse Office Park,4686.44, 18-Feb-2014
638,Revenue,CCHD,Bed Purchasing - S28A - Over 65- North,Permanent Residential,Eclipse Office Park,4440.04, 18-Feb-2014
639,Revenue,CCHD,Bed Purchasing - S28A - Over 65- North,Permanent Residential,Eclipse Office Park,4440.04, 18-Feb-2014
640,Revenue,CCHD,Bed Purchasing - Southmead Hospital,Permanent Nursing,Eclipse Office Park,614.77, 18-Feb-2014
641,Revenue,CCHD,Bed purchasing - S28A Under 65 - South,Permanent Nursing,Eclipse Office Park,614.77, 18-Feb-2014
642,Revenue,CCHD,Bed purchasing -S28A  Under 65 - North,Permanent Residential,Eclipse Office Park,6955.32, 18-Feb-2014
643,Revenue,CCHD,Bed purchasing -S28A  Under 65 - North,Permanent Residential,Eclipse Office Park,6955.32, 18-Feb-2014
644,Revenue,CCHD,Bed purchasing -S28A  Under 65 - North,Permanent Residential,Eclipse Office Park,2924.52, 18-Feb-2014
645,Revenue,CCHD,Bed purchasing -S28A  Under 65 - North,Permanent Residential,Eclipse Office Park,2924.52, 18-Feb-2014
646,Revenue,CCHD,Bed Purchasing - S28A - Over 65- North,Permanent Residential,Eclipse Office Park,3090.6, 18-Feb-2014
647,Revenue,CCHD,Bed Purchasing - S28A - Over 65- North,Permanent Residential,Eclipse Office Park,3090.6, 18-Feb-2014
648,Revenue,CCHD,Bed Purchasing - S28A - Over 65- North,Permanent Residential,Eclipse Office Park,3221.88, 18-Feb-2014
649,Revenue,CCHD,Bed Purchasing - S28A - Over 65- North,Permanent Residential,Eclipse Office Park,3221.88, 18-Feb-2014
650,Revenue,CCHD,Bed Purchasing - LD S28A- Over 65- South,Permanent Residential,Eclipse Office Park,3043.6, 18-Feb-2014
651,Revenue,CCHD,Bed Purchasing - LD S28A- Over 65- South,Permanent Residential,Eclipse Office Park,3043.6, 18-Feb-2014
652,Revenue,CCHD,Bed purchasing - Under 65s PWLD - North,Permanent Residential,Eclipse Office Park,6673.92, 18-Feb-2014
653,Revenue,CCHD,Bed purchasing - Under 65s PWLD - North,Permanent Residential,Eclipse Office Park,6673.92, 18-Feb-2014
654,Revenue,CCHD,Bed Purchasing - Elderly - South,Permanent Residential,Eclipse Office Park,1302, 18-Feb-2014
655,Revenue,CCHD,Bed Purchasing - Elderly - South,Permanent Residential,Eclipse Office Park,1302, 18-Feb-2014
656,Revenue,CCHD,South Glos Users in South Glos Homes,Permanent Nursing,Eclipse Office Park,1944.85, 18-Feb-2014
657,Revenue,CCHD,MH Purchasing - Younger,Permanent Nursing,Eclipse Office Park,924, 18-Feb-2014
658,Revenue,CCHD,MH Purchasing - Younger,Permanent Nursing,Eclipse Office Park,924, 18-Feb-2014
659,Revenue,CCHD,MH Purchasing - Younger,Permanent Nursing,Eclipse Office Park,1112.8, 18-Feb-2014
660,Revenue,CCHD,MH Purchasing - Younger,Permanent Nursing,Eclipse Office Park,1112.8, 18-Feb-2014
661,Revenue,CCHD,Bed purchasing - Elderly PWLD - South,Permanent Residential,Eclipse Office Park,3209.36, 18-Feb-2014
662,Revenue,CCHD,Bed purchasing - Elderly PWLD - South,Permanent Residential,Eclipse Office Park,3209.36, 18-Feb-2014
663,Revenue,CCHD,Bed purchasing - S28A Under 65 - South,Permanent Residential,Eclipse Office Park,5832.32, 18-Feb-2014
664,Revenue,CCHD,Bed purchasing - S28A Under 65 - South,Permanent Residential,Eclipse Office Park,68529.76, 18-Feb-2014
665,Revenue,CCHD,Bed purchasing - S28A Under 65 - South,Permanent Residential,Eclipse Office Park,5925.08, 18-Feb-2014
666,Revenue,CCHD,Bed purchasing - S28A Under 65 - South,Permanent Residential,Eclipse Office Park,5925.08, 18-Feb-2014
667,Revenue,CCHD,Bed Purchasing - LD S28A- Over 65- South,Permanent Residential,Eclipse Office Park,4292.36, 18-Feb-2014
668,Revenue,CCHD,Bed Purchasing - LD S28A- Over 65- South,Permanent Residential,Eclipse Office Park,4292.36, 18-Feb-2014
669,Revenue,CCHD,Bed Purchasing - Under 65s PWLD - South,Permanent Residential,Eclipse Office Park,5832.72, 18-Feb-2014
670,Revenue,CCHD,Bed Purchasing - Under 65s PWLD - South,Permanent Residential,Eclipse Office Park,5832.72, 18-Feb-2014
671,Revenue,CCHD,Bed Purchasing - LD S28A- Over 65- South,Permanent Nursing,Eclipse Office Park,4464.72, 18-Feb-2014
672,Revenue,CCHD,Bed Purchasing - LD S28A- Over 65- South,Permanent Nursing,Eclipse Office Park,47995.74, 18-Feb-2014
673,Revenue,CCHD,Bed Purchasing - LD S28A- Over 65- South,Permanent Nursing,Eclipse Office Park,4464.72, 18-Feb-2014
674,Revenue,CCHD,Bed Purchasing - LD S28A- Over 65- South,Permanent Residential,Eclipse Office Park,5591.04, 18-Feb-2014
675,Revenue,CCHD,Bed Purchasing - LD S28A- Over 65- South,Permanent Residential,Eclipse Office Park,60103.68, 18-Feb-2014
676,Revenue,CCHD,Bed Purchasing - LD S28A- Over 65- South,Permanent Residential,Eclipse Office Park,5591.04, 18-Feb-2014
677,Revenue,CCHD,Bed Purchasing - LD S28A- Over 65- South,Permanent Residential,Eclipse Office Park,3559.36, 18-Feb-2014
678,Revenue,CCHD,Bed Purchasing - LD S28A- Over 65- South,Permanent Residential,Eclipse Office Park,3559.36, 18-Feb-2014
679,Revenue,CCHD,Bed Purchasing - LD S28A- Over 65- South,Permanent Residential,Eclipse Office Park,4282.6, 18-Feb-2014
680,Revenue,CCHD,Bed Purchasing - LD S28A- Over 65- South,Permanent Residential,Eclipse Office Park,4282.6, 18-Feb-2014
681,Revenue,CCHD,Bed Purchasing - LD S28A- Over 65- South,Permanent Residential,Eclipse Office Park,5869.12, 18-Feb-2014
682,Revenue,CCHD,Bed Purchasing - LD S28A- Over 65- South,Permanent Residential,Eclipse Office Park,5869.12, 18-Feb-2014
683,Revenue,CCHD,Bed Purchasing - Elderly MH - South,Permanent Residential,Eclipse Office Park,1212.08, 18-Feb-2014
684,Revenue,CCHD,Bed Purchasing - Elderly MH - South,Permanent Residential,Eclipse Office Park,1212.08, 18-Feb-2014
685,Revenue,CCHD,Bed purchasing -S28A  Under 65 - North,Permanent Nursing,Eclipse Office Park,7563.52, 18-Feb-2014
686,Revenue,CCHD,Bed purchasing -S28A  Under 65 - North,Permanent Nursing,Eclipse Office Park,7563.52, 18-Feb-2014
687,Revenue,CCHD,Bed Purchasing - Under 65s PWLD - South,Permanent Residential,Eclipse Office Park,5173.28, 18-Feb-2014
688,Revenue,CCHD,Bed Purchasing - Under 65s PWLD - South,Permanent Residential,Eclipse Office Park,5173.28, 18-Feb-2014
689,Revenue,CCHD,Bed Purchasing - Elderly S117- North,Permanent Nursing,Eclipse Office Park,1964, 18-Feb-2014
690,Revenue,CCHD,Bed Purchasing - Elderly S117- North,Permanent Nursing,Eclipse Office Park,1964, 18-Feb-2014
691,Revenue,CCHD,Bed Purchasing - Elderly MH - South,Permanent Nursing,Eclipse Office Park,1824.96, 18-Feb-2014
692,Revenue,CCHD,Bed Purchasing - Elderly MH - South,Permanent Nursing,Eclipse Office Park,1824.96, 18-Feb-2014
693,Revenue,CCHD,Section 117 Placements MH Younger,Permanent Residential,Eclipse Office Park,1336, 18-Feb-2014
694,Revenue,CCHD,Bed purchasing - Elderly PWLD - South,Permanent Nursing,Eclipse Office Park,3338.92, 18-Feb-2014
695,Revenue,CCHD,Bed purchasing - Elderly PWLD - South,Permanent Nursing,Eclipse Office Park,17624.53, 18-Feb-2014
696,Revenue,CCHD,Bed Purchasing - LD S28A- Over 65- South,Permanent Nursing,Eclipse Office Park,2940.76, 18-Feb-2014
697,Revenue,CCHD,Bed Purchasing - LD S28A- Over 65- South,Permanent Nursing,Eclipse Office Park,2729.64, 18-Feb-2014
698,Revenue,CCHD,Bed Purchasing - S28A - Over 65- North,Permanent Nursing,Eclipse Office Park,39230.19, 18-Feb-2014
699,Revenue,CCHD,Bed Purchasing - S28A - Over 65- North,Permanent Nursing,Eclipse Office Park,3649.32, 18-Feb-2014
700,Revenue,CCHD,Bed Purchasing - S28A - Over 65- North,Permanent Nursing,Eclipse Office Park,3665.32, 18-Feb-2014
701,Revenue,CCHD,Bed Purchasing - Elderly - South,Permanent Residential,Edgecumbe Lodge,1514, 18-Feb-2014
702,Revenue,CCHD,Bed Purchasing - Southmead Hospital,Permanent Residential,Edgecumbe Lodge,13394.5, 18-Feb-2014
703,Revenue,CCHD,Bed Purchasing - Southmead Hospital,Permanent Residential,Edgecumbe Lodge,1246, 18-Feb-2014
704,Revenue,CCHD,Bed Purchasing - Elderly - South,Permanent Residential,Edgecumbe Lodge,1052.16, 18-Feb-2014
705,Revenue,CCHD,Bed Purchasing - Elderly - South,Permanent Residential,Edgecumbe Lodge,1312.64, 18-Feb-2014
706,Revenue,CCHD,Bed Purchasing - Southmead Hospital,Permanent Residential,Edgecumbe Lodge,2100, 18-Feb-2014
707,Revenue,CCHD,Bed Purchasing - Elderly - South,Permanent Residential,Edgecumbe Lodge,1405.12, 18-Feb-2014
708,Revenue,CCHD,Bed Purchasing - Southmead Hospital,Permanent Residential,Edgecumbe Lodge,1514, 18-Feb-2014
709,Revenue,CCHD,Bed Purchasing - Elderly - South,Permanent Residential,Edgecumbe Lodge,991.96, 18-Feb-2014
710,Revenue,CCHD,Bed Purchasing - Elderly - South,Permanent Residential,Edgecumbe Lodge,1276.24, 18-Feb-2014
711,Revenue,CCHD,Bed Purchasing - Elderly - South,Permanent Residential,Edgecumbe Lodge,1223.16, 18-Feb-2014
712,Revenue,CCHD,Bed Purchasing - Southmead Hospital,Permanent Residential,Edgemont House Ltd,1414, 18-Feb-2014
713,Revenue,CCHD,Bed Purchasing - Elderly - South,Permanent Residential,Edgemont House Ltd,1454, 18-Feb-2014
714,Revenue,CCHD,Bed Purchasing - Elderly - South,Permanent Residential,Edgemont House Ltd,1246, 18-Feb-2014
715,Revenue,CCHD,Bed Purchasing - Elderly - South,Permanent Residential,Edgemont House Ltd,1246, 18-Feb-2014
716,Revenue,CCHD,Bed Purchasing - Elderly - South,Permanent Residential,Edgemont House Ltd,1412.04, 18-Feb-2014
717,Revenue,CCHD,Bed Purchasing - Elderly - South,Permanent Residential,Edgemont House Ltd,1260.96, 18-Feb-2014
718,Revenue,CCHD,South Glos Users in South Glos Homes,Permanent Nursing,Edgemont View Nursing Home,1254.74, 18-Feb-2014
719,Revenue,CCHD,Bed Purchasing - Frenchay Hospital,Permanent Nursing,Edgemont View Nursing Home,1074.44, 18-Feb-2014
720,Revenue,CCHD,Bed Purchasing - Frenchay Hospital,Permanent Nursing,Edgemont View Nursing Home,1294.48, 18-Feb-2014
721,Revenue,CCHD,Bed Purchasing - Frenchay Hospital,Permanent Nursing,Edgemont View Nursing Home,1294.48, 18-Feb-2014
722,Revenue,CCHD,South Glos Users in South Glos Homes,Permanent Nursing,Edgemont View Nursing Home,1725.27, 18-Feb-2014
723,Revenue,CCHD,Bed Purchasing - Elderly - North,Permanent Nursing,Edgemont View Nursing Home,1197.84, 18-Feb-2014
724,Revenue,CCHD,Bed Purchasing - Elderly - North,Permanent Nursing,Edgemont View Nursing Home,812.82, 18-Feb-2014
725,Revenue,CCHD,Bed Purchasing - Elderly - North,Permanent Nursing,Edgemont View Nursing Home,1197.84, 18-Feb-2014
726,Revenue,CCHD,Bed Purchasing - Elderly - South,Permanent Nursing,Edgemont View Nursing Home,1427.52, 18-Feb-2014
727,Revenue,CCHD,Bed Purchasing - Elderly - South,Permanent Nursing,Edgemont View Nursing Home,1427.52, 18-Feb-2014
728,Revenue,CCHD,Bed Purchasing - Elderly - South,Permanent Nursing,Edgemont View Nursing Home,1302, 18-Feb-2014
729,Revenue,CCHD,Bed Purchasing - Elderly - South,Permanent Nursing,Edgemont View Nursing Home,1302, 18-Feb-2014
730,Revenue,CCHD,Bed Purchasing - Elderly - South,Permanent Nursing,Edgemont View Nursing Home,1613.52, 18-Feb-2014
731,Revenue,CCHD,Bed Purchasing - Elderly - South,Permanent Nursing,Edgemont View Nursing Home,1613.52, 18-Feb-2014
732,Revenue,CCHD,Bed Purchasing - Elderly - South,Permanent Nursing,Edgemont View Nursing Home,1177.24, 18-Feb-2014
733,Revenue,CCHD,Bed Purchasing - Elderly - South,Permanent Nursing,Edgemont View Nursing Home,1177.24, 18-Feb-2014
734,Revenue,CCHD,Supporting People Programme,Grants to Voluntary Bodies,Elim Housing Association Limited,4945.25, 28-Feb-2014
735,Revenue,CCHD,Home Care - Elderly - South,Other Small Contracts,Elite Home Care Ltd,6274.84, 13-Feb-2014
736,Revenue,CCHD,Home Care - Elderly - South,Other Small Contracts,Elite Home Care Ltd,6401.53, 13-Feb-2014
737,Revenue,CCHD,Home Care - Elderly - South,Other Small Contracts,Elite Home Care Ltd,6357.87, 13-Feb-2014
738,Revenue,CCHD,Bed Purchasing - Frenchay Hospital,Permanent Nursing,Elmwood Nursing Home,2223.88, 18-Feb-2014
739,Revenue,CCHD,Tenancy Start Up Scheme,Other Supplies & Services,Individual,1390, 10-Feb-2014
740,Revenue,CCHD,Day Care - South,Private & Voluntary Day Care,Enham,638.72, 19-Feb-2014
741,Revenue,CCHD,Home Care - Elderly - South,Other Small Contracts,Everycare (Bristol) Ltd,5194, 11-Feb-2014
742,Revenue,CCHD,Home Care - Elderly - North,Other Small Contracts,Everycare (Bristol) Ltd,2438, 11-Feb-2014
743,Revenue,CCHD,Day Care - South,Private & Voluntary Day Care,Everycare (Bristol) Ltd,118.72, 11-Feb-2014
744,Revenue,CCHD,Under 65s -MH  Home Care Purch,Other Small Contracts,Everycare (Bristol) Ltd,76.32, 11-Feb-2014
745,Revenue,CCHD,Home Care - Elderly - South,Other Small Contracts,Everycare (Bristol) Ltd,5299.27, 11-Feb-2014
746,Revenue,CCHD,Home Care - Elderly - North,Other Small Contracts,Everycare (Bristol) Ltd,2608.95, 11-Feb-2014
747,Revenue,CCHD,Day Care - South,Private & Voluntary Day Care,Everycare (Bristol) Ltd,101.76, 11-Feb-2014
748,Revenue,CCHD,Under 65s -MH  Home Care Purch,Other Small Contracts,Everycare (Bristol) Ltd,84.8, 11-Feb-2014
749,Revenue,CCHD,Home Care - Elderly - South,Other Small Contracts,Everycare (Bristol) Ltd,5431.5, 25-Feb-2014
750,Revenue,CCHD,Home Care - Elderly - North,Other Small Contracts,Everycare (Bristol) Ltd,3106.75, 25-Feb-2014
751,Revenue,CCHD,Day Care - South,Private & Voluntary Day Care,Everycare (Bristol) Ltd,110.5, 25-Feb-2014
752,Revenue,CCHD,Under 65s -MH  Home Care Purch,Other Small Contracts,Everycare (Bristol) Ltd,72.25, 25-Feb-2014
753,Revenue,CCHD,Home Care - Elderly - South,Other Small Contracts,Everycare (Bristol) Ltd,5406, 28-Feb-2014
754,Revenue,CCHD,Home Care - Elderly - North,Other Small Contracts,Everycare (Bristol) Ltd,3408.5, 28-Feb-2014
755,Revenue,CCHD,Day Care - South,Private & Voluntary Day Care,Everycare (Bristol) Ltd,106.25, 28-Feb-2014
756,Revenue,CCHD,Under 65s -MH  Home Care Purch,Other Small Contracts,Everycare (Bristol) Ltd,80.75, 28-Feb-2014
757,Revenue,CCHD,Bed Purchasing - Elderly MH - South,Permanent Residential,Exmouth House,1397.88, 18-Feb-2014
758,Revenue,CCHD,Bed Purchasing - Elderly - South,Permanent Nursing,Fairview Court,1180.4, 18-Feb-2014
759,Revenue,CCHD,Bed Purchasing - Elderly MH - South,Permanent Nursing,Fairview Court,1850.48, 18-Feb-2014
760,Revenue,CCHD,Bed Purchasing - Elderly MH - South,Permanent Nursing,Fairview Court,1934.36, 18-Feb-2014
761,Revenue,CCHD,South Glos Users in South Glos Homes,Permanent Nursing,Fairview Court,1050.85, 18-Feb-2014
762,Revenue,CCHD,Bed Purchasing - Elderly MH - South,Permanent Residential,Fairview Court,1414, 18-Feb-2014
763,Revenue,CCHD,Bed Purchasing - Elderly - South,Permanent Nursing,Fairview Court,2476, 18-Feb-2014
764,Revenue,CCHD,Bed Purchasing - Elderly - South,Permanent Residential,Fairview Court,2648.56, 18-Feb-2014
765,Revenue,CCHD,Bed Purchasing - Elderly MH - South,Permanent Nursing,Fairview Court,1974.84, 18-Feb-2014
766,Revenue,CCHD,Bed Purchasing - Elderly - South,Permanent Residential,Fairview Court,2154.56, 18-Feb-2014
767,Revenue,CCHD,Bed Purchasing - Elderly - South,Permanent Nursing,Fairview Court,1830.44, 18-Feb-2014
768,Revenue,CCHD,Bed Purchasing - Frenchay Hospital,Permanent Nursing,Fairview Court,1836.08, 18-Feb-2014
769,Revenue,CCHD,Bed Purchasing - Elderly - South,Permanent Nursing,Fairview Court,6750, 18-Feb-2014
770,Revenue,CCHD,Bed Purchasing - Elderly MH - South,Permanent Nursing,Fairview Court,1921.68, 18-Feb-2014
771,Revenue,CCHD,Bed purchasing - Elderly MH - North,Permanent Nursing,Fairview Court,1699.6, 18-Feb-2014
772,Revenue,CCHD,S75 CCG Interim Beds,Permanent Nursing,Fairview Court Care Home,6171.54, 12-Feb-2014
773,Revenue,CCHD,Bed Purchasing - Elderly - South,Permanent Nursing,Fairview Court Care Home,1207.86, 13-Feb-2014
774,Revenue,CCHD,Bed Purchasing - Frenchay Hospital,Permanent Nursing,Fairview Court Care Home,1531.89, 13-Feb-2014
775,Revenue,CCHD,South Glos Users in South Glos Homes,Permanent Nursing,Fairview Court Care Home,2431.06, 13-Feb-2014
776,Revenue,CCHD,Bed purchasing - Phys Dis - North,Permanent Nursing,Fairview Court Care Home,2512.15, 13-Feb-2014
777,Revenue,CCHD,Bed Purchasing - Elderly MH - South,Permanent Nursing,Fairview Court Care Home,3002.39, 13-Feb-2014
778,Revenue,CCHD,Bed purchasing - Elderly S117 - South,Permanent Nursing,Fairview Court Care Home,2574.51, 13-Feb-2014
779,Revenue,CCHD,Bed Purchasing - Elderly - South,Permanent Residential,Fairview House,865.48, 18-Feb-2014
780,Revenue,CCHD,Bed Purchasing - Elderly - South,Permanent Residential,Fairview House,1265.24, 18-Feb-2014
781,Revenue,CCHD,Bed Purchasing - Frenchay Hospital,Permanent Residential,Fairview House,992.24, 18-Feb-2014
782,Revenue,CCHD,Bed Purchasing - Elderly - South,Permanent Residential,Fairview House,9977.29, 18-Feb-2014
783,Revenue,CCHD,Bed Purchasing - Elderly - South,Permanent Residential,Fairview House,928.12, 18-Feb-2014
784,Revenue,CCHD,Bed purchasing - Elderly S117 - South,Permanent Residential,Fairview House,1888.88, 18-Feb-2014
785,Revenue,CCHD,Bed Purchasing - Southmead Hospital,Permanent Residential,Fairview House,1019.48, 18-Feb-2014
786,Revenue,CCHD,Bed Purchasing - Elderly - South,Permanent Residential,Fairview House,721.84, 18-Feb-2014
787,Revenue,CCHD,Bed Purchasing - Elderly - South,Permanent Residential,Fairview House,1188.36, 18-Feb-2014
788,Revenue,CCHD,Bed Purchasing - Southmead Hospital,Permanent Residential,Fairview House,1116.24, 18-Feb-2014
789,Revenue,CCHD,Bed Purchasing - Elderly MH - South,Permanent Residential,Fairview House,1109.84, 18-Feb-2014
790,Revenue,CCHD,Bed Purchasing - Frenchay Hospital,Permanent Residential,Fairview House,13394.5, 18-Feb-2014
791,Revenue,CCHD,Bed Purchasing - Frenchay Hospital,Permanent Residential,Fairview House,1246, 18-Feb-2014
792,Revenue,CCHD,Bed Purchasing - Southmead Hospital,Permanent Residential,Fairview House,1062.04, 18-Feb-2014
793,Revenue,CCHD,Bed Purchasing - Elderly MH - South,Permanent Residential,Fairview House,1036.08, 18-Feb-2014
794,Revenue,CCHD,Bed Purchasing - Frenchay Hospital,Permanent Residential,Faith House,2412.4, 18-Feb-2014
795,Revenue,CCHD,Tenancy Start Up Scheme,Other Supplies & Services,Farringtons Sales & Lettings,1870.55, 13-Feb-2014
796,Revenue,CCHD,Bed purchasing - Under 65s PWLD - North,Permanent Residential,Fernbank,7593.16, 18-Feb-2014
797,Revenue,CCHD,Public Health - Admin,Other Supplies & Services,Five Square Solutions Limited,8750, 18-Feb-2014
798,Revenue,CCHD,Bed Purchasing - Elderly - South,Permanent Nursing,Four Seasons Health Care,1177.16, 18-Feb-2014
799,Revenue,CCHD,Bed Purchasing - Elderly S117- North,Permanent Residential,Four Seasons Health Care,2030.36, 18-Feb-2014
800,Revenue,CCHD,Bed Purchasing - Frenchay Hospital,Permanent Residential,Four Seasons Health Care,1526.84, 18-Feb-2014
801,Revenue,CCHD,Tenancy Start Up Scheme,Other Supplies & Services,Franklin Cole Limited,1250, 25-Feb-2014
802,Revenue,CCHD,Home Care - Elderly - South,Other Small Contracts,Freedom Social Care Recruitment,1448.37, 03-Feb-2014
803,Revenue,CCHD,Home Care - Elderly - North,Other Small Contracts,Freedom Social Care Recruitment,2825.49, 03-Feb-2014
804,Revenue,CCHD,Day Care - North,Private & Voluntary Day Care,Freedom Social Care Recruitment,15.96, 03-Feb-2014
805,Revenue,CCHD,Home care - Elderly MH - North,Other Small Contracts,Freedom Social Care Recruitment,7.98, 03-Feb-2014
806,Revenue,CCHD,Freeways,Permanent Residential,Freeways Trust Limited,46208.69, 28-Feb-2014
807,Revenue,CCHD,Supported Living - South,Private & Voluntary Home Care,Freeways Trust Limited,965.58, 25-Feb-2014
808,Revenue,CCHD,Supported Living - South,Private & Voluntary Home Care,Freeways Trust Limited,1372.14, 25-Feb-2014
809,Revenue,CCHD,Supported Living - South,Private & Voluntary Home Care,Freeways Trust Limited,807.03, 28-Feb-2014
810,Revenue,CCHD,Bed purchasing - Under 65s PWLD - North,Permanent Residential,Freeways Trust Ltd,2817.88, 18-Feb-2014
811,Revenue,CCHD,Bed purchasing - S28A Under 65 - South,Permanent Residential,Freeways Trust Ltd,2880.64, 18-Feb-2014
812,Revenue,CCHD,Bed purchasing - Under 65s PWLD - North,Permanent Residential,Freeways Trust Ltd,28835.37, 18-Feb-2014
813,Revenue,CCHD,Bed purchasing - Under 65s PWLD - North,Permanent Residential,Freeways Trust Ltd,2682.36, 18-Feb-2014
814,Revenue,CCHD,Bed purchasing - Under 65s PWLD - North,Permanent Residential,Freeways Trust Ltd,2253.16, 18-Feb-2014
815,Revenue,CCHD,Bed purchasing - Under 65s PWLD - North,Permanent Residential,Freeways Trust Ltd,2691.08, 18-Feb-2014
816,Revenue,CCHD,Bed Purchasing - Under 65s PWLD - South,Permanent Residential,Freeways Trust Ltd,3289.6, 18-Feb-2014
817,Revenue,CCHD,Bed purchasing - Elderly PWLD - North,Permanent Residential,Freeways Trust Ltd,2235.92, 18-Feb-2014
818,Revenue,CCHD,Bed Purchasing - Under 65s PWLD - South,Permanent Residential,Freeways Trust Ltd,2382.36, 18-Feb-2014
819,Revenue,CCHD,Bed purchasing - Under 65s PWLD - North,Permanent Residential,Freeways Trust Ltd,2691.08, 18-Feb-2014
820,Revenue,CCHD,Bed purchasing - Elderly PWLD - North,Permanent Residential,Freeways Trust Ltd,3112.28, 18-Feb-2014
821,Revenue,CCHD,Section 117 Placements MH Younger,Permanent Residential,Freeways Trust Ltd,3324, 18-Feb-2014
822,Revenue,CCHD,Bed purchasing - Under 65s PWLD - North,Permanent Residential,Freeways Trust Ltd,57921.06, 18-Feb-2014
823,Revenue,CCHD,Bed purchasing - Under 65s PWLD - North,Permanent Residential,Freeways Trust Ltd,3844.32, 18-Feb-2014
824,Revenue,CCHD,Bed Purchasing - Under 65s PWLD - South,Permanent Residential,Freeways Trust Ltd,6117.96, 18-Feb-2014
825,Revenue,CCHD,Bed Purchasing - Frenchay Hospital,Permanent Nursing,Frenchay Park Nursing Home,1004.36, 18-Feb-2014
826,Revenue,CCHD,Bed Purchasing - Elderly - South,Permanent Nursing,Frenchay Park Nursing Home,1306.08, 18-Feb-2014
827,Revenue,CCHD,Bed Purchasing - Elderly - South,Permanent Nursing,Fshc  1St Floor,891.56, 18-Feb-2014
828,Revenue,CCHD,Bed Purchasing - Elderly - South,Permanent Nursing,Fshc  1St Floor,891.56, 18-Feb-2014
829,Revenue,CCHD,Bed Purchasing - Frenchay Hospital,Permanent Residential,Fshc  1St Floor,893.96, 18-Feb-2014
830,Revenue,CCHD,Bed Purchasing - Frenchay Hospital,Permanent Residential,Fshc  1St Floor,893.96, 18-Feb-2014
831,Revenue,CCHD,Bed Purchasing - Southmead Hospital,Permanent Nursing,Fshc  1St Floor,782.16, 18-Feb-2014
832,Revenue,CCHD,Bed Purchasing - Southmead Hospital,Permanent Nursing,Fshc  1St Floor,782.16, 18-Feb-2014
833,Revenue,CCHD,Bed Purchasing - Frenchay Hospital,Permanent Residential,Fshc  1St Floor,1242.96, 18-Feb-2014
834,Revenue,CCHD,Bed Purchasing - Frenchay Hospital,Permanent Residential,Fshc  1St Floor,1242.96, 18-Feb-2014
835,Revenue,CCHD,Bed Purchasing - Frenchay Hospital,Permanent Nursing,Fshc  1St Floor,1370, 18-Feb-2014
836,Revenue,CCHD,Bed Purchasing - Frenchay Hospital,Permanent Nursing,Fshc  1St Floor,1370, 18-Feb-2014
837,Revenue,CCHD,Bed Purchasing - Elderly - South,Permanent Nursing,Fshc  1St Floor,7424, 18-Feb-2014
838,Revenue,CCHD,Bed Purchasing - Elderly - South,Permanent Nursing,Fshc  1St Floor,3124.64, 18-Feb-2014
839,Revenue,CCHD,Bed Purchasing - Elderly - South,Permanent Nursing,Fshc  1St Floor,781.16, 18-Feb-2014
840,Revenue,CCHD,Bed Purchasing - Southmead Hospital,Permanent Nursing,Fshc  1St Floor,1370, 18-Feb-2014
841,Revenue,CCHD,Bed Purchasing - Southmead Hospital,Permanent Nursing,Fshc  1St Floor,1370, 18-Feb-2014
842,Revenue,CCHD,Bed Purchasing - Frenchay Hospital,Respite Emergency - Nursing,Fshc  1St Floor,729.14, 18-Feb-2014
843,Revenue,CCHD,Bed Purchasing - Elderly - South,Permanent Nursing,Fshc  1St Floor,1048.64, 18-Feb-2014
844,Revenue,CCHD,Bed Purchasing - Elderly - South,Permanent Nursing,Fshc  1St Floor,1048.64, 18-Feb-2014
845,Revenue,CCHD,Bed Purchasing - Southmead Hospital,Permanent Nursing,Fshc  1St Floor,1370, 18-Feb-2014
846,Revenue,CCHD,Bed Purchasing - Southmead Hospital,Permanent Nursing,Fshc  1St Floor,1370, 18-Feb-2014
847,Revenue,CCHD,Bed Purchasing - Elderly - South,Permanent Nursing,Fshc  1St Floor,8856.07, 18-Feb-2014
848,Revenue,CCHD,Bed Purchasing - Elderly - South,Permanent Nursing,Fshc  1St Floor,1370, 18-Feb-2014
849,Revenue,CCHD,Bed Purchasing - Elderly - South,Permanent Nursing,Fshc  1St Floor,1206.72, 18-Feb-2014
850,Revenue,CCHD,Bed Purchasing - Elderly - South,Permanent Nursing,Fshc  1St Floor,1206.72, 18-Feb-2014
851,Revenue,CCHD,Bed Purchasing - Southmead Hospital,Permanent Nursing,Fshc  1St Floor,1856, 18-Feb-2014
852,Revenue,CCHD,Bed Purchasing - Southmead Hospital,Permanent Nursing,Fshc  1St Floor,1856, 18-Feb-2014
853,Revenue,CCHD,Bed Purchasing - Elderly - South,Permanent Nursing,Fshc  1St Floor,1301.36, 18-Feb-2014
854,Revenue,CCHD,Bed Purchasing - Elderly - South,Permanent Nursing,Fshc  1St Floor,1301.36, 18-Feb-2014
855,Revenue,CCHD,Bed Purchasing - Elderly - South,Permanent Nursing,Fshc  1St Floor,4584.02, 18-Feb-2014
856,Revenue,CCHD,Bed Purchasing - Elderly - South,Permanent Nursing,Fshc  1St Floor,1351.08, 18-Feb-2014
857,Revenue,CCHD,Bed Purchasing - Frenchay Hospital,Permanent Residential,Fshc  1St Floor,1227.08, 18-Feb-2014
858,Revenue,CCHD,Bed Purchasing - Frenchay Hospital,Permanent Nursing,Fshc  1St Floor,1308.96, 18-Feb-2014
859,Revenue,CCHD,Bed Purchasing - Frenchay Hospital,Permanent Nursing,Fshc  1St Floor,1308.96, 18-Feb-2014
860,Revenue,CCHD,Bed Purchasing - Southmead Hospital,Permanent Nursing,Fshc  1St Floor,1370, 18-Feb-2014
861,Revenue,CCHD,Bed Purchasing - Southmead Hospital,Permanent Nursing,Fshc  1St Floor,1370, 18-Feb-2014
862,Revenue,CCHD,Bed Purchasing - Southmead Hospital,Permanent Residential,Fshc  1St Floor,533.6, 18-Feb-2014
863,Revenue,CCHD,Bed Purchasing - Southmead Hospital,Permanent Residential,Fshc  1St Floor,533.6, 18-Feb-2014
864,Revenue,CCHD,Bed Purchasing - Southmead Hospital,Permanent Nursing,Fshc  1St Floor,1102.08, 18-Feb-2014
865,Revenue,CCHD,Bed Purchasing - Southmead Hospital,Permanent Nursing,Fshc  1St Floor,1102.08, 18-Feb-2014
866,Revenue,CCHD,Bed Purchasing - Elderly - North,Permanent Nursing,Fshc  1St Floor,1370, 18-Feb-2014
867,Revenue,CCHD,Bed Purchasing - Elderly - North,Permanent Nursing,Fshc  1St Floor,14727.5, 18-Feb-2014
868,Revenue,CCHD,Bed Purchasing - Elderly - North,Permanent Nursing,Fshc  1St Floor,1370, 18-Feb-2014
869,Revenue,CCHD,Bed Purchasing - Frenchay Hospital,Permanent Nursing,Fshc  1St Floor,2982.86, 18-Feb-2014
870,Revenue,CCHD,Bed Purchasing - Frenchay Hospital,Permanent Nursing,Fshc  1St Floor,1856, 18-Feb-2014
871,Revenue,CCHD,Bed Purchasing - Elderly - North,Permanent Nursing,Fshc  1St Floor,1856, 18-Feb-2014
872,Revenue,CCHD,Bed Purchasing - Elderly - North,Permanent Nursing,Fshc  1St Floor,1856, 18-Feb-2014
873,Revenue,CCHD,Bed Purchasing - Frenchay Hospital,Permanent Nursing,Fshc  1St Floor,1180.6, 18-Feb-2014
874,Revenue,CCHD,Bed Purchasing - Frenchay Hospital,Permanent Nursing,Fshc  1St Floor,1180.6, 18-Feb-2014
875,Revenue,CCHD,Bed Purchasing - Elderly - South,Permanent Nursing,Fshc  1St Floor,1370, 18-Feb-2014
876,Revenue,CCHD,Bed Purchasing - Elderly - South,Permanent Nursing,Fshc  1St Floor,1370, 18-Feb-2014
877,Revenue,CCHD,Bed Purchasing - Elderly - South,Permanent Nursing,Fshc  1St Floor,1316.36, 18-Feb-2014
878,Revenue,CCHD,Bed Purchasing - Elderly - South,Permanent Nursing,Fshc  1St Floor,1316.36, 18-Feb-2014
879,Revenue,CCHD,Bed Purchasing - Elderly MH - South,Permanent Nursing,Fshc  1St Floor,1370, 18-Feb-2014
880,Revenue,CCHD,Bed Purchasing - Elderly - South,Permanent Nursing,Fshc  1St Floor,1371.6, 18-Feb-2014
881,Revenue,CCHD,Bed Purchasing - Elderly - South,Permanent Nursing,Fshc  1St Floor,1371.6, 18-Feb-2014
882,Revenue,CCHD,Bed Purchasing - Frenchay Hospital,Permanent Nursing,Fshc  1St Floor,1078.4, 18-Feb-2014
883,Revenue,CCHD,Bed Purchasing - Frenchay Hospital,Permanent Nursing,Fshc  1St Floor,1078.4, 18-Feb-2014
884,Revenue,CCHD,Bed Purchasing - Elderly MH - South,Permanent Residential,Fshc  1St Floor,1090.48, 18-Feb-2014
885,Revenue,CCHD,Bed Purchasing - Elderly MH - South,Permanent Residential,Fshc  1St Floor,1090.48, 18-Feb-2014
886,Revenue,CCHD,Bed Purchasing - Elderly - South,Respite Emergency - Nursing,Fshc  1St Floor,1856, 18-Feb-2014
887,Revenue,CCHD,Bed Purchasing - Elderly - South,Permanent Nursing,Fshc  1St Floor,1334, 18-Feb-2014
888,Revenue,CCHD,Bed Purchasing - Elderly - South,Permanent Nursing,Fshc  1St Floor,1334, 18-Feb-2014
889,Revenue,CCHD,Bed Purchasing - Southmead Hospital,Permanent Nursing,Fshc  1St Floor,1370, 18-Feb-2014
890,Revenue,CCHD,Bed Purchasing - Southmead Hospital,Permanent Nursing,Fshc  1St Floor,1370, 18-Feb-2014
891,Revenue,CCHD,Bed Purchasing - Elderly MH - South,Permanent Nursing,Fshc  1St Floor,1216.84, 18-Feb-2014
892,Revenue,CCHD,Bed Purchasing - Elderly MH - South,Permanent Nursing,Fshc  1St Floor,1216.84, 18-Feb-2014
893,Revenue,CCHD,Bed Purchasing - Southmead Hospital,Permanent Nursing,Fshc  1St Floor,1362.4, 18-Feb-2014
894,Revenue,CCHD,Bed Purchasing - Southmead Hospital,Permanent Nursing,Fshc  1St Floor,1362.4, 18-Feb-2014
895,Revenue,CCHD,Bed purchasing - Elderly MH - North,Permanent Nursing,Fshc  1St Floor,786.72, 18-Feb-2014
896,Revenue,CCHD,Bed Purchasing - Elderly - South,Permanent Nursing,Fshc  1St Floor,992.4, 18-Feb-2014
897,Revenue,CCHD,Bed Purchasing - Southmead Hospital,Permanent Nursing,Fshc  1St Floor,985.8, 18-Feb-2014
898,Revenue,CCHD,Bed Purchasing - Elderly - North,Permanent Nursing,Fshc  1St Floor,1134.84, 18-Feb-2014
899,Revenue,CCHD,Bed Purchasing - Elderly - North,Permanent Nursing,Fshc  1St Floor,974.36, 18-Feb-2014
900,Revenue,CCHD,Bed Purchasing - Frenchay Hospital,Permanent Nursing,Fshc  1St Floor,905.11, 18-Feb-2014
901,Revenue,CCHD,Bed Purchasing - Elderly - North,Permanent Nursing,Fshc  1St Floor,1284.08, 18-Feb-2014
902,Revenue,CCHD,Bed Purchasing - Elderly - North,Permanent Nursing,Fshc  1St Floor,1565.71, 18-Feb-2014
903,Revenue,CCHD,Bed Purchasing - Elderly - North,Permanent Nursing,Fshc  1St Floor,1370, 18-Feb-2014
904,Revenue,CCHD,Bed Purchasing - Elderly - North,Permanent Nursing,Fshc  1St Floor,1339, 18-Feb-2014
905,Revenue,CCHD,Bed Purchasing - Elderly - North,Permanent Nursing,Fshc  1St Floor,961.82, 18-Feb-2014
906,Revenue,CCHD,Bed Purchasing - Southmead Hospital,Permanent Nursing,Fshc  1St Floor,1215.4, 18-Feb-2014
907,Revenue,CCHD,Bed Purchasing - Elderly - North,Permanent Residential,Fshc  1St Floor,1347.68, 18-Feb-2014
908,Revenue,CCHD,Bed Purchasing - Elderly - North,Permanent Residential,Fshc  1St Floor,1359.72, 18-Feb-2014
909,Revenue,CCHD,Bed Purchasing - Southmead Hospital,Permanent Nursing,Fshc  1St Floor,2032, 18-Feb-2014
910,Revenue,CCHD,Bed Purchasing - Frenchay Hospital,Permanent Nursing,Fshc  1St Floor,1097.72, 18-Feb-2014
911,Revenue,CCHD,Bed Purchasing - Frenchay Hospital,Permanent Nursing,Fshc  1St Floor,1114.96, 18-Feb-2014
912,Revenue,CCHD,Bed purchasing - Elderly MH - North,Permanent Nursing,Fshc  1St Floor,6954.12, 18-Feb-2014
913,Revenue,CCHD,Bed purchasing - Elderly MH - North,Permanent Nursing,Fshc  1St Floor,1030.24, 18-Feb-2014
914,Revenue,CCHD,Bed Purchasing - Southmead Hospital,Permanent Nursing,Fshc  1St Floor,1269.68, 18-Feb-2014
915,Revenue,CCHD,Bed Purchasing - Elderly - South,Permanent Residential,Fshc  1St Floor,1117.84, 18-Feb-2014
916,Revenue,CCHD,Bed Purchasing - Frenchay Hospital,Permanent Nursing,Fshc  1St Floor,1546, 18-Feb-2014
917,Revenue,CCHD,Bed Purchasing - Southmead Hospital,Permanent Nursing,Fshc  1St Floor,1546, 18-Feb-2014
918,Revenue,CCHD,Bed Purchasing - Southmead Hospital,Permanent Nursing,Fshc  1St Floor,1370, 18-Feb-2014
919,Revenue,CCHD,Bed Purchasing - Elderly - North,Permanent Nursing,Fshc  1St Floor,579.12, 18-Feb-2014
920,Revenue,CCHD,Bed purchasing - Elderly MH - North,Permanent Nursing,Fshc  1St Floor,1468.6, 18-Feb-2014
921,Revenue,CCHD,Bed Purchasing - Elderly - North,Permanent Nursing,Fshc  1St Floor,1269.68, 18-Feb-2014
922,Revenue,CCHD,Bed Purchasing - Frenchay Hospital,Permanent Nursing,Fshc  1St Floor,1018.76, 18-Feb-2014
923,Revenue,CCHD,Bed Purchasing - Southmead Hospital,Permanent Nursing,Fshc  1St Floor,1364.32, 18-Feb-2014
924,Revenue,CCHD,Bed Purchasing - Frenchay Hospital,Permanent Residential,Fshc  1St Floor,628.4, 18-Feb-2014
925,Revenue,CCHD,Bed Purchasing - Frenchay Hospital,Permanent Nursing,Fshc  1St Floor,1286.96, 18-Feb-2014
926,Revenue,CCHD,Bed Purchasing - Frenchay Hospital,Permanent Nursing,Fshc  1St Floor,1350.84, 18-Feb-2014
927,Revenue,CCHD,Bed Purchasing - Elderly - North,Permanent Nursing,Fshc  1St Floor,1041.72, 18-Feb-2014
928,Revenue,CCHD,Bed Purchasing - Elderly - North,Permanent Residential,Fshc  1St Floor,782.56, 18-Feb-2014
929,Revenue,CCHD,Bed Purchasing - Frenchay Hospital,Permanent Nursing,Fshc  1St Floor,1211.8, 18-Feb-2014
930,Revenue,CCHD,Bed Purchasing - Southmead Hospital,Permanent Nursing,Fshc  1St Floor,1450.56, 18-Feb-2014
931,Revenue,CCHD,Bed Purchasing - Southmead Hospital,Permanent Nursing,Fshc  1St Floor,1546, 18-Feb-2014
932,Revenue,CCHD,Bed Purchasing - Elderly MH - South,Permanent Nursing,Fshc  1St Floor,1327.8, 18-Feb-2014
933,Revenue,CCHD,Bed Purchasing - Elderly - North,Permanent Nursing,Fshc  1St Floor,1449, 18-Feb-2014
934,Revenue,CCHD,Bed Purchasing - Elderly - North,Permanent Residential,Fshc  1St Floor,505.4, 18-Feb-2014
935,Revenue,CCHD,Bed purchasing - Elderly MH - North,Permanent Residential,Fshc  1St Floor,1438, 18-Feb-2014
936,Revenue,CCHD,Bed Purchasing - Elderly - North,Permanent Nursing,Fshc  1St Floor,1530.84, 18-Feb-2014
937,Revenue,CCHD,Bed purchasing - Elderly S117 - South,Permanent Nursing,Fshc  1St Floor,1856, 18-Feb-2014
938,Revenue,CCHD,Bed purchasing - Elderly MH - North,Permanent Residential,Fshc  1St Floor,1255.2, 18-Feb-2014
939,Revenue,CCHD,Bed Purchasing - Southmead Hospital,Permanent Residential,Fshc  1St Floor,1246, 18-Feb-2014
940,Revenue,CCHD,Bed Purchasing - Elderly - North,Permanent Residential,Fshc  1St Floor,1155.6, 18-Feb-2014
941,Revenue,CCHD,Bed purchasing - Elderly MH - North,Permanent Residential,Fshc  1St Floor,14822.96, 18-Feb-2014
942,Revenue,CCHD,Bed purchasing - Elderly MH - North,Permanent Residential,Fshc  1St Floor,1378.88, 18-Feb-2014
943,Revenue,CCHD,Bed Purchasing - Elderly - North,Permanent Nursing,Fshc  1St Floor,1349.52, 18-Feb-2014
944,Revenue,CCHD,Bed Purchasing - Southmead Hospital,Permanent Nursing,Fshc  1St Floor,1213.24, 18-Feb-2014
945,Revenue,CCHD,Bed purchasing - Elderly MH - North,Permanent Nursing,Fshc  1St Floor,1048.64, 18-Feb-2014
946,Revenue,CCHD,Bed Purchasing - Elderly - North,Permanent Nursing,Fshc  1St Floor,1370, 18-Feb-2014
947,Revenue,CCHD,Bed Purchasing - Elderly - North,Permanent Residential,Fshc  1St Floor,1254, 18-Feb-2014
948,Revenue,CCHD,Bed Purchasing - Elderly - North,Permanent Nursing,Fshc  1St Floor,1145.72, 18-Feb-2014
949,Revenue,CCHD,Bed Purchasing - Frenchay Hospital,Permanent Residential,Fshc  1St Floor,1246, 18-Feb-2014
950,Revenue,CCHD,Bed Purchasing - Elderly - North,Permanent Nursing,Fshc  1St Floor,1206.95, 18-Feb-2014
951,Revenue,CCHD,Bed Purchasing - Southmead Hospital,Permanent Nursing,Fshc  1St Floor,2299.64, 18-Feb-2014
952,Revenue,CCHD,Bed Purchasing - Southmead Hospital,Permanent Nursing,Fshc  1St Floor,1370, 18-Feb-2014
953,Revenue,CCHD,South Glos Users in South Glos Homes,Permanent Nursing,Fshc  1St Floor,2682.01, 18-Feb-2014
954,Revenue,CCHD,Bed Purchasing - Frenchay Hospital,Permanent Nursing,Fshc  1St Floor,1307.44, 18-Feb-2014
955,Revenue,CCHD,Bed Purchasing - Elderly - North,Permanent Nursing,Fshc  1St Floor,854.8, 18-Feb-2014
956,Revenue,CCHD,Bed Purchasing - Elderly - North,Permanent Nursing,Fshc  1St Floor,1013.16, 18-Feb-2014
957,Revenue,CCHD,Bed Purchasing - Southmead Hospital,Permanent Nursing,Fshc  1St Floor,1020.68, 18-Feb-2014
958,Revenue,CCHD,Bed Purchasing - Southmead Hospital,Respite Emergency - Nursing,Fshc  1St Floor,766.29, 18-Feb-2014
959,Revenue,CCHD,Bed Purchasing - Elderly - South,Permanent Nursing,Fshc  1St Floor,1368.76, 18-Feb-2014
960,Revenue,CCHD,Bed Purchasing - Frenchay Hospital,Permanent Nursing,Fshc  1St Floor,1300.8, 18-Feb-2014
961,Revenue,CCHD,Bed Purchasing - Frenchay Hospital,Permanent Nursing,Fshc  1St Floor,14727.5, 18-Feb-2014
962,Revenue,CCHD,Bed Purchasing - Frenchay Hospital,Permanent Nursing,Fshc  1St Floor,1370, 18-Feb-2014
963,Revenue,CCHD,Bed Purchasing - Southmead Hospital,Permanent Nursing,Fshc  1St Floor,592.56, 18-Feb-2014
964,Revenue,CCHD,Bed Purchasing - Elderly - North,Permanent Nursing,Fshc  1St Floor,1268.68, 18-Feb-2014
965,Revenue,CCHD,Bed Purchasing - Elderly - North,Permanent Nursing,Fshc  1St Floor,1071.64, 18-Feb-2014
966,Revenue,CCHD,Bed Purchasing - Southmead Hospital,Permanent Nursing,Fshc  1St Floor,754.48, 18-Feb-2014
967,Revenue,CCHD,Bed Purchasing - Frenchay Hospital,Permanent Nursing,Fshc  1St Floor,873.36, 18-Feb-2014
968,Revenue,CCHD,Bed Purchasing - Southmead Hospital,Permanent Nursing,Fshc  1St Floor,1292.6, 18-Feb-2014
969,Revenue,CCHD,Bed Purchasing - Elderly - North,Permanent Nursing,Fshc  1St Floor,1249.04, 18-Feb-2014
970,Revenue,CCHD,Bed Purchasing - Elderly - South,Permanent Nursing,Fshc  1St Floor,786.16, 18-Feb-2014
971,Revenue,CCHD,Bed Purchasing - Frenchay Hospital,Permanent Nursing,Fshc  1St Floor,1336.6, 18-Feb-2014
972,Revenue,CCHD,Bed Purchasing - Southmead Hospital,Permanent Nursing,Fshc  1St Floor,1344.2, 18-Feb-2014
973,Revenue,CCHD,Bed Purchasing - Southmead Hospital,Permanent Nursing,Fshc  1St Floor,1957.16, 18-Feb-2014
974,Revenue,CCHD,Bed Purchasing - Elderly - North,Permanent Residential,Fshc  1St Floor,2960.04, 18-Feb-2014
975,Revenue,CCHD,Bed purchasing - Phys Dis - North,Permanent Nursing,Fshc  1St Floor,1376.28, 18-Feb-2014
976,Revenue,CCHD,Bed Purchasing - Elderly - South,Permanent Nursing,Fshc  1St Floor,1224.64, 18-Feb-2014
977,Revenue,CCHD,Bed Purchasing - Southmead Hospital,Permanent Nursing,Fshc  1St Floor,1370, 18-Feb-2014
978,Revenue,CCHD,Bed Purchasing - Southmead Hospital,Permanent Nursing,Fshc  1St Floor,1298.96, 18-Feb-2014
979,Revenue,CCHD,Bed Purchasing - Elderly MH - South,Permanent Residential,Fshc  1St Floor,1924, 18-Feb-2014
980,Revenue,CCHD,Bed Purchasing - Frenchay Hospital,Permanent Nursing,Fshc  1St Floor,1359.08, 18-Feb-2014
981,Revenue,CCHD,Bed Purchasing - Frenchay Hospital,Permanent Nursing,Fshc  1St Floor,1293.56, 18-Feb-2014
982,Revenue,CCHD,Bed Purchasing - Southmead Hospital,Permanent Residential,Fshc  1St Floor,1466, 18-Feb-2014
983,Revenue,CCHD,Bed Purchasing - Elderly - South,Permanent Residential,Fshc  1St Floor,1399.72, 18-Feb-2014
984,Revenue,CCHD,Bed Purchasing - Elderly - North,Permanent Residential,Fshc  1St Floor,1160.96, 18-Feb-2014
985,Revenue,CCHD,Bed Purchasing - Elderly - North,Permanent Nursing,Fshc  1St Floor,1135, 18-Feb-2014
986,Revenue,CCHD,Bed Purchasing - Frenchay Hospital,Permanent Nursing,Fshc  1St Floor,1230.52, 18-Feb-2014
987,Revenue,CCHD,South Glos Users in South Glos Homes,Permanent Nursing,Fshc  1St Floor,4830.76, 18-Feb-2014
988,Revenue,CCHD,South Glos Users in South Glos Homes,Permanent Nursing,Fshc  1St Floor,947.24, 18-Feb-2014
989,Revenue,CCHD,Bed Purchasing - Elderly - South,Permanent Residential,Fshc  1St Floor,1105.84, 18-Feb-2014
990,Revenue,CCHD,Bed Purchasing - Elderly - South,Permanent Residential,Fshc  1St Floor,552.92, 18-Feb-2014
991,Revenue,CCHD,Bed purchasing - Elderly MH - North,Permanent Residential,Fshc  1St Floor,1438, 18-Feb-2014
992,Revenue,CCHD,Bed Purchasing - Southmead Hospital,Permanent Nursing,Fshc  1St Floor,1370, 18-Feb-2014
993,Revenue,CCHD,Bed Purchasing - Southmead Hospital,Permanent Nursing,Fshc  1St Floor,1366, 18-Feb-2014
994,Revenue,CCHD,Bed Purchasing - Elderly - South,Permanent Residential,Fshc  1St Floor,901.24, 18-Feb-2014
995,Revenue,CCHD,Bed purchasing - Elderly PWLD - South,Permanent Residential,Fshc  1St Floor,1246, 18-Feb-2014
996,Revenue,CCHD,Bed Purchasing - Frenchay Hospital,Permanent Nursing,Fshc  1St Floor,1370, 18-Feb-2014
997,Revenue,CCHD,Bed Purchasing - Southmead Hospital,Permanent Nursing,Fshc  1St Floor,1101.08, 18-Feb-2014
998,Revenue,CCHD,Bed Purchasing - Elderly - North,Permanent Residential,Fshc  1St Floor,1179.92, 18-Feb-2014
999,Revenue,CCHD,Bed Purchasing - Frenchay Hospital,Permanent Nursing,Fshc  1St Floor,1856, 18-Feb-2014
1000,Revenue,CCHD,Bed Purchasing - Frenchay Hospital,Permanent Nursing,Fshc  1St Floor,1370, 18-Feb-2014
1001,Revenue,CCHD,Bed Purchasing - Southmead Hospital,Permanent Nursing,Fshc  1St Floor,957.12, 18-Feb-2014
1002,Revenue,CCHD,Bed Purchasing - Elderly - South,Permanent Residential,Fshc  1St Floor,8778.02, 18-Feb-2014
1003,Revenue,CCHD,Bed Purchasing - Elderly - South,Permanent Residential,Fshc  1St Floor,816.56, 18-Feb-2014
1004,Revenue,CCHD,Bed Purchasing - Elderly - South,Permanent Nursing,Fshc  1St Floor,1354, 18-Feb-2014
1005,Revenue,CCHD,Bed Purchasing - Southmead Hospital,Permanent Residential,Fshc  1St Floor,1453.28, 18-Feb-2014
1006,Revenue,CCHD,Bed Purchasing - Elderly - South,Permanent Nursing,Fshc  1St Floor,1206.76, 18-Feb-2014
1007,Revenue,CCHD,Bed Purchasing - Elderly - South,Permanent Nursing,Fshc  1St Floor,941.76, 18-Feb-2014
1008,Revenue,CCHD,Bed purchasing - Elderly S117 - South,Permanent Nursing,Fshc  1St Floor,1856, 18-Feb-2014
1009,Revenue,CCHD,Bed Purchasing - Frenchay Hospital,Permanent Residential,Fshc  1St Floor,1107.56, 18-Feb-2014
1010,Revenue,CCHD,Bed Purchasing - Elderly - North,Permanent Nursing,Fshc  1St Floor,1305.92, 18-Feb-2014
1011,Revenue,CCHD,Bed Purchasing - Southmead Hospital,Permanent Nursing,Fshc  1St Floor,1180.56, 18-Feb-2014
1012,Revenue,CCHD,Bed Purchasing - Elderly - North,Permanent Residential,Fshc  1St Floor,12899.14, 18-Feb-2014
1013,Revenue,CCHD,Bed Purchasing - Elderly - North,Permanent Residential,Fshc  1St Floor,1199.92, 18-Feb-2014
1014,Revenue,CCHD,Bed Purchasing - Elderly - South,Permanent Nursing,Fshc  1St Floor,1370, 18-Feb-2014
1015,Revenue,CCHD,Bed Purchasing - Elderly - South,Permanent Nursing,Fshc  1St Floor,1370, 18-Feb-2014
1016,Revenue,CCHD,South Glos Users in South Glos Homes,Permanent Nursing,Fshc  1St Floor,1459.69, 18-Feb-2014
1017,Revenue,CCHD,Bed Purchasing - Southmead Hospital,Permanent Nursing,Fshc  1St Floor,1856, 18-Feb-2014
1018,Revenue,CCHD,Bed Purchasing - Frenchay Hospital,Permanent Nursing,Fshc  1St Floor,1109.92, 18-Feb-2014
1019,Revenue,CCHD,Bed Purchasing - Southmead Hospital,Permanent Nursing,Fshc  1St Floor,1114.88, 18-Feb-2014
1020,Revenue,CCHD,Bed Purchasing - Frenchay Hospital,Permanent Nursing,Fshc  1St Floor,956.08, 18-Feb-2014
1021,Revenue,CCHD,Bed Purchasing - Frenchay Hospital,Permanent Nursing,Fshc  1St Floor,1287, 18-Feb-2014
1022,Revenue,CCHD,Bed Purchasing - Frenchay Hospital,Permanent Nursing,Fshc  1St Floor,1117.88, 18-Feb-2014
1023,Revenue,CCHD,Bed Purchasing - Frenchay Hospital,Permanent Nursing,Fshc  1St Floor,1370, 18-Feb-2014
1024,Revenue,CCHD,Bed Purchasing - Southmead Hospital,Permanent Nursing,Fshc  1St Floor,870.76, 18-Feb-2014
1025,Revenue,CCHD,Bed purchasing - Elderly MH - North,Permanent Residential,Fshc  1St Floor,628.18, 18-Feb-2014
1026,Revenue,CCHD,Bed Purchasing - Southmead Hospital,Permanent Nursing,Fshc  1St Floor,739.04, 18-Feb-2014
1027,Revenue,CCHD,Bed Purchasing - Southmead Hospital,Permanent Residential,Fshc  1St Floor,1732, 18-Feb-2014
1028,Revenue,CCHD,Bed Purchasing - Frenchay Hospital,Permanent Nursing,Fshc  1St Floor,1394.12, 18-Feb-2014
1029,Revenue,CCHD,Bed Purchasing - Elderly - North,Permanent Nursing,Fshc  1St Floor,1276.2, 18-Feb-2014
1030,Revenue,CCHD,Bed purchasing - Phys Dis - North,Permanent Nursing,Fshc  1St Floor,840.44, 18-Feb-2014
1031,Revenue,CCHD,Bed Purchasing - Elderly - North,Permanent Nursing,Fshc  1St Floor,1478, 18-Feb-2014
1032,Revenue,CCHD,Bed Purchasing - Elderly - North,Permanent Nursing,Fshc  1St Floor,1209.6, 18-Feb-2014
1033,Revenue,CCHD,Bed Purchasing - Frenchay Hospital,Permanent Nursing,Fshc  1St Floor,1302, 18-Feb-2014
1034,Revenue,CCHD,Bed purchasing - Elderly MH - North,Permanent Nursing,Fshc  1St Floor,858.48, 18-Feb-2014
1035,Revenue,CCHD,Bed Purchasing - Southmead Hospital,Permanent Nursing,Fshc  1St Floor,1478, 18-Feb-2014
1036,Revenue,CCHD,Bed Purchasing - Frenchay Hospital,Permanent Residential,Fshc  1St Floor,1215.68, 18-Feb-2014
1037,Revenue,CCHD,Bed Purchasing - Southmead Hospital,Permanent Nursing,Fshc  1St Floor,1285.4, 18-Feb-2014
1038,Revenue,CCHD,Bed Purchasing - Frenchay Hospital,Permanent Nursing,Fshc  1St Floor,1930.67, 18-Feb-2014
1039,Revenue,CCHD,Bed Purchasing - Frenchay Hospital,Permanent Nursing,Fshc  1St Floor,1103.24, 18-Feb-2014
1040,Revenue,CCHD,Bed Purchasing - Southmead Hospital,Permanent Nursing,Fshc  1St Floor,1445.84, 18-Feb-2014
1041,Revenue,CCHD,Bed purchasing - Elderly S117 - South,Permanent Nursing,Fshc  1St Floor,1964, 18-Feb-2014
1042,Revenue,CCHD,Bed purchasing - Elderly S117 - South,Permanent Nursing,Fshc  1St Floor,1964, 18-Feb-2014
1043,Revenue,CCHD,Bed Purchasing - Frenchay Hospital,Permanent Nursing,Fshc  1St Floor,951.24, 18-Feb-2014
1044,Revenue,CCHD,Bed Purchasing - Frenchay Hospital,Permanent Nursing,Fshc  1St Floor,951.24, 18-Feb-2014
1045,Revenue,CCHD,Bed Purchasing - Elderly S117- North,Permanent Nursing,Fshc  1St Floor,1964, 18-Feb-2014
1046,Revenue,CCHD,Bed Purchasing - Elderly S117- North,Permanent Nursing,Fshc  1St Floor,1964, 18-Feb-2014
1047,Revenue,CCHD,Bed Purchasing - Elderly - North,Permanent Residential,Fshc  1St Floor,1414, 18-Feb-2014
1048,Revenue,CCHD,Bed Purchasing - Elderly - North,Permanent Residential,Fshc  1St Floor,1414, 18-Feb-2014
1049,Revenue,CCHD,Bed Purchasing - Frenchay Hospital,Permanent Nursing,Fshc  1St Floor,1097.04, 18-Feb-2014
1050,Revenue,CCHD,Bed Purchasing - Frenchay Hospital,Permanent Nursing,Fshc  1St Floor,1097.04, 18-Feb-2014
1051,Revenue,CCHD,Bed Purchasing - Elderly - South,Permanent Residential,Fshc  1St Floor,1340.56, 18-Feb-2014
1052,Revenue,CCHD,Bed Purchasing - Southmead Hospital,Permanent Residential,FSHC 1st Floor,3243.9, 18-Feb-2014
1053,Revenue,CCHD,Bed Purchasing - Frenchay Hospital,Permanent Nursing,Gardenia Court Nursing Home,742.05, 18-Feb-2014
1054,Revenue,CCHD,Woodleaze,Prop.Serv. General Repairs,George Grimes,695.5, 26-Feb-2014
1055,Revenue,CCHD,Alexandra Way,Prop.Serv. General Repairs,George Grimes,838.5, 19-Feb-2014
1056,Revenue,CCHD,Section 117 Placements MH Younger,Permanent Residential,Gladstone House,2721.88, 18-Feb-2014
1057,Revenue,CCHD,Bed purchasing - Elderly MH - North,Permanent Residential,Glebe House Nursing Home,1792.88, 18-Feb-2014
1058,Revenue,CCHD,South Glos Users in South Glos Homes,Permanent Nursing,Glebe House Nursing Home,1442.95, 18-Feb-2014
1059,Revenue,CCHD,Bed purchasing - Elderly MH - North,Permanent Residential,Glebe House Nursing Home,2007.6, 18-Feb-2014
1060,Revenue,CCHD,Bed Purchasing - Elderly - North,Permanent Nursing,Glebe House Nursing Home,1387.96, 18-Feb-2014
1061,Revenue,CCHD,Bed Purchasing - Frenchay Hospital,Permanent Nursing,Glebe House Nursing Home,898.48, 18-Feb-2014
1062,Revenue,CCHD,Bed Purchasing - Elderly - North,Permanent Residential,Glebe House Nursing Home,1172.16, 18-Feb-2014
1063,Revenue,CCHD,Swift Dump Code,Permanent Residential,Glebe House Nursing Home,2865.71, 18-Feb-2014
1064,Revenue,CCHD,Bed Purchasing - Elderly - North,Permanent Nursing,Glebe House Nursing Home,966.7, 18-Feb-2014
1065,Revenue,CCHD,Bed Purchasing - Elderly - North,Permanent Nursing,Glebe House Nursing Home,837.82, 18-Feb-2014
1066,Revenue,CCHD,Bed Purchasing - Elderly - North,Permanent Nursing,Glebe House Nursing Home,6113.3, 18-Feb-2014
1067,Revenue,CCHD,Bed Purchasing - Elderly - North,Permanent Nursing,Glebe House Nursing Home,2113.24, 18-Feb-2014
1068,Revenue,CCHD,Bed Purchasing - Elderly - South,Permanent Residential,Glebe House Nursing Home,1977.76, 18-Feb-2014
1069,Revenue,CCHD,Bed Purchasing - Elderly - North,Permanent Residential,Glebe House Nursing Home,2551.92, 18-Feb-2014
1070,Revenue,CCHD,Bed Purchasing - Under 65s PWLD - South,Permanent Residential,Gordena Care Home,2082.36, 18-Feb-2014
1071,Revenue,CCHD,Bed purchasing - Elderly PWLD - South,Permanent Residential,Gordena Care Home,4732.4, 18-Feb-2014
1072,Revenue,CCHD,Bed purchasing - Elderly PWLD - South,Permanent Residential,Gordena Care Home,3116.24, 18-Feb-2014
1073,Revenue,CCHD,Bed purchasing - Elderly PWLD - South,Permanent Residential,Gordena Care Home,2927.44, 18-Feb-2014
1074,Revenue,CCHD,Bed Purchasing - Under 65s PWLD - South,Permanent Residential,Gordena Care Home,1907.6, 18-Feb-2014
1075,Revenue,CCHD,Bed Purchasing - Under 65s PWLD - South,Permanent Residential,Gordena Care Limited,4158.56, 18-Feb-2014
1076,Revenue,CCHD,Bed purchasing - S28A Under 65 - South,Permanent Residential,Gordena Care Limited,4055.8, 18-Feb-2014
1077,Revenue,CCHD,Bed purchasing - Under 65s PWLD - North,Permanent Residential,Gordena Care Limited,4160, 18-Feb-2014
1078,Revenue,CCHD,Bed Purchasing - Elderly - North,Permanent Residential,Greensleeves,1312.68, 18-Feb-2014
1079,Revenue,CCHD,Bed Purchasing - Elderly - North,Permanent Residential,Gwendoline House,887.56, 18-Feb-2014
1080,Revenue,CCHD,Bed Purchasing - Elderly - North,Permanent Residential,Gwendoline House,887.56, 18-Feb-2014
1081,Revenue,CCHD,Bed Purchasing - Elderly - South,Permanent Residential,Gwendoline House,1490.04, 18-Feb-2014
1082,Revenue,CCHD,Bed Purchasing - Elderly - South,Permanent Residential,Gwendoline House,1490.04, 18-Feb-2014
1083,Revenue,CCHD,Bed Purchasing - Elderly - South,Permanent Residential,Gwendoline House,1164.96, 18-Feb-2014
1084,Revenue,CCHD,Bed Purchasing - Elderly - South,Permanent Residential,Gwendoline House,1164.96, 18-Feb-2014
1085,Revenue,CCHD,Bed Purchasing - Elderly - North,Permanent Residential,Gwendoline House,1636.56, 18-Feb-2014
1086,Revenue,CCHD,Bed Purchasing - Elderly - North,Permanent Residential,Gwendoline House,1636.56, 18-Feb-2014
1087,Revenue,CCHD,Bed Purchasing - Elderly - South,Permanent Residential,Gwendoline House,816.47, 18-Feb-2014
1088,Revenue,CCHD,Bed Purchasing - Elderly MH - South,Permanent Residential,Gwendoline House,1284.64, 18-Feb-2014
1089,Revenue,CCHD,Bed Purchasing - Elderly MH - South,Permanent Residential,Gwendoline House,1284.64, 18-Feb-2014
1090,Revenue,CCHD,Bed Purchasing - Elderly - South,Permanent Residential,Gwendoline House,1128.52, 18-Feb-2014
1091,Revenue,CCHD,Bed Purchasing - Elderly - South,Permanent Residential,Gwendoline House,1128.52, 18-Feb-2014
1092,Revenue,CCHD,Supporting People Programme,Grants to Voluntary Bodies,Habinteg Housing Association,1338.75, 28-Feb-2014
1093,Revenue,CCHD,Bed Purchasing - Elderly - South,Permanent Residential,Harefield Hall,1327.24, 18-Feb-2014
1094,Revenue,CCHD,Bed Purchasing - Elderly - South,Permanent Residential,Harefield Hall,1968.44, 18-Feb-2014
1095,Revenue,CCHD,Bed Purchasing - Elderly - South,Permanent Residential,Harefield Hall,1112.96, 18-Feb-2014
1096,Revenue,CCHD,Bed Purchasing - Elderly - South,Permanent Residential,Harefield Hall,1778.56, 18-Feb-2014
1097,Revenue,CCHD,Bed Purchasing - Elderly MH - South,Permanent Residential,Harefield Hall,1030.52, 18-Feb-2014
1098,Revenue,CCHD,Bed Purchasing - Elderly - South,Permanent Residential,Harefield Hall,1291.8, 18-Feb-2014
1099,Revenue,CCHD,Drug Misuse - Adults,Other Supplies & Services,Hayfield Pharmacy,2550, 24-Feb-2014
1100,Revenue,CCHD,Bed Purchasing - Southmead Hospital,Permanent Nursing,Hc-One Ltd,1613.52, 18-Feb-2014
1101,Revenue,CCHD,Bed Purchasing - Southmead Hospital,Permanent Nursing,Hc-One Ltd,1613.52, 18-Feb-2014
1102,Revenue,CCHD,Bed Purchasing - Elderly - North,Permanent Nursing,Hc-One Ltd,1469.6, 18-Feb-2014
1103,Revenue,CCHD,Bed Purchasing - Elderly - North,Permanent Nursing,Hc-One Ltd,1469.6, 18-Feb-2014
1104,Revenue,CCHD,Bed Purchasing - Elderly - North,Permanent Nursing,Hc-One Ltd,1509.48, 18-Feb-2014
1105,Revenue,CCHD,Bed Purchasing - Elderly - North,Permanent Nursing,Hc-One Ltd,754.74, 18-Feb-2014
1106,Revenue,CCHD,Bed Purchasing - Elderly - North,Permanent Nursing,Hc-One Ltd,1499.04, 18-Feb-2014
1107,Revenue,CCHD,Bed Purchasing - Elderly - North,Permanent Nursing,Hc-One Ltd,1499.04, 18-Feb-2014
1108,Revenue,CCHD,Bed purchasing - Elderly PWLD - South,Permanent Nursing,Hc-One Ltd,1929.96, 18-Feb-2014
1109,Revenue,CCHD,Bed purchasing - Elderly PWLD - South,Permanent Nursing,Hc-One Ltd,1929.96, 18-Feb-2014
1110,Revenue,CCHD,Bed purchasing - Elderly MH - North,Permanent Nursing,Hc-One Ltd,1478, 18-Feb-2014
1111,Revenue,CCHD,Bed purchasing - Elderly MH - North,Permanent Nursing,Hc-One Ltd,1478, 18-Feb-2014
1112,Revenue,CCHD,Bed purchasing - Elderly MH - North,Permanent Nursing,Hc-One Ltd,1229.12, 18-Feb-2014
1113,Revenue,CCHD,Bed purchasing - Elderly MH - North,Permanent Nursing,Hc-One Ltd,1229.12, 18-Feb-2014
1114,Revenue,CCHD,Bed Purchasing - Frenchay Hospital,Permanent Nursing,Hc-One Ltd,1471.16, 18-Feb-2014
1115,Revenue,CCHD,Bed Purchasing - Frenchay Hospital,Permanent Nursing,Hc-One Ltd,1471.16, 18-Feb-2014
1116,Revenue,CCHD,Bed Purchasing - Elderly - South,Permanent Nursing,Hc-One Ltd,1146.88, 18-Feb-2014
1117,Revenue,CCHD,Bed Purchasing - Elderly - South,Permanent Nursing,Hc-One Ltd,1146.88, 18-Feb-2014
1118,Revenue,CCHD,Bed purchasing - Elderly MH - North,Permanent Nursing,Hc-One Ltd,1170.6, 18-Feb-2014
1119,Revenue,CCHD,Bed purchasing - Elderly MH - North,Permanent Nursing,Hc-One Ltd,1170.6, 18-Feb-2014
1120,Revenue,CCHD,Bed Purchasing - Elderly S117- North,Permanent Nursing,Hc-One Ltd,1947.72, 18-Feb-2014
1121,Revenue,CCHD,Bed Purchasing - Elderly S117- North,Permanent Nursing,Hc-One Ltd,1947.72, 18-Feb-2014
1122,Revenue,CCHD,Day Care - South,Private & Voluntary Day Care,Headway Bristol,570.96, 28-Feb-2014
1123,Revenue,CCHD,Home Care - Elderly - South,Other Small Contracts,Helping Hands Homecare,285.43, 06-Feb-2014
1124,Revenue,CCHD,Home Care - Elderly - North,Other Small Contracts,Helping Hands Homecare,1169.09, 06-Feb-2014
1125,Revenue,CCHD,Day Care - North,Private & Voluntary Day Care,Helping Hands Homecare,31.28, 06-Feb-2014
1126,Revenue,CCHD,Home care - Elderly MH - North,Other Small Contracts,Helping Hands Homecare,66.47, 06-Feb-2014
1127,Revenue,CCHD,Home Care - Elderly - South,Other Small Contracts,Helping Hands Homecare,218.96, 06-Feb-2014
1128,Revenue,CCHD,Home Care - Elderly - North,Other Small Contracts,Helping Hands Homecare,1384.14, 06-Feb-2014
1129,Revenue,CCHD,Day Care - North,Private & Voluntary Day Care,Helping Hands Homecare,31.28, 06-Feb-2014
1130,Revenue,CCHD,Home care - Elderly MH - North,Other Small Contracts,Helping Hands Homecare,62.56, 06-Feb-2014
1131,Revenue,CCHD,Home Care - Elderly - South,Other Small Contracts,Helping Hands Homecare,140.76, 06-Feb-2014
1132,Revenue,CCHD,Home Care - Elderly - North,Other Small Contracts,Helping Hands Homecare,1219.92, 06-Feb-2014
1133,Revenue,CCHD,Day Care - North,Private & Voluntary Day Care,Helping Hands Homecare,31.28, 06-Feb-2014
1134,Revenue,CCHD,Home Care - Elderly - South,Other Small Contracts,Helping Hands Homecare,156.4, 19-Feb-2014
1135,Revenue,CCHD,Home Care - Elderly - North,Other Small Contracts,Helping Hands Homecare,1352.86, 19-Feb-2014
1136,Revenue,CCHD,Day Care - North,Private & Voluntary Day Care,Helping Hands Homecare,31.28, 19-Feb-2014
1137,Revenue,CCHD,Home care - Elderly MH - North,Other Small Contracts,Helping Hands Homecare,31.28, 19-Feb-2014
1138,Revenue,CCHD,Home Care - Elderly - South,Other Small Contracts,Helping Hands Homecare,156.4, 19-Feb-2014
1139,Revenue,CCHD,Home Care - Elderly - North,Other Small Contracts,Helping Hands Homecare,1485.8, 19-Feb-2014
1140,Revenue,CCHD,Day Care - North,Private & Voluntary Day Care,Helping Hands Homecare,31.28, 19-Feb-2014
1141,Revenue,CCHD,Home care - Elderly MH - North,Other Small Contracts,Helping Hands Homecare,62.56, 19-Feb-2014
1142,Revenue,CCHD,Home Care - Elderly - South,Other Small Contracts,Helping Hands Homecare,160.31, 27-Feb-2014
1143,Revenue,CCHD,Home Care - Elderly - North,Other Small Contracts,Helping Hands Homecare,1376.32, 27-Feb-2014
1144,Revenue,CCHD,Day Care - North,Private & Voluntary Day Care,Helping Hands Homecare,31.28, 27-Feb-2014
1145,Revenue,CCHD,Home care - Elderly MH - North,Other Small Contracts,Helping Hands Homecare,62.56, 27-Feb-2014
1146,Revenue,CCHD,Home Care - Elderly - South,Other Small Contracts,Helping Hands Homecare,156.4, 28-Feb-2014
1147,Revenue,CCHD,Home Care - Elderly - North,Other Small Contracts,Helping Hands Homecare,1247.29, 28-Feb-2014
1148,Revenue,CCHD,Day Care - North,Private & Voluntary Day Care,Helping Hands Homecare,31.28, 28-Feb-2014
1149,Revenue,CCHD,Under 65s -MH  Home Care Purch,Other Small Contracts,Helping Hands Homecare,31.28, 28-Feb-2014
1150,Revenue,CCHD,Home care - Elderly MH - North,Other Small Contracts,Helping Hands Homecare,62.56, 28-Feb-2014
1151,Revenue,CCHD,S117 Placements PCT,Permanent Residential,Hesley Hall,17943.96, 18-Feb-2014
1152,Revenue,CCHD,Bed Purchasing - Southmead Hospital,Permanent Residential,High Border Lodge,2888.4, 18-Feb-2014
1153,Revenue,CCHD,Bed purchasing - Under 65s PWLD - North,Permanent Residential,Holmleigh Care Homes Ltd,4000.16, 18-Feb-2014
1154,Revenue,CCHD,Bed Purchasing - Under 65s PWLD - South,Permanent Residential,Holmleigh Care Homes Ltd,5027.72, 18-Feb-2014
1155,Revenue,CCHD,Bed purchasing - Under 65s PWLD - North,Permanent Residential,Home Farm Trust Ltd  5-6 Brook Office Pa,2810.04, 18-Feb-2014
1156,Revenue,CCHD,Bed purchasing - Elderly PWLD - South,Permanent Residential,Home Farm Trust Ltd  5-6 Brook Office Pa,5050.32, 18-Feb-2014
1157,Revenue,CCHD,Bed purchasing - Under 65s PWLD - North,Permanent Residential,Home Farm Trust Ltd  5-6 Brook Office Pa,3396, 18-Feb-2014
1158,Revenue,CCHD,Bed Purchasing - Under 65s PWLD - South,Permanent Residential,Home Farm Trust Ltd  5-6 Brook Office Pa,4505.04, 18-Feb-2014
1159,Revenue,CCHD,Bed purchasing - Under 65s PWLD - North,Permanent Residential,Home From Home Care Ltd,8857.52, 18-Feb-2014
1160,Revenue,CCHD,Social Lettings Agency,Fees - General,Home Turf Lettings,10, 17-Feb-2014
1161,Revenue,CCHD,Social Lettings Agency,Other Supplies & Services,Home Turf Lettings,565, 17-Feb-2014
1162,Revenue,CCHD,Social Lettings Agency,Fees - General,Home Turf Lettings,10, 17-Feb-2014
1163,Revenue,CCHD,Social Lettings Agency,Other Supplies & Services,Home Turf Lettings,565, 17-Feb-2014
1164,Revenue,CCHD,Social Lettings Agency,Fees - General,Home Turf Lettings,10, 17-Feb-2014
1165,Revenue,CCHD,Social Lettings Agency,Other Supplies & Services,Home Turf Lettings,565, 17-Feb-2014
1166,Revenue,CCHD,Social Lettings Agency,Fees - General,Home Turf Lettings,10, 17-Feb-2014
1167,Revenue,CCHD,Social Lettings Agency,Other Supplies & Services,Home Turf Lettings,565, 17-Feb-2014
1168,Revenue,CCHD,Bed purchasing - Under 65s PWLD - North,Permanent Residential,Homes Caring For Autism Ltd  Churchill H,9755.64, 18-Feb-2014
1169,Revenue,CCHD,Bed Purchasing - Under 65s PWLD - South,Permanent Residential,Homes Caring For Autism Ltd  Churchill H,12715.92, 18-Feb-2014
1170,Revenue,CCHD,Bed purchasing - Under 65s PWLD - North,Permanent Residential,Homes Caring For Autism Ltd  Churchill H,12410, 18-Feb-2014
1171,Revenue,CCHD,Bed Purchasing - Elderly - South,Permanent Nursing,Horfield Care Limited,1348.59, 13-Feb-2014
1172,Revenue,CCHD,Bed Purchasing - Elderly - North,Permanent Nursing,Horfield Care Limited,2892.52, 13-Feb-2014
1173,Revenue,CCHD,Bed Purchasing - Frenchay Hospital,Permanent Nursing,Horfield Care Limited,1483.39, 13-Feb-2014
1174,Revenue,CCHD,Bed Purchasing - Frenchay Hospital,Respite Emergency - Nursing,Horfield Care Limited,2233.55, 13-Feb-2014
1175,Revenue,CCHD,Bed Purchasing - Southmead Hospital,Permanent Nursing,Horfield Care Limited,7540.19, 13-Feb-2014
1176,Revenue,CCHD,Bed Purchasing - Southmead Hospital,Respite Emergency - Nursing,Horfield Care Limited,2305.6, 13-Feb-2014
1177,Revenue,CCHD,Supporting People Programme,Grants to Voluntary Bodies,Housing 21,607.38, 28-Feb-2014
1178,Revenue,CCHD,Supporting People Programme,Grants to Voluntary Bodies,Housing 21,921.33, 28-Feb-2014
1179,Revenue,CCHD,Home Care - Elderly - North,Private & Voluntary Home Care,Housing 21,37580.45, 10-Feb-2014
1180,Revenue,CCHD,Home Care - Elderly - South,Private & Voluntary Home Care,Housing 21,24011, 28-Feb-2014
1181,Revenue,CCHD,Social Lettings Agency,Fees - General,Individual,11.6, 11-Feb-2014
1182,Revenue,CCHD,Social Lettings Agency,Other Supplies & Services,Individual,655.41, 11-Feb-2014
1183,Revenue,CCHD,Bed Purchasing - Elderly - North,Permanent Residential,Jah Jireh Charity Homes,1143.4, 18-Feb-2014
1184,Revenue,CCHD,Drug Misuse - Adults,Other Supplies & Services,Jhoots Pharmacy,1050, 24-Feb-2014
1185,Revenue,CCHD,Homeless - Private Sector Leasing,Other Supplies & Services,Jill Collins,594, 14-Feb-2014
1186,Revenue,CCHD,Training - Adult Services,Training Expenses,JK Training,1900, 28-Feb-2014
1187,Revenue,CCHD,Training - Adult Services,Training Expenses,Jo Williams,544, 28-Feb-2014
1188,Revenue,CCHD,Training - Adult Services,Training Expenses,Jo Williams,646, 05-Feb-2014
1189,Revenue,CCHD,Sexual Health Services - STI & Treatment,Other Supplies & Services,JRW Billing,1145, 17-Feb-2014
1190,Revenue,CCHD,Drug Misuse - Adults,Other Supplies & Services,JRW Billing,2475, 24-Feb-2014
1191,Revenue,CCHD,Tenancy Start Up Scheme,Other Supplies & Services,JSC Property Solutions,1300, 21-Feb-2014
1192,Revenue,CCHD,Bed Purchasing - Under 65s PWLD - South,Permanent Residential,Julia Simone- Supp. Ind.,3902.32, 18-Feb-2014
1193,Revenue,CCHD,Bed purchasing -S28A  Under 65 - North,Permanent Residential,Julia Simone- Supp. Ind.,3443.08, 18-Feb-2014
1194,Revenue,CCHD,Bed Purchasing - Elderly - South,Permanent Residential,Karenza Ltd,1732, 18-Feb-2014
1195,Revenue,CCHD,Bed Purchasing - Elderly - South,Permanent Residential,Kenver House Residential Home,1545.64, 18-Feb-2014
1196,Revenue,CCHD,Bed Purchasing - Elderly - South,Permanent Residential,Kenver House Residential Home,1545.64, 18-Feb-2014
1197,Revenue,CCHD,Bed purchasing - Elderly S117 - South,Permanent Residential,Kenver House Residential Home,1897.08, 18-Feb-2014
1198,Revenue,CCHD,Swift Dump Code,Permanent Residential,Kenver House Residential Home,2552.14, 18-Feb-2014
1199,Revenue,CCHD,Bed purchasing - Elderly S117 - South,Permanent Residential,Kenver House Residential Home,1897.08, 18-Feb-2014
1200,Revenue,CCHD,Bed Purchasing - Frenchay Hospital,Permanent Residential,Kenver House Residential Home,1203.72, 18-Feb-2014
1201,Revenue,CCHD,Bed Purchasing - Frenchay Hospital,Permanent Residential,Kenver House Residential Home,1203.72, 18-Feb-2014
1202,Revenue,CCHD,Bed Purchasing - Frenchay Hospital,Permanent Residential,Kenver House Residential Home,1963.11, 18-Feb-2014
1203,Revenue,CCHD,Bed Purchasing - Frenchay Hospital,Permanent Residential,Kenver House Residential Home,1619.08, 18-Feb-2014
1204,Revenue,CCHD,Bed Purchasing - Frenchay Hospital,Permanent Residential,Kenver House Residential Home,1619.08, 18-Feb-2014
1205,Revenue,CCHD,Bed Purchasing - Elderly - South,Respite Emergency - Residential,Kenver House Residential Home,2128, 18-Feb-2014
1206,Revenue,CCHD,Bed Purchasing - Elderly - South,Permanent Residential,Kenver House Residential Home,2469, 18-Feb-2014
1207,Revenue,CCHD,Bed Purchasing - Elderly - South,Permanent Residential,Kenver House Residential Home,1646, 18-Feb-2014
1208,Revenue,CCHD,Bed Purchasing - Southmead Hospital,Permanent Residential,Kenver House Residential Home,1649.28, 18-Feb-2014
1209,Revenue,CCHD,Bed Purchasing - Southmead Hospital,Permanent Residential,Kenver House Residential Home,1636.08, 18-Feb-2014
1210,Revenue,CCHD,Bed Purchasing - Elderly MH - South,Permanent Residential,Kenver House Residential Home,1285.96, 18-Feb-2014
1211,Revenue,CCHD,Swift Dump Code,Permanent Residential,Kenver House Residential Home,2552.14, 18-Feb-2014
1212,Revenue,CCHD,Bed Purchasing - Elderly MH - South,Permanent Residential,Kenver House Residential Home,1285.96, 18-Feb-2014
1213,Revenue,CCHD,Bed Purchasing - Elderly - South,Permanent Residential,Kenver House Residential Home,1665.04, 18-Feb-2014
1214,Revenue,CCHD,Bed Purchasing - Elderly - South,Permanent Residential,Kenver House Residential Home,1665.04, 18-Feb-2014
1215,Revenue,CCHD,Bed Purchasing - Elderly - South,Permanent Residential,Kenver House Residential Home,2135.28, 18-Feb-2014
1216,Revenue,CCHD,Bed Purchasing - Elderly - South,Permanent Residential,Kenver House Residential Home,2135.28, 18-Feb-2014
1217,Revenue,CCHD,Bed Purchasing - Elderly - South,Permanent Residential,Kenver House Residential Home,1527.2, 18-Feb-2014
1218,Revenue,CCHD,Bed Purchasing - Elderly - South,Permanent Residential,Kenver House Residential Home,1576.4, 18-Feb-2014
1219,Revenue,CCHD,Bed Purchasing - Elderly - South,Permanent Residential,Kenver House Residential Home,1576.4, 18-Feb-2014
1220,Revenue,CCHD,Bed Purchasing - Southmead Hospital,Permanent Residential,Kenver House Residential Home,1649.2, 18-Feb-2014
1221,Revenue,CCHD,Bed Purchasing - Southmead Hospital,Permanent Residential,Kenver House Residential Home,1649.2, 18-Feb-2014
1222,Revenue,CCHD,Bed Purchasing - Elderly MH - South,Permanent Residential,Kenver House Residential Home,1167.92, 18-Feb-2014
1223,Revenue,CCHD,Bed Purchasing - Elderly MH - South,Permanent Residential,Kenver House Residential Home,1167.92, 18-Feb-2014
1224,Revenue,CCHD,Bed Purchasing - Elderly - South,Permanent Residential,Kenver House Residential Home,1649.28, 18-Feb-2014
1225,Revenue,CCHD,Bed Purchasing - Elderly - South,Permanent Residential,Kenver House Residential Home,1060.25, 18-Feb-2014
1226,Revenue,CCHD,Bed Purchasing - Elderly - South,Permanent Residential,Kenver House Residential Home,1497.08, 18-Feb-2014
1227,Revenue,CCHD,Bed Purchasing - Elderly - South,Permanent Residential,Kenver House Residential Home,1497.08, 18-Feb-2014
1228,Revenue,CCHD,Bed Purchasing - Frenchay Hospital,Permanent Residential,Kenver House Residential Home,1539.76, 18-Feb-2014
1229,Revenue,CCHD,Bed Purchasing - Frenchay Hospital,Permanent Residential,Kenver House Residential Home,1539.76, 18-Feb-2014
1230,Revenue,CCHD,Supporting People Programme,Grants to Voluntary Bodies,Keyring Living Support Networks,2874.42, 28-Feb-2014
1231,Revenue,CCHD,Bed Purchasing - Elderly - North,Permanent Nursing,Kingfisher Lodge Care Centre,2486.88, 18-Feb-2014
1232,Revenue,CCHD,Supporting People Programme,Grants to Voluntary Bodies,Kingswood Young Homeless Project,17289.42, 28-Feb-2014
1233,Revenue,CCHD,Bed purchasing - Under 65s PWLD - North,Permanent Residential,Kisimul Group,11223.12, 18-Feb-2014
1234,Revenue,CCHD,Supporting People Programme,Grants to Voluntary Bodies,Knightstone Housing Association Limited,13316.58, 28-Feb-2014
1235,Revenue,CCHD,Supporting People Programme,Grants to Voluntary Bodies,Knightstone Housing Association Limited,8413.33, 28-Feb-2014
1236,Revenue,CCHD,Supporting People Programme,Grants to Voluntary Bodies,Knightstone Housing Association Limited,7491.58, 28-Feb-2014
1237,Revenue,CCHD,Supporting People Programme,Grants to Voluntary Bodies,Knightstone Housing Association Limited,1883.92, 28-Feb-2014
1238,Revenue,CCHD,Supporting People Programme,Grants to Voluntary Bodies,Knightstone Housing Association Limited,2446.5, 28-Feb-2014
1239,Revenue,CCHD,Supporting People Programme,Grants to Voluntary Bodies,Knightstone Housing Association Limited,2447.08, 28-Feb-2014
1240,Revenue,CCHD,Supporting People Programme,Grants to Voluntary Bodies,Knightstone Housing Association Limited,1189.08, 28-Feb-2014
1241,Revenue,CCHD,Supporting People Programme,Grants to Voluntary Bodies,Knightstone Housing Association Limited,2194.67, 28-Feb-2014
1242,Revenue,CCHD,Home Care - Elderly - South,Other Small Contracts,Kumari Care Limited,3338.9, 25-Feb-2014
1243,Revenue,CCHD,Home Care - Elderly - North,Other Small Contracts,Kumari Care Limited,833.86, 25-Feb-2014
1244,Revenue,CCHD,Day Care - South,Private & Voluntary Day Care,Kumari Care Limited,96.5, 25-Feb-2014
1245,Revenue,CCHD,Under 65s -MH  Home Care Purch,Other Small Contracts,Kumari Care Limited,262.48, 25-Feb-2014
1246,Revenue,CCHD,Home Care - Elderly - South,Other Small Contracts,Kumari Care Limited,3358.2, 17-Feb-2014
1247,Revenue,CCHD,Home Care - Elderly - North,Other Small Contracts,Kumari Care Limited,833.86, 17-Feb-2014
1248,Revenue,CCHD,Under 65s -MH  Home Care Purch,Other Small Contracts,Kumari Care Limited,258.62, 17-Feb-2014
1249,Revenue,CCHD,Home Care - Elderly - South,Other Small Contracts,Kumari Care Limited,3242.4, 25-Feb-2014
1250,Revenue,CCHD,Home Care - Elderly - North,Other Small Contracts,Kumari Care Limited,833.86, 25-Feb-2014
1251,Revenue,CCHD,Day Care - South,Private & Voluntary Day Care,Kumari Care Limited,96.5, 25-Feb-2014
1252,Revenue,CCHD,Under 65s -MH  Home Care Purch,Other Small Contracts,Kumari Care Limited,239.32, 25-Feb-2014
1253,Revenue,CCHD,Home Care - Elderly - South,Other Small Contracts,Kumari Care Limited,3612.96, 28-Feb-2014
1254,Revenue,CCHD,Home Care - Elderly - North,Other Small Contracts,Kumari Care Limited,834.9, 28-Feb-2014
1255,Revenue,CCHD,Day Care - South,Private & Voluntary Day Care,Kumari Care Limited,96.5, 28-Feb-2014
1256,Revenue,CCHD,Under 65s -MH  Home Care Purch,Other Small Contracts,Kumari Care Limited,270.2, 28-Feb-2014
1257,Revenue,CCHD,Bed purchasing - Phys Dis - North,Permanent Nursing,Leonard Cheshire  National Account Centr,4963.04, 18-Feb-2014
1258,Revenue,CCHD,Bed purchasing - Phys Dis - North,Permanent Residential,Leonard Cheshire  National Account Centr,2868.88, 18-Feb-2014
1259,Revenue,CCHD,Bed Purchasing - Under 65s PWLD - South,Permanent Residential,Leonard Cheshire  National Account Centr,2959.44, 18-Feb-2014
1260,Revenue,CCHD,Bed Purchasing - Elderly - North,Permanent Nursing,Leonard Cheshire  National Account Centr,3468.8, 18-Feb-2014
1261,Revenue,CCHD,Bed purchasing - Phys Dis - North,Permanent Nursing,Leonard Cheshire  National Account Centr,2779.04, 18-Feb-2014
1262,Revenue,CCHD,Bed Purchasing - Elderly - North,Permanent Residential,Leonard Cheshire  National Account Centr,3150.32, 18-Feb-2014
1263,Revenue,CCHD,Bed purchasing - Under 65s PWLD - North,Permanent Residential,Leonard Cheshire  National Account Centr,5872.12, 18-Feb-2014
1264,Revenue,CCHD,Bed purchasing - Under 65s PWLD - North,Permanent Residential,Leonard Cheshire  National Account Centr,5870.56, 18-Feb-2014
1265,Revenue,CCHD,Bed Purchasing - Elderly - South,Permanent Residential,Leonard Cheshire  National Account Centr,8866.08, 18-Feb-2014
1266,Revenue,CCHD,Bed purchasing - Phys Dis - North,Permanent Nursing,Leonard Cheshire  National Account Centr,2838.64, 18-Feb-2014
1267,Revenue,CCHD,Bed purchasing - Phys Dis - North,Permanent Nursing,Leonard Cheshire  National Account Centr,2838.64, 18-Feb-2014
1268,Revenue,CCHD,Bed purchasing - Phys Dis - North,Permanent Nursing,Leonard Cheshire  National Account Centr,3812.44, 18-Feb-2014
1269,Revenue,CCHD,Bed purchasing - Phys Dis - North,Permanent Nursing,Leonard Cheshire  National Account Centr,3812.44, 18-Feb-2014
1270,Revenue,CCHD,Bed purchasing - Phys Dis - North,Permanent Residential,Leonard Cheshire  National Account Centr,2889.4, 18-Feb-2014
1271,Revenue,CCHD,Bed purchasing - Phys Dis - North,Permanent Residential,Leonard Cheshire  National Account Centr,2889.4, 18-Feb-2014
1272,Revenue,CCHD,Bed purchasing - Phys Dis - North,Permanent Nursing,Leonard Cheshire  National Account Centr,4473.76, 18-Feb-2014
1273,Revenue,CCHD,Bed purchasing - Phys Dis - North,Permanent Nursing,Leonard Cheshire  National Account Centr,4473.76, 18-Feb-2014
1274,Revenue,CCHD,Bed purchasing - Phys Dis - North,Permanent Nursing,Leonard Cheshire  National Account Centr,3223.8, 18-Feb-2014
1275,Revenue,CCHD,Bed purchasing - Phys Dis - North,Permanent Nursing,Leonard Cheshire  National Account Centr,3223.8, 18-Feb-2014
1276,Revenue,CCHD,Bed purchasing - Phys Dis - North,Permanent Nursing,Leonard Cheshire  National Account Centr,11042.72, 18-Feb-2014
1277,Revenue,CCHD,Bed Purchasing - Elderly - South,Permanent Nursing,Leonard Cheshire  National Account Centr,2869.2, 18-Feb-2014
1278,Revenue,CCHD,Bed Purchasing - Elderly - South,Permanent Nursing,Leonard Cheshire  National Account Centr,2869.2, 18-Feb-2014
1279,Revenue,CCHD,Bed Purchasing - Southmead Hospital,Permanent Nursing,Leonard Cheshire  National Account Centr,3002, 18-Feb-2014
1280,Revenue,CCHD,South Glos Users in all other LA Homes,Permanent Nursing,Leonard Cheshire  National Account Centr,604.4, 18-Feb-2014
1281,Revenue,CCHD,Bed Purchasing - Southmead Hospital,Permanent Nursing,Leonard Cheshire  National Account Centr,3002, 18-Feb-2014
1282,Revenue,CCHD,South Glos Users in all other LA Homes,Permanent Nursing,Leonard Cheshire  National Account Centr,604.4, 18-Feb-2014
1283,Revenue,CCHD,Bed purchasing - Phys Dis - North,Permanent Nursing,Leonard Cheshire  National Account Centr,3309.2, 18-Feb-2014
1284,Revenue,CCHD,Bed purchasing - Phys Dis - North,Permanent Nursing,Leonard Cheshire  National Account Centr,3309.2, 18-Feb-2014
1285,Revenue,CCHD,Bed purchasing - Phys Dis - North,Permanent Nursing,Leonard Cheshire  National Account Centr,4066.48, 18-Feb-2014
1286,Revenue,CCHD,Bed purchasing - Phys Dis - North,Permanent Nursing,Leonard Cheshire  National Account Centr,4066.48, 18-Feb-2014
1287,Revenue,CCHD,Bed Purchasing - Elderly - South,Permanent Nursing,Leonard Cheshire  National Account Centr,8739.2, 18-Feb-2014
1288,Revenue,CCHD,Bed Purchasing - Elderly S117- North,Permanent Nursing,Leonard Elms Care Home,2848.84, 18-Feb-2014
1289,Revenue,CCHD,Bed Purchasing - Elderly S117- North,Permanent Nursing,Leonard Elms Care Home,2848.84, 18-Feb-2014
1290,Revenue,CCHD,Bed Purchasing - Elderly - South,Permanent Nursing,Leonard Elms Care Home,1539.28, 18-Feb-2014
1291,Revenue,CCHD,Bed Purchasing - Elderly - South,Permanent Nursing,Leonard Elms Care Home,1539.28, 18-Feb-2014
1292,Revenue,CCHD,Supported Living - North,Private & Voluntary Home Care,Lifeways Community Care (Gloucester) Ltd,8792, 20-Feb-2014
1293,Revenue,CCHD,Alexandra Way,Prop.Serv. General Repairs,Lionel Saunders & Co (Bristol) Limited,685, 28-Feb-2014
1294,Revenue,CCHD,Bed Purchasing - Frenchay Hospital,Permanent Residential,Little Croft,1246, 18-Feb-2014
1295,Revenue,CCHD,Bed Purchasing - Elderly - South,Permanent Residential,Little Croft,1545.64, 18-Feb-2014
1296,Revenue,CCHD,Bed Purchasing - Southmead Hospital,Permanent Residential,Little Croft,1722, 18-Feb-2014
1297,Revenue,CCHD,Bed Purchasing - Elderly - South,Permanent Residential,Little Croft,1856, 18-Feb-2014
1298,Revenue,CCHD,Bed Purchasing - Elderly - South,Permanent Residential,Little Croft,1522.8, 18-Feb-2014
1299,Revenue,CCHD,Bed Purchasing - Frenchay Hospital,Permanent Residential,Little Croft,1187.44, 18-Feb-2014
1300,Revenue,CCHD,Bed Purchasing - Southmead Hospital,Permanent Residential,Little Croft,617.2, 18-Feb-2014
1301,Revenue,CCHD,Bed Purchasing - Elderly MH - South,Permanent Residential,Little Croft,1173.28, 18-Feb-2014
1302,Revenue,CCHD,Bed Purchasing - Elderly - South,Permanent Residential,Little Croft,833.4, 18-Feb-2014
1303,Revenue,CCHD,Bed Purchasing - Elderly - South,Respite Emergency - Residential,Little Croft,1832.14, 18-Feb-2014
1304,Revenue,CCHD,Bed Purchasing - Elderly - South,Permanent Residential,Little Croft,1711.27, 18-Feb-2014
1305,Revenue,CCHD,Bed Purchasing - Elderly MH - South,Permanent Residential,Little Croft,3127.69, 18-Feb-2014
1306,Revenue,CCHD,Bed Purchasing - Elderly MH - South,Permanent Residential,Little Croft,1592.28, 18-Feb-2014
1307,Revenue,CCHD,Bed purchasing - Elderly MH - North,Permanent Residential,Little Croft,1414, 18-Feb-2014
1308,Revenue,CCHD,Bed Purchasing - Southmead Hospital,Permanent Residential,Little Croft,1246, 18-Feb-2014
1309,Revenue,CCHD,Bed Purchasing - Elderly - North,Permanent Residential,Little Croft,1347.56, 18-Feb-2014
1310,Revenue,CCHD,Bed purchasing - Under 65s PWLD - North,Permanent Residential,Littlecroft Residential Homes  Longcroft,6386.28, 18-Feb-2014
1311,Revenue,CCHD,Drug Misuse - Adults,Other Supplies & Services,Lloyds Pharmacy Limited,2100, 24-Feb-2014
1312,Revenue,CCHD,Home Care - Elderly - North,Other Small Contracts,Lloyds TSB Commercial Finance Limited,7487.65, 03-Feb-2014
1313,Revenue,CCHD,Day Care - North,Private & Voluntary Day Care,Lloyds TSB Commercial Finance Limited,140.76, 03-Feb-2014
1314,Revenue,CCHD,Home Care - Elderly - South,Other Small Contracts,Lloyds TSB Commercial Finance Limited,218.96, 03-Feb-2014
1315,Revenue,CCHD,Home Care - Elderly - North,Other Small Contracts,Lloyds TSB Commercial Finance Limited,6709.56, 03-Feb-2014
1316,Revenue,CCHD,Day Care - North,Private & Voluntary Day Care,Lloyds TSB Commercial Finance Limited,136.85, 03-Feb-2014
1317,Revenue,CCHD,Home Care - Elderly - South,Other Small Contracts,Lloyds TSB Commercial Finance Limited,207.23, 07-Feb-2014
1318,Revenue,CCHD,Home Care - Elderly - North,Other Small Contracts,Lloyds TSB Commercial Finance Limited,4699.82, 07-Feb-2014
1319,Revenue,CCHD,Day Care - North,Private & Voluntary Day Care,Lloyds TSB Commercial Finance Limited,89.93, 07-Feb-2014
1320,Revenue,CCHD,Home Care - Elderly - South,Other Small Contracts,Lloyds TSB Commercial Finance Limited,226.78, 17-Feb-2014
1321,Revenue,CCHD,Home Care - Elderly - North,Other Small Contracts,Lloyds TSB Commercial Finance Limited,6940.25, 17-Feb-2014
1322,Revenue,CCHD,Day Care - North,Private & Voluntary Day Care,Lloyds TSB Commercial Finance Limited,140.76, 17-Feb-2014
1323,Revenue,CCHD,Home Care - Elderly - South,Other Small Contracts,Lloyds TSB Commercial Finance Limited,226.78, 21-Feb-2014
1324,Revenue,CCHD,Home Care - Elderly - North,Other Small Contracts,Lloyds TSB Commercial Finance Limited,6385.03, 21-Feb-2014
1325,Revenue,CCHD,Day Care - North,Private & Voluntary Day Care,Lloyds TSB Commercial Finance Limited,136.85, 21-Feb-2014
1326,Revenue,CCHD,Supported Living - South,Private & Voluntary Home Care,Lloyds TSB Commercial Finance Limited,3795.1, 25-Feb-2014
1327,Revenue,CCHD,Supported Living - South,Private & Voluntary Home Care,Lloyds TSB Commercial Finance Limited,9506.62, 28-Feb-2014
1328,Revenue,CCHD,Supported Living - South,Private & Voluntary Home Care,Lloyds TSB Commercial Finance Limited,3974.23, 25-Feb-2014
1329,Revenue,CCHD,Supported Living - South,Private & Voluntary Home Care,Lloyds TSB Commercial Finance Limited,7969.98, 25-Feb-2014
1330,Revenue,CCHD,Supported Living - South,Private & Voluntary Home Care,Lloyds TSB Commercial Finance Limited,2148.34, 28-Feb-2014
1331,Revenue,CCHD,Supported Living - South,Private & Voluntary Home Care,Lloyds TSB Commercial Finance Limited,3973.96, 28-Feb-2014
1332,Revenue,CCHD,Supported Living - North,Private & Voluntary Home Care,Lloyds TSB Commercial Finance Limited,9634.54, 28-Feb-2014
1333,Revenue,CCHD,Supported Living - South,Private & Voluntary Home Care,Lloyds TSB Commercial Finance Limited,4136.67, 28-Feb-2014
1334,Revenue,CCHD,Supported Living - South,Private & Voluntary Home Care,Lloyds TSB Commercial Finance Limited,3597.35, 28-Feb-2014
1335,Revenue,CCHD,Supported Living - South,Private & Voluntary Home Care,Lloyds TSB Commercial Finance Limited,3794.5, 28-Feb-2014
1336,Revenue,CCHD,Supported Living - South,Private & Voluntary Home Care,Lloyds TSB Commercial Finance Limited,6106.63, 28-Feb-2014
1337,Revenue,CCHD,Supported Living - South,Private & Voluntary Home Care,Lloyds TSB Commercial Finance Limited,3618.61, 28-Feb-2014
1338,Revenue,CCHD,Supported Living - South,Private & Voluntary Home Care,Lloyds TSB Commercial Finance Limited,3773.77, 25-Feb-2014
1339,Revenue,CCHD,Supported Living - North,Private & Voluntary Home Care,Lloyds TSB Commercial Finance Limited,8291, 28-Feb-2014
1340,Revenue,CCHD,Supported Living - South,Private & Voluntary Home Care,Lloyds TSB Commercial Finance Limited,3561.13, 28-Feb-2014
1341,Revenue,CCHD,Supported Living - South,Private & Voluntary Home Care,Lloyds TSB Commercial Finance Limited,564.2, 25-Feb-2014
1342,Revenue,CCHD,Social Lettings Agency,Fees - General,Individual,10, 28-Feb-2014
1343,Revenue,CCHD,Social Lettings Agency,Other Supplies & Services,Individual,565, 28-Feb-2014
1344,Revenue,CCHD,Health Promotion,Other Supplies & Services,Loughborough University,2200, 03-Feb-2014
1345,Revenue,CCHD,Day Care - North,Private & Voluntary Day Care,Lower Kilcott,1444.6, 18-Feb-2014
1346,Revenue,CCHD,Day Care - North,Private & Voluntary Day Care,Lower Kilcott,552.48, 18-Feb-2014
1347,Revenue,CCHD,Drug Misuse - Adults,Other Supplies & Services,M J Williams Ltd T/ A Abbotswood Pharmacy,750, 24-Feb-2014
1348,Revenue,CCHD,Bed Purchasing - Southmead Hospital,Permanent Nursing,Majestic 3 Limited,998, 18-Feb-2014
1349,Revenue,CCHD,Community Care Contact Centre,Other Supplies & Services,Mangar International Limited,1038.21, 21-Feb-2014
1350,Revenue,CCHD,Home Care - Elderly - South,Other Small Contracts,Manor Community Domiciliary Care Agency,544.88, 28-Feb-2014
1351,Revenue,CCHD,Under 65s -MH  Home Care Purch,Other Small Contracts,Manor Community Domiciliary Care Agency,100.08, 28-Feb-2014
1352,Revenue,CCHD,Elderly MH Day Care North,Private & Voluntary Day Care,Manor Community Domiciliary Care Agency,50.04, 28-Feb-2014
1353,Revenue,CCHD,Bed Purchasing - Elderly - North,Permanent Residential,Manor Cottage,2192.28, 18-Feb-2014
1354,Revenue,CCHD,Bed Purchasing - Southmead Hospital,Permanent Residential,Manor Cottage,1246, 18-Feb-2014
1355,Revenue,CCHD,Bed Purchasing - Elderly - South,Permanent Residential,Manor Cottage,1449.64, 18-Feb-2014
1356,Revenue,CCHD,Bed Purchasing - Southmead Hospital,Permanent Residential,Manor Cottage,1246, 18-Feb-2014
1357,Revenue,CCHD,Bed Purchasing - Elderly - North,Permanent Residential,Manton Hall Residential Home,1496.44, 18-Feb-2014
1358,Revenue,CCHD,Section 117 Placements MH Younger,Private & Voluntary Day Care,Maples Community Care Limited,840.75, 14-Feb-2014
1359,Revenue,CCHD,Section 117 Placements MH Younger,Private & Voluntary Day Care,Maples Community Care Limited,2736.13, 14-Feb-2014
1360,Revenue,CCHD,Younger MH non-res purchasing,Private & Voluntary Day Care,Maples Community Care Limited,2736.13, 17-Feb-2014
1361,Revenue,CCHD,Section 117 Placements MH Younger,Private & Voluntary Day Care,Maples Community Care Limited,1715.88, 14-Feb-2014
1362,Revenue,CCHD,Supporting People Programme,Grants to Voluntary Bodies,Maples Community Housing Limited,2677.58, 28-Feb-2014
1363,Revenue,CCHD,Social Lettings Agency,Fees - General,Individual,11.6, 20-Feb-2014
1364,Revenue,CCHD,Social Lettings Agency,Other Supplies & Services,Individual,597.91, 20-Feb-2014
1365,Revenue,CCHD,Bed Purchasing - Under 65s PWLD - South,Permanent Residential,Marsden Healthcare Limited,911.04, 14-Feb-2014
1366,Revenue,CCHD,Bed purchasing - Elderly PWLD - South,Permanent Residential,Marsden Healthcare Limited,3203, 14-Feb-2014
1367,Revenue,CCHD,Bed purchasing - Elderly PWLD - South,Permanent Residential,Marsden Healthcare Limited,1505.96, 14-Feb-2014
1368,Revenue,CCHD,Bed Purchasing - Elderly - South,Permanent Nursing,Meadow Care Home,1673.16, 18-Feb-2014
1369,Revenue,CCHD,Home Care - Elderly - South,Other Small Contracts,Mears Care,566.1, 14-Feb-2014
1370,Revenue,CCHD,Home Care - Elderly - North,Other Small Contracts,Mears Care,6082.8, 14-Feb-2014
1371,Revenue,CCHD,Day Care - North,Private & Voluntary Day Care,Mears Care,136.9, 14-Feb-2014
1372,Revenue,CCHD,Under 65s -MH  Home Care Purch,Other Small Contracts,Mears Care,111, 14-Feb-2014
1373,Revenue,CCHD,Home Care - Elderly LD - KH,Private & Voluntary Home Care,Mears Care,55.5, 14-Feb-2014
1374,Revenue,CCHD,Home Care - Elderly - South,Other Small Contracts,Mears Care,536.5, 14-Feb-2014
1375,Revenue,CCHD,Home Care - Elderly - North,Other Small Contracts,Mears Care,5516.7, 14-Feb-2014
1376,Revenue,CCHD,Day Care - North,Private & Voluntary Day Care,Mears Care,29.6, 14-Feb-2014
1377,Revenue,CCHD,Under 65s -MH  Home Care Purch,Other Small Contracts,Mears Care,66.6, 14-Feb-2014
1378,Revenue,CCHD,Home Care - Elderly LD - KH,Private & Voluntary Home Care,Mears Care,51.8, 14-Feb-2014
1379,Revenue,CCHD,Home Care - Elderly - South,Other Small Contracts,Mears Care,577.2, 14-Feb-2014
1380,Revenue,CCHD,Home Care - Elderly - North,Other Small Contracts,Mears Care,5361.3, 14-Feb-2014
1381,Revenue,CCHD,Day Care - North,Private & Voluntary Day Care,Mears Care,29.6, 14-Feb-2014
1382,Revenue,CCHD,Under 65s -MH  Home Care Purch,Other Small Contracts,Mears Care,96.2, 14-Feb-2014
1383,Revenue,CCHD,Home Care - Elderly LD - KH,Private & Voluntary Home Care,Mears Care,55.5, 14-Feb-2014
1384,Revenue,CCHD,Home Care - Elderly - South,Private & Voluntary Home Care,Mears Care,48544, 28-Feb-2014
1385,Revenue,CCHD,Home Care - Elderly - South,Other Small Contracts,Mears Care,543.9, 14-Feb-2014
1386,Revenue,CCHD,Home Care - Elderly - North,Other Small Contracts,Mears Care,6282.6, 14-Feb-2014
1387,Revenue,CCHD,Day Care - North,Private & Voluntary Day Care,Mears Care,136.9, 14-Feb-2014
1388,Revenue,CCHD,Under 65s -MH  Home Care Purch,Other Small Contracts,Mears Care,111, 14-Feb-2014
1389,Revenue,CCHD,Home Care - Elderly LD - KH,Private & Voluntary Home Care,Mears Care,55.5, 14-Feb-2014
1390,Revenue,CCHD,Home Care - Elderly - South,Other Small Contracts,Medacs Home Care,49, 14-Feb-2014
1391,Revenue,CCHD,Home Care - Elderly - North,Other Small Contracts,Medacs Home Care,640.2, 14-Feb-2014
1392,Revenue,CCHD,Home care - Elderly MH - North,Other Small Contracts,Medacs Home Care,87.5, 14-Feb-2014
1393,Revenue,CCHD,Home Care - Elderly - South,Other Small Contracts,Medacs Home Care,38.5, 14-Feb-2014
1394,Revenue,CCHD,Home Care - Elderly - North,Other Small Contracts,Medacs Home Care,622.7, 14-Feb-2014
1395,Revenue,CCHD,Home care - Elderly MH - North,Other Small Contracts,Medacs Home Care,98, 14-Feb-2014
1396,Revenue,CCHD,Home Care - Elderly - South,Other Small Contracts,Medacs Home Care,49, 14-Feb-2014
1397,Revenue,CCHD,Home Care - Elderly - North,Other Small Contracts,Medacs Home Care,626.2, 14-Feb-2014
1398,Revenue,CCHD,Home care - Elderly MH - North,Other Small Contracts,Medacs Home Care,84, 14-Feb-2014
1399,Revenue,CCHD,Home Care - Elderly - South,Other Small Contracts,Medacs Home Care,38.5, 14-Feb-2014
1400,Revenue,CCHD,Home Care - Elderly - North,Other Small Contracts,Medacs Home Care,626.2, 14-Feb-2014
1401,Revenue,CCHD,Home care - Elderly MH - North,Other Small Contracts,Medacs Home Care,94.5, 14-Feb-2014
1402,Revenue,CCHD,NRS Contract,Daily Living Equipment,Medequip Assistive Technology Ltd,44847.99, 28-Feb-2014
1403,Revenue,CCHD,NRS Contract,Daily Living Equipment,Medequip Assistive Technology Ltd,69427.53, 28-Feb-2014
1404,Revenue,CCHD,Bed Purchasing - Under 65s PWLD - South,Permanent Residential,Mencap,2219.16, 18-Feb-2014
1405,Revenue,CCHD,Supporting People Programme,Grants to Voluntary Bodies,Merlin Housing Society,15398.42, 28-Feb-2014
1406,Revenue,CCHD,Supporting People Programme,Grants to Voluntary Bodies,Merlin Housing Society,2423, 28-Feb-2014
1407,Revenue,CCHD,Supporting People Programme,Grants to Voluntary Bodies,Merlin Housing Society,51328.08, 28-Feb-2014
1408,Revenue,CCHD,Supporting People Programme,Grants to Voluntary Bodies,Merlin Housing Society,1026.58, 28-Feb-2014
1409,Revenue,CCHD,Home Care - Elderly - South,Other Small Contracts,MiHomecare,1296.75, 13-Feb-2014
1410,Revenue,CCHD,Home Care - Elderly - North,Other Small Contracts,MiHomecare,2949.18, 13-Feb-2014
1411,Revenue,CCHD,Home Care - Elderly - South,Other Small Contracts,MiHomecare,546.63, 21-Feb-2014
1412,Revenue,CCHD,Home Care - Elderly - North,Other Small Contracts,MiHomecare,2897.31, 21-Feb-2014
1413,Revenue,CCHD,Home care - Elderly MH - North,Other Small Contracts,MiHomecare,7.98, 21-Feb-2014
1414,Revenue,CCHD,Home Care - Elderly - South,Other Small Contracts,MiHomecare,622.44, 21-Feb-2014
1415,Revenue,CCHD,Home Care - Elderly - North,Other Small Contracts,MiHomecare,2977.11, 21-Feb-2014
1416,Revenue,CCHD,Day Care - North,Private & Voluntary Day Care,MiHomecare,23.94, 21-Feb-2014
1417,Revenue,CCHD,Home care - Elderly MH - North,Other Small Contracts,MiHomecare,15.96, 21-Feb-2014
1418,Revenue,CCHD,Home Care - Elderly - South,Other Small Contracts,MiHomecare,590.52, 21-Feb-2014
1419,Revenue,CCHD,Home Care - Elderly - North,Other Small Contracts,MiHomecare,2570.13, 21-Feb-2014
1420,Revenue,CCHD,Home Care - Elderly - South,Other Small Contracts,MiHomecare,1448.37, 13-Feb-2014
1421,Revenue,CCHD,Home Care - Elderly - North,Other Small Contracts,MiHomecare,3013.02, 13-Feb-2014
1422,Revenue,CCHD,Home care - Elderly MH - North,Other Small Contracts,MiHomecare,15.96, 13-Feb-2014
1423,Revenue,CCHD,Home Care - Elderly - South,Other Small Contracts,MiHomecare,1440.39, 20-Feb-2014
1424,Revenue,CCHD,Home Care - Elderly - North,Other Small Contracts,MiHomecare,2897.31, 20-Feb-2014
1425,Revenue,CCHD,Home care - Elderly MH - North,Other Small Contracts,MiHomecare,15.96, 20-Feb-2014
1426,Revenue,CCHD,Bed Purchasing - Frenchay Hospital,Permanent Residential,Milburn Finance,1040.12, 18-Feb-2014
1427,Revenue,CCHD,Home Care - Elderly - South,Other Small Contracts,Milestones Homecare & Dementia Service,1138.7, 19-Feb-2014
1428,Revenue,CCHD,Home Care - Elderly - North,Other Small Contracts,Milestones Homecare & Dementia Service,1883.68, 19-Feb-2014
1429,Revenue,CCHD,Day Care - South,Private & Voluntary Day Care,Milestones Homecare & Dementia Service,61.76, 19-Feb-2014
1430,Revenue,CCHD,Home care - Elderly MH - North,Other Small Contracts,Milestones Homecare & Dementia Service,81.06, 19-Feb-2014
1431,Revenue,CCHD,Elderly MH Day Care North,Private & Voluntary Day Care,Milestones Homecare & Dementia Service,15.44, 19-Feb-2014
1432,Revenue,CCHD,Home Care - Elderly - South,Other Small Contracts,Milestones Homecare & Dementia Service,1551.72, 19-Feb-2014
1433,Revenue,CCHD,Home Care - Elderly - North,Other Small Contracts,Milestones Homecare & Dementia Service,2041.94, 19-Feb-2014
1434,Revenue,CCHD,Home care - Elderly MH - North,Other Small Contracts,Milestones Homecare & Dementia Service,54.04, 19-Feb-2014
1435,Revenue,CCHD,Home Care - Elderly - South,Other Small Contracts,Milestones Homecare & Dementia Service,1401.18, 19-Feb-2014
1436,Revenue,CCHD,Home Care - Elderly - North,Other Small Contracts,Milestones Homecare & Dementia Service,2296.7, 19-Feb-2014
1437,Revenue,CCHD,Home care - Elderly MH - North,Other Small Contracts,Milestones Homecare & Dementia Service,54.04, 19-Feb-2014
1438,Revenue,CCHD,Home Care - Elderly - South,Other Small Contracts,Milestones Homecare & Dementia Service,1242.92, 19-Feb-2014
1439,Revenue,CCHD,Home Care - Elderly - North,Other Small Contracts,Milestones Homecare & Dementia Service,2397.06, 19-Feb-2014
1440,Revenue,CCHD,Home care - Elderly MH - North,Other Small Contracts,Milestones Homecare & Dementia Service,54.04, 19-Feb-2014
1441,Revenue,CCHD,Home Care - Elderly - South,Other Small Contracts,Milestones Homecare & Dementia Service,984.3, 19-Feb-2014
1442,Revenue,CCHD,Home Care - Elderly - North,Other Small Contracts,Milestones Homecare & Dementia Service,1964.74, 19-Feb-2014
1443,Revenue,CCHD,Home care - Elderly MH - North,Other Small Contracts,Milestones Homecare & Dementia Service,23.16, 19-Feb-2014
1444,Revenue,CCHD,Home Care - Elderly - South,Other Small Contracts,Milestones Homecare & Dementia Service,1022.9, 14-Feb-2014
1445,Revenue,CCHD,Home Care - Elderly - North,Other Small Contracts,Milestones Homecare & Dementia Service,2385.48, 14-Feb-2014
1446,Revenue,CCHD,Home care - Elderly MH - North,Other Small Contracts,Milestones Homecare & Dementia Service,54.04, 14-Feb-2014
1447,Revenue,CCHD,Home Care - Elderly - South,Other Small Contracts,Milestones Homecare & Dementia Service,1212.04, 28-Feb-2014
1448,Revenue,CCHD,Home Care - Elderly - North,Other Small Contracts,Milestones Homecare & Dementia Service,2258.1, 28-Feb-2014
1449,Revenue,CCHD,Home care - Elderly MH - North,Other Small Contracts,Milestones Homecare & Dementia Service,54.04, 28-Feb-2014
1450,Revenue,CCHD,Home Care - Elderly - South,Other Small Contracts,Milestones Supported Living Services,521.1, 13-Feb-2014
1451,Revenue,CCHD,Home Care - Elderly - North,Other Small Contracts,Milestones Supported Living Services,92.64, 13-Feb-2014
1452,Revenue,CCHD,Day Care - South,Private & Voluntary Day Care,Milestones Supported Living Services,140.32, 13-Feb-2014
1453,Revenue,CCHD,Day Care - North,Private & Voluntary Day Care,Milestones Supported Living Services,209.76, 13-Feb-2014
1454,Revenue,CCHD,Younger MH non-res purchasing,Private & Voluntary Day Care,Milestones Supported Living Services,36.48, 13-Feb-2014
1455,Revenue,CCHD,Home care - Elderly MH - North,Other Small Contracts,Milestones Supported Living Services,61.76, 13-Feb-2014
1456,Revenue,CCHD,Home Care - Elderly - South,Other Small Contracts,Milestones Supported Living Services,521.1, 21-Feb-2014
1457,Revenue,CCHD,Home Care - Elderly - North,Other Small Contracts,Milestones Supported Living Services,92.64, 21-Feb-2014
1458,Revenue,CCHD,Day Care - South,Private & Voluntary Day Care,Milestones Supported Living Services,140.32, 21-Feb-2014
1459,Revenue,CCHD,Day Care - North,Private & Voluntary Day Care,Milestones Supported Living Services,214.32, 21-Feb-2014
1460,Revenue,CCHD,Younger MH non-res purchasing,Private & Voluntary Day Care,Milestones Supported Living Services,36.48, 21-Feb-2014
1461,Revenue,CCHD,Home Care - Elderly - South,Other Small Contracts,Milestones Supported Living Services,995.88, 26-Feb-2014
1462,Revenue,CCHD,Home Care - Elderly - North,Other Small Contracts,Milestones Supported Living Services,92.64, 26-Feb-2014
1463,Revenue,CCHD,Day Care - South,Private & Voluntary Day Care,Milestones Supported Living Services,114, 26-Feb-2014
1464,Revenue,CCHD,Day Care - North,Private & Voluntary Day Care,Milestones Supported Living Services,240.64, 26-Feb-2014
1465,Revenue,CCHD,Younger MH non-res purchasing,Private & Voluntary Day Care,Milestones Supported Living Services,36.48, 26-Feb-2014
1466,Revenue,CCHD,Home care - Elderly MH - North,Other Small Contracts,Milestones Supported Living Services,61.76, 26-Feb-2014
1467,Revenue,CCHD,Purchase of Non-Res Care - South,Private & Voluntary Day Care,Milestones Trust,1514.26, 03-Feb-2014
1468,Revenue,CCHD,Purchase of Non-Res Care - South,Private & Voluntary Day Care,Milestones Trust,1138.94, 03-Feb-2014
1469,Revenue,CCHD,Purchase of Non-Res Care - South,Private & Voluntary Day Care,Milestones Trust,1275.8, 03-Feb-2014
1470,Revenue,CCHD,Purchase of Non-Res Care - South,Private & Voluntary Day Care,Milestones Trust,1272.19, 03-Feb-2014
1471,Revenue,CCHD,Purchase of Non-Res Care - South,Private & Voluntary Day Care,Milestones Trust,1521.41, 03-Feb-2014
1472,Revenue,CCHD,Purchase of Non-Res Care - South,Private & Voluntary Day Care,Milestones Trust,635.2, 03-Feb-2014
1473,Revenue,CCHD,Supported Living - South,Private & Voluntary Home Care,Milestones Trust,1503.5, 03-Feb-2014
1474,Revenue,CCHD,Purchase of Non-Res Care - South,Private & Voluntary Day Care,Milestones Trust,1390.93, 03-Feb-2014
1475,Revenue,CCHD,Purchase of Non-Res Care - South,Private & Voluntary Day Care,Milestones Trust,814.61, 03-Feb-2014
1476,Revenue,CCHD,Purchase of Non-Res Care - South,Private & Voluntary Day Care,Milestones Trust,1164.9, 03-Feb-2014
1477,Revenue,CCHD,Supported Living - South,Private & Voluntary Home Care,Milestones Trust,2063.64, 03-Feb-2014
1478,Revenue,CCHD,Supported Living - South,Private & Voluntary Home Care,Milestones Trust,1325.99, 11-Feb-2014
1479,Revenue,CCHD,Supported Living - South,Private & Voluntary Home Care,Milestones Trust,2061.36, 11-Feb-2014
1480,Revenue,CCHD,Purchase of Non-Res Care - South,Private & Voluntary Day Care,Milestones Trust,1014.38, 18-Feb-2014
1481,Revenue,CCHD,Supported Living - North,Private & Voluntary Home Care,Milestones Trust,594.08, 11-Feb-2014
1482,Revenue,CCHD,Supported Living - North,Private & Voluntary Home Care,Milestones Trust,568.8, 11-Feb-2014
1483,Revenue,CCHD,s256 - Additional Support Funding,Other Supplies & Services,Milestones Trust,23410.9, 18-Feb-2014
1484,Revenue,CCHD,Elderly MH Day Care North,Private & Voluntary Day Care,Milestones Trust,739.08, 20-Feb-2014
1485,Revenue,CCHD,Supported Living - South,Private & Voluntary Home Care,Milestones Trust,4292.16, 25-Feb-2014
1486,Revenue,CCHD,Supported Living - South,Private & Voluntary Home Care,Milestones Trust,2682.6, 25-Feb-2014
1487,Revenue,CCHD,Supported Living - South,Private & Voluntary Home Care,Milestones Trust,4471.4, 25-Feb-2014
1488,Revenue,CCHD,Supported Living - South,Private & Voluntary Home Care,Milestones Trust,6438.24, 25-Feb-2014
1489,Revenue,CCHD,Purchase of Non-Res Care - South,Private & Voluntary Day Care,Milestones Trust,864.64, 27-Feb-2014
1490,Revenue,CCHD,Supported Living - South,Private & Voluntary Home Care,Milestones Trust,1415.7, 27-Feb-2014
1491,Revenue,CCHD,Supported Living - South,Private & Voluntary Home Care,Milestones Trust,646.02, 27-Feb-2014
1492,Revenue,CCHD,Supported Living - North,Private & Voluntary Home Care,Milestones Trust,597.38, 25-Feb-2014
1493,Revenue,CCHD,Supported Living - South,Private & Voluntary Home Care,Milestones Trust,718.72, 27-Feb-2014
1494,Revenue,CCHD,Purchase of Non-Res Care - South,Private & Voluntary Day Care,Milestones Trust,590.46, 27-Feb-2014
1495,Revenue,CCHD,Supported Living - South,Private & Voluntary Home Care,Milestones Trust,1159.21, 25-Feb-2014
1496,Revenue,CCHD,Supported Living - South,Private & Voluntary Home Care,Milestones Trust,2142.07, 28-Feb-2014
1497,Revenue,CCHD,Supported Living - South,Private & Voluntary Home Care,Milestones Trust,818, 28-Feb-2014
1498,Revenue,CCHD,Supported Living - South,Private & Voluntary Home Care,Milestones Trust,1773.6, 28-Feb-2014
1499,Revenue,CCHD,Supported Living - South,Private & Voluntary Home Care,Milestones Trust,739.97, 28-Feb-2014
1500,Revenue,CCHD,Supported Living - South,Private & Voluntary Home Care,Milestones Trust,903.24, 28-Feb-2014
1501,Revenue,CCHD,Supported Living - North,Private & Voluntary Home Care,Milestones Trust,5300.67, 28-Feb-2014
1502,Revenue,CCHD,Supported Living - South,Private & Voluntary Home Care,Milestones Trust,3707.39, 27-Feb-2014
1503,Revenue,CCHD,Bed Purchasing - Winter resillience,Other Supplies & Services,Morag Duff,1806.2, 17-Feb-2014
1504,Revenue,CCHD,Bed Purchasing - Frenchay Hospital,Permanent Residential,Mostyn Lodge Residential Home,2234.32, 18-Feb-2014
1505,Revenue,CCHD,Bed purchasing - Elderly S117 - South,Permanent Residential,Mostyn Lodge Residential Home,3800, 18-Feb-2014
1506,Revenue,CCHD,Supported Living - South,Private & Voluntary Home Care,Moving On,3569.89, 03-Feb-2014
1507,Revenue,CCHD,Supported Living - South,Private & Voluntary Home Care,Moving On,694.26, 05-Feb-2014
1508,Revenue,CCHD,Supported Living - South,Private & Voluntary Home Care,Moving On,1132.31, 05-Feb-2014
1509,Revenue,CCHD,Supported Living - South,Private & Voluntary Home Care,Moving On,1099.91, 05-Feb-2014
1510,Revenue,CCHD,Supported Living - South,Private & Voluntary Home Care,Moving On,6292.43, 03-Feb-2014
1511,Revenue,CCHD,Day Care - South,Private & Voluntary Day Care,Moving On,1090.98, 03-Feb-2014
1512,Revenue,CCHD,Supported Living - South,Private & Voluntary Home Care,Moving On,1041.39, 03-Feb-2014
1513,Revenue,CCHD,Day Care - South,Private & Voluntary Day Care,Moving On,1157.1, 03-Feb-2014
1514,Revenue,CCHD,Social Lettings Agency,Fees - General,Individual,10, 07-Feb-2014
1515,Revenue,CCHD,Social Lettings Agency,Other Supplies & Services,Individual,565, 07-Feb-2014
1516,Revenue,CCHD,Social Lettings Agency,Fees - General,Individual,10, 18-Feb-2014
1517,Revenue,CCHD,Social Lettings Agency,Other Supplies & Services,Individual,565, 18-Feb-2014
1518,Revenue,CCHD,Social Lettings Agency,Fees - General,Individual,10, 21-Feb-2014
1519,Revenue,CCHD,Social Lettings Agency,Other Supplies & Services,Individual,565, 21-Feb-2014
1520,Revenue,CCHD,Social Lettings Agency,Fees - General,Individual,8.6, 21-Feb-2014
1521,Revenue,CCHD,Social Lettings Agency,Other Supplies & Services,Individual,582, 21-Feb-2014
1522,Revenue,CCHD,Social Lettings Agency,Fees - General,Individual,11.6, 28-Feb-2014
1523,Revenue,CCHD,Social Lettings Agency,Other Supplies & Services,Individual,655.41, 28-Feb-2014
1524,Revenue,CCHD,Social Lettings Agency,Other Supplies & Services,Individual,850, 12-Feb-2014
1525,Revenue,CCHD,Non Priority Bond Scheme,Other Supplies & Services,Mr Barry Mitchell,1000, 05-Feb-2014
1526,Revenue,CCHD,Homeless - Private Sector Leasing,Other Supplies & Services,Mr D G & Mrs L K Jenkins,565, 21-Feb-2014
1527,Revenue,CCHD,Social Lettings Agency,Fees - General,Individual,10, 07-Feb-2014
1528,Revenue,CCHD,Social Lettings Agency,Other Supplies & Services,Individual,565, 07-Feb-2014
1529,Revenue,CCHD,Social Lettings Agency,Fees - General,Individual,11.2, 20-Feb-2014
1530,Revenue,CCHD,Social Lettings Agency,Other Supplies & Services,Individual,632.81, 20-Feb-2014
1531,Revenue,CCHD,Social Lettings Agency,Fees - General,Individual,10, 07-Feb-2014
1532,Revenue,CCHD,Social Lettings Agency,Other Supplies & Services,Individual,565, 07-Feb-2014
1533,Revenue,CCHD,Social Lettings Agency,Fees - General,Individual,10, 28-Feb-2014
1534,Revenue,CCHD,Social Lettings Agency,Other Supplies & Services,Individual,565, 28-Feb-2014
1535,Revenue,CCHD,Social Lettings Agency,Fees - General,Individual,8.7, 14-Feb-2014
1536,Revenue,CCHD,Social Lettings Agency,Other Supplies & Services,Individual,672.8, 14-Feb-2014
1537,Revenue,CCHD,Social Lettings Agency,Fees - General,Individual,11.2, 13-Feb-2014
1538,Revenue,CCHD,Social Lettings Agency,Other Supplies & Services,Individual,632.81, 13-Feb-2014
1539,Revenue,CCHD,Social Lettings Agency,Fees - General,Individual,10, 28-Feb-2014
1540,Revenue,CCHD,Social Lettings Agency,Other Supplies & Services,Individual,565, 28-Feb-2014
1541,Revenue,CCHD,Social Lettings Agency,Fees - General,Individual,7.5, 05-Feb-2014
1542,Revenue,CCHD,Social Lettings Agency,Other Supplies & Services,Individual,587.25, 05-Feb-2014
1543,Revenue,CCHD,Supported Living - South,Private & Voluntary Home Care,Mrs B Kimber,8641.92, 18-Feb-2014
1544,Revenue,CCHD,Supported Living - South,Private & Voluntary Home Care,Mrs B Kimber,10765.33, 18-Feb-2014
1545,Revenue,CCHD,Home Care - Elderly - South,Other Small Contracts,Mrs B Kimber -  CM2000,9084.6, 06-Feb-2014
1546,Revenue,CCHD,Home Care - Elderly - North,Other Small Contracts,Mrs B Kimber -  CM2000,4003.55, 06-Feb-2014
1547,Revenue,CCHD,Day Care - South,Private & Voluntary Day Care,Mrs B Kimber -  CM2000,417.15, 06-Feb-2014
1548,Revenue,CCHD,Day Care - North,Private & Voluntary Day Care,Mrs B Kimber -  CM2000,32.4, 06-Feb-2014
1549,Revenue,CCHD,Under 65s -MH  Home Care Purch,Other Small Contracts,Mrs B Kimber -  CM2000,32.4, 06-Feb-2014
1550,Revenue,CCHD,Elderly MH Day Care North,Private & Voluntary Day Care,Mrs B Kimber -  CM2000,97.2, 06-Feb-2014
1551,Revenue,CCHD,Home Care - Elderly - South,Other Small Contracts,Mrs B Kimber -  CM2000,8826.55, 11-Feb-2014
1552,Revenue,CCHD,Home Care - Elderly - North,Other Small Contracts,Mrs B Kimber -  CM2000,5374.55, 11-Feb-2014
1553,Revenue,CCHD,Day Care - South,Private & Voluntary Day Care,Mrs B Kimber -  CM2000,481.95, 11-Feb-2014
1554,Revenue,CCHD,Day Care - North,Private & Voluntary Day Care,Mrs B Kimber -  CM2000,32.4, 11-Feb-2014
1555,Revenue,CCHD,Under 65s -MH  Home Care Purch,Other Small Contracts,Mrs B Kimber -  CM2000,64.8, 11-Feb-2014
1556,Revenue,CCHD,Elderly MH Day Care North,Private & Voluntary Day Care,Mrs B Kimber -  CM2000,97.2, 11-Feb-2014
1557,Revenue,CCHD,Home Care - Elderly - South,Other Small Contracts,Mrs B Kimber -  CM2000,9050.05, 11-Feb-2014
1558,Revenue,CCHD,Home Care - Elderly - North,Other Small Contracts,Mrs B Kimber -  CM2000,5732.45, 11-Feb-2014
1559,Revenue,CCHD,Day Care - South,Private & Voluntary Day Care,Mrs B Kimber -  CM2000,494.1, 11-Feb-2014
1560,Revenue,CCHD,Under 65s -MH  Home Care Purch,Other Small Contracts,Mrs B Kimber -  CM2000,64.8, 11-Feb-2014
1561,Revenue,CCHD,Elderly MH Day Care North,Private & Voluntary Day Care,Mrs B Kimber -  CM2000,97.2, 11-Feb-2014
1562,Revenue,CCHD,Home Care - Elderly - South,Other Small Contracts,Mrs B Kimber -  CM2000,9054.65, 17-Feb-2014
1563,Revenue,CCHD,Home Care - Elderly - North,Other Small Contracts,Mrs B Kimber -  CM2000,5941.8, 17-Feb-2014
1564,Revenue,CCHD,Day Care - South,Private & Voluntary Day Care,Mrs B Kimber -  CM2000,481.95, 17-Feb-2014
1565,Revenue,CCHD,Day Care - North,Private & Voluntary Day Care,Mrs B Kimber -  CM2000,32.4, 17-Feb-2014
1566,Revenue,CCHD,Under 65s -MH  Home Care Purch,Other Small Contracts,Mrs B Kimber -  CM2000,64.8, 17-Feb-2014
1567,Revenue,CCHD,Elderly MH Day Care North,Private & Voluntary Day Care,Mrs B Kimber -  CM2000,97.2, 17-Feb-2014
1568,Revenue,CCHD,Home Care - Elderly - South,Other Small Contracts,Mrs B Kimber -  CM2000,9036.34, 17-Feb-2014
1569,Revenue,CCHD,Home Care - Elderly - North,Other Small Contracts,Mrs B Kimber -  CM2000,6053.85, 17-Feb-2014
1570,Revenue,CCHD,Day Care - South,Private & Voluntary Day Care,Mrs B Kimber -  CM2000,406.4, 17-Feb-2014
1571,Revenue,CCHD,Day Care - North,Private & Voluntary Day Care,Mrs B Kimber -  CM2000,36.45, 17-Feb-2014
1572,Revenue,CCHD,Under 65s -MH  Home Care Purch,Other Small Contracts,Mrs B Kimber -  CM2000,32.4, 17-Feb-2014
1573,Revenue,CCHD,Elderly MH Day Care North,Private & Voluntary Day Care,Mrs B Kimber -  CM2000,97.2, 17-Feb-2014
1574,Revenue,CCHD,Home Care - Elderly - South,Other Small Contracts,Mrs B Kimber -  CM2000,9178.05, 25-Feb-2014
1575,Revenue,CCHD,Home Care - Elderly - North,Other Small Contracts,Mrs B Kimber -  CM2000,6081.19, 25-Feb-2014
1576,Revenue,CCHD,Day Care - South,Private & Voluntary Day Care,Mrs B Kimber -  CM2000,477.66, 25-Feb-2014
1577,Revenue,CCHD,Day Care - North,Private & Voluntary Day Care,Mrs B Kimber -  CM2000,100.56, 25-Feb-2014
1578,Revenue,CCHD,Under 65s -MH  Home Care Purch,Other Small Contracts,Mrs B Kimber -  CM2000,67.04, 25-Feb-2014
1579,Revenue,CCHD,Elderly MH Day Care North,Private & Voluntary Day Care,Mrs B Kimber -  CM2000,50.28, 25-Feb-2014
1580,Revenue,CCHD,Home Care - Elderly - South,Other Small Contracts,Mrs B Kimber -  CM2000,9136.15, 28-Feb-2014
1581,Revenue,CCHD,Home Care - Elderly - North,Other Small Contracts,Mrs B Kimber -  CM2000,5597.24, 28-Feb-2014
1582,Revenue,CCHD,Day Care - South,Private & Voluntary Day Care,Mrs B Kimber -  CM2000,511.18, 28-Feb-2014
1583,Revenue,CCHD,Day Care - North,Private & Voluntary Day Care,Mrs B Kimber -  CM2000,33.52, 28-Feb-2014
1584,Revenue,CCHD,Under 65s -MH  Home Care Purch,Other Small Contracts,Mrs B Kimber -  CM2000,33.52, 28-Feb-2014
1585,Revenue,CCHD,Elderly MH Day Care North,Private & Voluntary Day Care,Mrs B Kimber -  CM2000,100.56, 28-Feb-2014
1586,Revenue,CCHD,Social Lettings Agency,Fees - General,Individual,10, 17-Feb-2014
1587,Revenue,CCHD,Social Lettings Agency,Other Supplies & Services,Individual,565, 17-Feb-2014
1588,Revenue,CCHD,Social Lettings Agency,Fees - General,Individual,10, 14-Feb-2014
1589,Revenue,CCHD,Social Lettings Agency,Other Supplies & Services,Individual,565, 14-Feb-2014
1590,Revenue,CCHD,Social Lettings Agency,Fees - General,Individual,10, 24-Feb-2014
1591,Revenue,CCHD,Social Lettings Agency,Other Supplies & Services,Individual,565, 24-Feb-2014
1592,Revenue,CCHD,Social Lettings Agency,Fees - General,Individual,10, 28-Feb-2014
1593,Revenue,CCHD,Social Lettings Agency,Other Supplies & Services,Individual,565, 28-Feb-2014
1594,Revenue,CCHD,Swift Dump Code,Permanent Residential,Mrs Heather Barnes,613.62, 28-Feb-2014
1595,Revenue,CCHD,Supported Living - North,Permanent Residential,Mrs I M Bowerman,1658.42, 03-Feb-2014
1596,Revenue,CCHD,Social Lettings Agency,Fees - General,Individual,10, 12-Feb-2014
1597,Revenue,CCHD,Social Lettings Agency,Other Supplies & Services,Individual,565, 12-Feb-2014
1598,Revenue,CCHD,Supported Living - North,Permanent Residential,Mrs Julie Taylor,1108.79, 12-Feb-2014
1599,Revenue,CCHD,Social Lettings Agency,Fees - General,Individual,11.6, 14-Feb-2014
1600,Revenue,CCHD,Social Lettings Agency,Other Supplies & Services,Individual,655.41, 14-Feb-2014
1601,Revenue,CCHD,Social Lettings Agency,Fees - General,Individual,10, 07-Feb-2014
1602,Revenue,CCHD,Social Lettings Agency,Other Supplies & Services,Individual,565, 07-Feb-2014
1603,Revenue,CCHD,Social Lettings Agency,Fees - General,Individual,15.53, 11-Feb-2014
1604,Revenue,CCHD,Social Lettings Agency,Other Supplies & Services,Individual,812.68, 11-Feb-2014
1605,Revenue,CCHD,Research & Conferences,Legal Fees,Ms Sarah Hannett,5700, 17-Feb-2014
1606,Revenue,CCHD,Day Care - North,Private & Voluntary Day Care,NAS Services Limited,525.25, 14-Feb-2014
1607,Revenue,CCHD,Younger MH non-res purchasing,Private & Voluntary Day Care,NAS Services Limited,860.2, 14-Feb-2014
1608,Revenue,CCHD,Day Care - North,Private & Voluntary Day Care,NAS Services Limited,821.3, 14-Feb-2014
1609,Revenue,CCHD,Day Care - South,Private & Voluntary Day Care,NAS Services Limited,914.65, 14-Feb-2014
1610,Revenue,CCHD,Younger MH non-res purchasing,Private & Voluntary Day Care,NAS Services Limited,573, 19-Feb-2014
1611,Revenue,CCHD,Day Care - South,Private & Voluntary Day Care,NAS Services Limited,744.9, 20-Feb-2014
1612,Revenue,CCHD,Bed Purchasing - Under 65s PWLD - South,Permanent Residential,National Star College,4547.72, 18-Feb-2014
1613,Revenue,CCHD,Training - Adult Services,Training Expenses,Nelson Training Limited,1186, 12-Feb-2014
1614,Revenue,CCHD,Home Care - Elderly - South,Other Small Contracts,Nestor T/A Allied Healthcare,2521.63, 10-Feb-2014
1615,Revenue,CCHD,Home Care - Elderly - North,Other Small Contracts,Nestor T/A Allied Healthcare,6934.96, 10-Feb-2014
1616,Revenue,CCHD,Day Care - North,Private & Voluntary Day Care,Nestor T/A Allied Healthcare,159.6, 10-Feb-2014
1617,Revenue,CCHD,Home care - Elderly MH - North,Other Small Contracts,Nestor T/A Allied Healthcare,39.9, 10-Feb-2014
1618,Revenue,CCHD,Home Care - Elderly - South,Other Small Contracts,Nestor T/A Allied Healthcare,2876.79, 10-Feb-2014
1619,Revenue,CCHD,Home Care - Elderly - North,Other Small Contracts,Nestor T/A Allied Healthcare,8131.75, 10-Feb-2014
1620,Revenue,CCHD,Day Care - North,Private & Voluntary Day Care,Nestor T/A Allied Healthcare,271.32, 10-Feb-2014
1621,Revenue,CCHD,Home care - Elderly MH - North,Other Small Contracts,Nestor T/A Allied Healthcare,55.86, 10-Feb-2014
1622,Revenue,CCHD,Home Care - Elderly - South,Other Small Contracts,Nestor T/A Allied Healthcare,3184.02, 24-Feb-2014
1623,Revenue,CCHD,Home Care - Elderly - North,Other Small Contracts,Nestor T/A Allied Healthcare,8146.62, 24-Feb-2014
1624,Revenue,CCHD,Day Care - South,Private & Voluntary Day Care,Nestor T/A Allied Healthcare,47.88, 24-Feb-2014
1625,Revenue,CCHD,Day Care - North,Private & Voluntary Day Care,Nestor T/A Allied Healthcare,267.33, 24-Feb-2014
1626,Revenue,CCHD,Home care - Elderly MH - North,Other Small Contracts,Nestor T/A Allied Healthcare,55.86, 24-Feb-2014
1627,Revenue,CCHD,Home Care - Elderly - South,Other Small Contracts,Nestor T/A Allied Healthcare,3180.03, 24-Feb-2014
1628,Revenue,CCHD,Home Care - Elderly - North,Other Small Contracts,Nestor T/A Allied Healthcare,8091.85, 24-Feb-2014
1629,Revenue,CCHD,Day Care - North,Private & Voluntary Day Care,Nestor T/A Allied Healthcare,279.3, 24-Feb-2014
1630,Revenue,CCHD,Home care - Elderly MH - North,Other Small Contracts,Nestor T/A Allied Healthcare,55.86, 24-Feb-2014
1631,Revenue,CCHD,Home Care - Elderly - South,Other Small Contracts,Network Health & Social Care,1762.17, 13-Feb-2014
1632,Revenue,CCHD,Home Care - Elderly - North,Other Small Contracts,Network Health & Social Care,4403.48, 13-Feb-2014
1633,Revenue,CCHD,Home Care - Elderly - South,Other Small Contracts,Network Health & Social Care,1941.11, 13-Feb-2014
1634,Revenue,CCHD,Home Care - Elderly - North,Other Small Contracts,Network Health & Social Care,4162.3, 13-Feb-2014
1635,Revenue,CCHD,Home Care - Elderly - South,Other Small Contracts,Network Health & Social Care,1629.91, 13-Feb-2014
1636,Revenue,CCHD,Home Care - Elderly - North,Other Small Contracts,Network Health & Social Care,4138.96, 13-Feb-2014
1637,Revenue,CCHD,Home Care - Elderly - South,Other Small Contracts,Network Health & Social Care,1688.26, 13-Feb-2014
1638,Revenue,CCHD,Home Care - Elderly - North,Other Small Contracts,Network Health & Social Care,4298.45, 13-Feb-2014
1639,Revenue,CCHD,Home Care - Elderly - South,Other Small Contracts,Network Health & Social Care,1513.21, 13-Feb-2014
1640,Revenue,CCHD,Home Care - Elderly - North,Other Small Contracts,Network Health & Social Care,4625.21, 13-Feb-2014
1641,Revenue,CCHD,Social Lettings Agency,Fees - General,Individual,10, 04-Feb-2014
1642,Revenue,CCHD,Social Lettings Agency,Other Supplies & Services,Individual,565, 04-Feb-2014
1643,Revenue,CCHD,Access Team,"Holidays, Outings & Visits",Neville Williams,1008, 28-Feb-2014
1644,Revenue,CCHD,Bed Purchasing - Under 65s PWLD - South,Permanent Residential,Nightingale Nursing Home,3105.36, 18-Feb-2014
1645,Revenue,CCHD,Information Systems - Software,Software Support & Maintenance,Northgate Information Solutions UK Limited,50000, 20-Feb-2014
1646,Revenue,CCHD,Bed Purchasing - Under 65s PWLD - South,Permanent Residential,Norwood   Broadway House,4899.44, 18-Feb-2014
1647,Revenue,CCHD,Bed Purchasing - Elderly MH - South,Permanent Residential,Notaro Homes Ltd  Queensmead Court,1857.32, 18-Feb-2014
1648,Revenue,CCHD,Bed Purchasing - Southmead Hospital,Permanent Residential,Notaro Homes Ltd  Queensmead Court,1371.32, 18-Feb-2014
1649,Revenue,CCHD,Bed Purchasing - Elderly - South,Permanent Residential,Nova House Care Home,938.4, 18-Feb-2014
1650,Revenue,CCHD,Housing Needs,Training Expenses,NowMedical,1850, 19-Feb-2014
1651,Revenue,CCHD,Woodleaze,Agency Staff (Admin/Support Staff) Pay,Nurse Plus and Carer Plus (UK) Limited,1092.82, 12-Feb-2014
1652,Revenue,CCHD,Woodleaze,Agency Staff (Admin/Support Staff) Pay,Nurse Plus and Carer Plus (UK) Limited,805.82, 20-Feb-2014
1653,Revenue,CCHD,Woodleaze,Agency Staff (Admin/Support Staff) Pay,Nurse Plus and Carer Plus (UK) Limited,1341.59, 27-Feb-2014
1654,Revenue,CCHD,Home Care - Elderly - South,Other Small Contracts,Nursing Solutions Limited,2901.6, 05-Feb-2014
1655,Revenue,CCHD,Home Care - Elderly - North,Other Small Contracts,Nursing Solutions Limited,982.8, 05-Feb-2014
1656,Revenue,CCHD,Home Care - Elderly - South,Other Small Contracts,Nursing Solutions Limited,2862.6, 13-Feb-2014
1657,Revenue,CCHD,Home Care - Elderly - North,Other Small Contracts,Nursing Solutions Limited,975, 13-Feb-2014
1658,Revenue,CCHD,Home Care - Elderly - South,Other Small Contracts,Nursing Solutions Limited,3287.98, 13-Feb-2014
1659,Revenue,CCHD,Home Care - Elderly - North,Other Small Contracts,Nursing Solutions Limited,960.3, 13-Feb-2014
1660,Revenue,CCHD,Home Care - Elderly - South,Other Small Contracts,Nursing Solutions Limited,3488.8, 20-Feb-2014
1661,Revenue,CCHD,Home Care - Elderly - North,Other Small Contracts,Nursing Solutions Limited,905.52, 20-Feb-2014
1662,Revenue,CCHD,Section 117 Placements MH Younger,Permanent Nursing,Oaklands,6000, 18-Feb-2014
1663,Revenue,CCHD,Home Care - Elderly - South,Other Small Contracts,On the Up,887.8, 05-Feb-2014
1664,Revenue,CCHD,Home Care - Elderly - North,Other Small Contracts,On the Up,92.64, 05-Feb-2014
1665,Revenue,CCHD,Day Care - South,Private & Voluntary Day Care,On the Up,100.32, 05-Feb-2014
1666,Revenue,CCHD,Day Care - North,Private & Voluntary Day Care,On the Up,214.32, 05-Feb-2014
1667,Revenue,CCHD,Younger MH non-res purchasing,Private & Voluntary Day Care,On the Up,36.48, 05-Feb-2014
1668,Revenue,CCHD,Home care - Elderly MH - North,Other Small Contracts,On the Up,61.76, 05-Feb-2014
1669,Revenue,CCHD,Bed purchasing -S28A  Under 65 - North,Permanent Residential,Orchard End Limited,7452.12, 18-Feb-2014
1670,Revenue,CCHD,Turnberries,"Provisions (Food, etc)",Origin Cafe,589, 28-Feb-2014
1671,Revenue,CCHD,Bed Purchasing - Elderly S117- North,Permanent Residential,Osbourne Court,1900, 18-Feb-2014
1672,Revenue,CCHD,Bed purchasing - Elderly S117 - South,Permanent Residential,Osbourne Court,3060, 18-Feb-2014
1673,Revenue,CCHD,Bed Purchasing - Elderly - North,Permanent Residential,Osbourne Court,577.28, 18-Feb-2014
1674,Revenue,CCHD,Bed Purchasing - Elderly - South,Permanent Residential,Osbourne Court,961.41, 18-Feb-2014
1675,Revenue,CCHD,Bed Purchasing - Elderly - South,Permanent Residential,Osbourne Court,810.56, 18-Feb-2014
1676,Revenue,CCHD,Swift Dump Code,Permanent Residential,Osbourne Court,12660.43, 18-Feb-2014
1677,Revenue,CCHD,Bed Purchasing - Elderly S117- North,Permanent Residential,Osbourne Court,1900, 18-Feb-2014
1678,Revenue,CCHD,Bed Purchasing - Elderly - North,Permanent Residential,Osbourne Court,2519.28, 18-Feb-2014
1679,Revenue,CCHD,Bed Purchasing - Southmead Hospital,Permanent Residential,Osbourne Court,859.4, 18-Feb-2014
1680,Revenue,CCHD,Bed Purchasing - Under 65s PWLD - South,Permanent Residential,Osprey Court,7636.76, 18-Feb-2014
1681,Revenue,CCHD,Bed purchasing - S28A Under 65 - South,Permanent Residential,Osprey Court,4259.36, 18-Feb-2014
1682,Revenue,CCHD,Bed purchasing - S28A Under 65 - South,Permanent Residential,Osprey Court,6305.32, 18-Feb-2014
1683,Revenue,CCHD,Bed Purchasing - Southmead Hospital,Permanent Nursing,Palm Court Nursing Home,1503.36, 18-Feb-2014
1684,Revenue,CCHD,Bed Purchasing - Elderly MH - South,Permanent Residential,Park Farm House,1333.44, 18-Feb-2014
1685,Revenue,CCHD,Bed Purchasing - Elderly - South,Respite Emergency - Residential,Park Farm House,1190, 18-Feb-2014
1686,Revenue,CCHD,Bed Purchasing - Elderly MH - South,Permanent Residential,Park Farm House,1593.2, 18-Feb-2014
1687,Revenue,CCHD,Bed Purchasing - Under 65s PWLD - South,Permanent Residential,Park Hall,5552, 18-Feb-2014
1688,Revenue,CCHD,Bed purchasing - Under 65s PWLD - North,Permanent Residential,Park Hall,5131.28, 18-Feb-2014
1689,Revenue,CCHD,Bed Purchasing - Under 65s PWLD - South,Permanent Residential,Park Hall,4940.84, 18-Feb-2014
1690,Revenue,CCHD,Bed purchasing - Elderly PWLD - South,Permanent Residential,Park Hall,2520.96, 18-Feb-2014
1691,Revenue,CCHD,Bed purchasing - Elderly PWLD - North,Permanent Residential,Park Hall,4897.8, 18-Feb-2014
1692,Revenue,CCHD,Bed purchasing - S28A Under 65 - South,Permanent Residential,Park Hall,4614.16, 18-Feb-2014
1693,Revenue,CCHD,Bed Purchasing - Under 65s PWLD - South,Permanent Residential,Park Hall,4917.16, 18-Feb-2014
1694,Revenue,CCHD,Bed purchasing - Under 65s PWLD - North,Permanent Residential,Park Hall,8557.68, 18-Feb-2014
1695,Revenue,CCHD,Bed Purchasing - S28A - Over 65- North,Permanent Residential,Park Hall,10573.6, 18-Feb-2014
1696,Revenue,CCHD,Bed Purchasing - Under 65s PWLD - South,Permanent Residential,Park Hall,10610.92, 18-Feb-2014
1697,Revenue,CCHD,Bed purchasing -S28A  Under 65 - North,Permanent Residential,Park Hall,5844.16, 18-Feb-2014
1698,Revenue,CCHD,Bed purchasing - S28A Under 65 - South,Permanent Residential,Park Hall,5565.72, 18-Feb-2014
1699,Revenue,CCHD,Bed Purchasing - Under 65s PWLD - South,Permanent Residential,Park Hall,7081.64, 18-Feb-2014
1700,Revenue,CCHD,Social Lettings Agency,Fees - General,Individual,10, 27-Feb-2014
1701,Revenue,CCHD,Social Lettings Agency,Other Supplies & Services,Individual,565, 27-Feb-2014
1702,Revenue,CCHD,Bed Purchasing - Under 65s PWLD - South,Permanent Residential,Penleigh House Care Home,8987.04, 18-Feb-2014
1703,Revenue,CCHD,Bed Purchasing - Under 65s PWLD - South,Permanent Residential,Penleigh House Care Home,12672.8, 18-Feb-2014
1704,Revenue,CCHD,Bed purchasing - Elderly PWLD - South,Permanent Residential,Penleigh House Care Home,8516.96, 18-Feb-2014
1705,Revenue,CCHD,Bed purchasing - S28A Under 65 - South,Permanent Residential,Penleigh House Care Home,10834.08, 18-Feb-2014
1706,Revenue,CCHD,Bed Purchasing - Under 65s PWLD - South,Permanent Residential,Penleigh House Care Home,9786.56, 18-Feb-2014
1707,Revenue,CCHD,General Day Care,Operational Staff Pay,Piers Meadows Recruitment Limited,1190.42, 27-Feb-2014
1708,Revenue,CCHD,General Day Care,Operational Staff Pay,Piers Meadows Recruitment Limited,1191.32, 27-Feb-2014
1709,Revenue,CCHD,General Day Care,Operational Staff Pay,Piers Meadows Recruitment Limited,1453.26, 27-Feb-2014
1710,Revenue,CCHD,General Day Care,Operational Staff Pay,Piers Meadows Recruitment Limited,1181.87, 24-Feb-2014
1711,Revenue,CCHD,Section 117 Placements MH Younger,Permanent Residential,Pine Croft,12600.91, 14-Feb-2014
1712,Revenue,CCHD,Supporting People Programme,Grants to Voluntary Bodies,Places for People,1117.67, 28-Feb-2014
1713,Revenue,CCHD,Home Care - Elderly - South,Other Small Contracts,Premier Homecare Limited,296.4, 06-Feb-2014
1714,Revenue,CCHD,Home Care - Elderly - North,Other Small Contracts,Premier Homecare Limited,8445.12, 06-Feb-2014
1715,Revenue,CCHD,Day Care - North,Private & Voluntary Day Care,Premier Homecare Limited,13.68, 06-Feb-2014
1716,Revenue,CCHD,Home care - Elderly MH - North,Other Small Contracts,Premier Homecare Limited,127.68, 06-Feb-2014
1717,Revenue,CCHD,Elderly MH Day Care North,Private & Voluntary Day Care,Premier Homecare Limited,72.96, 06-Feb-2014
1718,Revenue,CCHD,Home Care - Elderly - South,Other Small Contracts,Premier Homecare Limited,273.6, 06-Feb-2014
1719,Revenue,CCHD,Home Care - Elderly - North,Other Small Contracts,Premier Homecare Limited,8989.47, 06-Feb-2014
1720,Revenue,CCHD,Home care - Elderly MH - North,Other Small Contracts,Premier Homecare Limited,127.68, 06-Feb-2014
1721,Revenue,CCHD,Elderly MH Day Care North,Private & Voluntary Day Care,Premier Homecare Limited,72.96, 06-Feb-2014
1722,Revenue,CCHD,Home Care - Elderly - South,Other Small Contracts,Premier Homecare Limited,300.96, 11-Feb-2014
1723,Revenue,CCHD,Home Care - Elderly - North,Other Small Contracts,Premier Homecare Limited,8793.39, 11-Feb-2014
1724,Revenue,CCHD,Home care - Elderly MH - North,Other Small Contracts,Premier Homecare Limited,127.68, 11-Feb-2014
1725,Revenue,CCHD,Elderly MH Day Care North,Private & Voluntary Day Care,Premier Homecare Limited,127.68, 11-Feb-2014
1726,Revenue,CCHD,Home Care - Elderly - South,Other Small Contracts,Premier Homecare Limited,287.28, 19-Feb-2014
1727,Revenue,CCHD,Home Care - Elderly - North,Other Small Contracts,Premier Homecare Limited,8828.16, 19-Feb-2014
1728,Revenue,CCHD,Home care - Elderly MH - North,Other Small Contracts,Premier Homecare Limited,127.68, 19-Feb-2014
1729,Revenue,CCHD,Elderly MH Day Care North,Private & Voluntary Day Care,Premier Homecare Limited,127.68, 19-Feb-2014
1730,Revenue,CCHD,Home Care - Elderly - South,Other Small Contracts,Premier Homecare Limited,287.28, 28-Feb-2014
1731,Revenue,CCHD,Home Care - Elderly - North,Other Small Contracts,Premier Homecare Limited,9357.12, 28-Feb-2014
1732,Revenue,CCHD,Home care - Elderly MH - North,Other Small Contracts,Premier Homecare Limited,127.68, 28-Feb-2014
1733,Revenue,CCHD,Elderly MH Day Care North,Private & Voluntary Day Care,Premier Homecare Limited,127.68, 28-Feb-2014
1734,Revenue,CCHD,Home Care - Elderly - South,Other Small Contracts,Prestige Nursing,771.49, 11-Feb-2014
1735,Revenue,CCHD,Home Care - Elderly - North,Other Small Contracts,Prestige Nursing,3179.41, 11-Feb-2014
1736,Revenue,CCHD,Day Care - South,Private & Voluntary Day Care,Prestige Nursing,120.68, 11-Feb-2014
1737,Revenue,CCHD,Day Care - North,Private & Voluntary Day Care,Prestige Nursing,435.31, 11-Feb-2014
1738,Revenue,CCHD,Home Care - Elderly - South,Other Small Contracts,Prestige Nursing,698.22, 11-Feb-2014
1739,Revenue,CCHD,Home Care - Elderly - North,Other Small Contracts,Prestige Nursing,2713.92, 11-Feb-2014
1740,Revenue,CCHD,Day Care - South,Private & Voluntary Day Care,Prestige Nursing,34.48, 11-Feb-2014
1741,Revenue,CCHD,Day Care - North,Private & Voluntary Day Care,Prestige Nursing,172.4, 11-Feb-2014
1742,Revenue,CCHD,Home Care - Elderly - South,Other Small Contracts,Prestige Nursing,775.8, 11-Feb-2014
1743,Revenue,CCHD,Home Care - Elderly - North,Other Small Contracts,Prestige Nursing,3248.37, 11-Feb-2014
1744,Revenue,CCHD,Day Care - South,Private & Voluntary Day Care,Prestige Nursing,120.68, 11-Feb-2014
1745,Revenue,CCHD,Day Care - North,Private & Voluntary Day Care,Prestige Nursing,405.14, 11-Feb-2014
1746,Revenue,CCHD,Home Care - Elderly - South,Other Small Contracts,Prestige Nursing,775.8, 11-Feb-2014
1747,Revenue,CCHD,Home Care - Elderly - North,Other Small Contracts,Prestige Nursing,3005.33, 11-Feb-2014
1748,Revenue,CCHD,Day Care - South,Private & Voluntary Day Care,Prestige Nursing,120.68, 11-Feb-2014
1749,Revenue,CCHD,Day Care - North,Private & Voluntary Day Care,Prestige Nursing,439.62, 11-Feb-2014
1750,Revenue,CCHD,Home Care - Elderly - South,Other Small Contracts,Prestige Nursing,870.62, 11-Feb-2014
1751,Revenue,CCHD,Home Care - Elderly - North,Other Small Contracts,Prestige Nursing,3365.66, 11-Feb-2014
1752,Revenue,CCHD,Day Care - South,Private & Voluntary Day Care,Prestige Nursing,120.68, 11-Feb-2014
1753,Revenue,CCHD,Day Care - North,Private & Voluntary Day Care,Prestige Nursing,443.93, 11-Feb-2014
1754,Revenue,CCHD,Home Care - Elderly - South,Other Small Contracts,Prestige Nursing,905.1, 11-Feb-2014
1755,Revenue,CCHD,Home Care - Elderly - North,Other Small Contracts,Prestige Nursing,3179.41, 11-Feb-2014
1756,Revenue,CCHD,Day Care - South,Private & Voluntary Day Care,Prestige Nursing,120.68, 11-Feb-2014
1757,Revenue,CCHD,Day Care - North,Private & Voluntary Day Care,Prestige Nursing,431, 11-Feb-2014
1758,Revenue,CCHD,Home Care - Elderly - South,Other Small Contracts,Prestige Nursing,915.42, 25-Feb-2014
1759,Revenue,CCHD,Home Care - Elderly - North,Other Small Contracts,Prestige Nursing,3120.77, 25-Feb-2014
1760,Revenue,CCHD,Day Care - South,Private & Voluntary Day Care,Prestige Nursing,122.64, 25-Feb-2014
1761,Revenue,CCHD,Day Care - North,Private & Voluntary Day Care,Prestige Nursing,446.76, 25-Feb-2014
1762,Revenue,CCHD,Home Care - Elderly - South,Private & Voluntary Day Care,Prestige Nursing,145.6, 18-Feb-2014
1763,Revenue,CCHD,Home Care - Elderly - South,Other Small Contracts,Prestige Nursing,130, 18-Feb-2014
1764,Revenue,CCHD,Home Care - Elderly - North,Private & Voluntary Day Care,Prestige Nursing,216, 18-Feb-2014
1765,Revenue,CCHD,Home Care - Elderly - North,Other Small Contracts,Prestige Nursing,312, 18-Feb-2014
1766,Revenue,CCHD,Bed Purchasing - Elderly - South,Respite Emergency - Nursing,Prestige Nursing,906.08, 05-Feb-2014
1767,Revenue,CCHD,Bed Purchasing - Elderly - South,Respite Emergency - Nursing,Prestige Nursing,1104.34, 05-Feb-2014
1768,Revenue,CCHD,Bed purchasing - Elderly MH - North,Permanent Nursing,Ravenswood,2538.96, 18-Feb-2014
1769,Revenue,CCHD,Bed Purchasing - Elderly - South,Permanent Residential,Ravenswood,7609.2, 18-Feb-2014
1770,Revenue,CCHD,Bed Purchasing - PWLD S 117 Placements,Permanent Residential,Real Life Options,15959.84, 18-Feb-2014
1771,Revenue,CCHD,Breakthrough and Inclusion Work,Other Supplies & Services,Redefine Mentoring Ltd,2714.13, 07-Feb-2014
1772,Revenue,CCHD,Bed Purchasing - Elderly S117- North,Permanent Nursing,Redholme Memory Care Limited,1962.8, 18-Feb-2014
1773,Revenue,CCHD,Supporting People Programme,Grants to Voluntary Bodies,Redland Housing Association Ltd,726.92, 28-Feb-2014
1774,Revenue,CCHD,Bed Purchasing - Elderly - South,Permanent Nursing,Regent House,2224.96, 18-Feb-2014
1775,Revenue,CCHD,Bed Purchasing - Elderly - South,Permanent Nursing,Regent House,2358.84, 18-Feb-2014
1776,Revenue,CCHD,Bed Purchasing - Elderly - South,Permanent Nursing,Regent House,10306.75, 18-Feb-2014
1777,Revenue,CCHD,Bed Purchasing - Elderly - South,Permanent Nursing,Regent House,1649.08, 18-Feb-2014
